Ref No,Fund Type,Dept,Cost Centre Description    ,Description    ,Creditor Name    ,GL Code Net Amount,Payment date        
2,Revenue,CAHD,Academy Resource Base Funding,Other Public Bodies,Cabot Learning Federation,1231.51, 18-Jan-2016
3,Revenue,CAHD,Academy Resource Base Funding,Other Public Bodies,Cabot Learning Federation,1613.70, 18-Jan-2016
4,Revenue,CAHD,Academy Resource Base Funding,Other Public Bodies,Cabot Learning Federation,1613.70, 18-Jan-2016
5,Revenue,CAHD,Academy Resource Base Funding,Other Public Bodies,Cabot Learning Federation,509.59, 18-Jan-2016
6,Revenue,CAHD,Academy Resource Base Funding,Other Public Bodies,Cabot Learning Federation,509.59, 18-Jan-2016
7,Revenue,CAHD,Academy Resource Base Funding,Other Public Bodies,Cabot Learning Federation,509.59, 18-Jan-2016
8,Revenue,CAHD,Academy Resource Base Funding,Other Public Bodies,Cabot Learning Federation,509.59, 18-Jan-2016
9,Revenue,CAHD,Academy Resource Base Funding,Other Public Bodies,Cabot Learning Federation,509.59, 18-Jan-2016
10,Revenue,CAHD,Academy Resource Base Funding,Other Public Bodies,Cabot Learning Federation,509.59, 18-Jan-2016
11,Revenue,CAHD,Academy Resource Base Funding,Other Public Bodies,Cabot Learning Federation,1613.70, 18-Jan-2016
12,Revenue,CAHD,Academy Resource Base Funding,Other Public Bodies,Cabot Learning Federation,509.59, 18-Jan-2016
13,Revenue,CAHD,Academy Resource Base Funding,Other Public Bodies,Cabot Learning Federation,509.59, 18-Jan-2016
14,Revenue,CAHD,Academy Resource Base Funding,Other Public Bodies,Cabot Learning Federation,1613.70, 18-Jan-2016
15,Revenue,CAHD,Academy Resource Base Funding,Other Public Bodies,Cabot Learning Federation,509.59, 18-Jan-2016
16,Revenue,CAHD,Academy Resource Base Funding,Other Public Bodies,Cabot Learning Federation,509.59, 18-Jan-2016
17,Revenue,CAHD,Academy Resource Base Funding,Other Public Bodies,Cabot Learning Federation,509.59, 18-Jan-2016
18,Revenue,CAHD,Academy Resource Base Funding,Other Public Bodies,Cabot Learning Federation,1613.70, 18-Jan-2016
19,Revenue,CAHD,Academy Resource Base Funding,Other Public Bodies,Cabot Learning Federation,509.59, 18-Jan-2016
20,Revenue,CAHD,Academy Resource Base Funding,Other Public Bodies,Cabot Learning Federation,509.59, 18-Jan-2016
21,Revenue,CAHD,Academy Resource Base Funding,Other Public Bodies,Cabot Learning Federation,509.59, 18-Jan-2016
22,Revenue,CAHD,Academy Resource Base Funding,Other Public Bodies,Cabot Learning Federation,509.59, 18-Jan-2016
23,Revenue,CAHD,Academy Resource Base Funding,Other Public Bodies,Cabot Learning Federation,509.59, 18-Jan-2016
24,Revenue,CAHD,Academy Resource Base Funding,Other Public Bodies,Cabot Learning Federation,509.59, 18-Jan-2016
25,Revenue,CAHD,Academy Resource Base Funding,Other Public Bodies,Cabot Learning Federation,849.32, 18-Jan-2016
26,Revenue,CAHD,Academy Resource Base Funding,Other Public Bodies,Cabot Learning Federation,1613.70, 18-Jan-2016
27,Revenue,CAHD,Academy Resource Base Funding,Other Public Bodies,Cabot Learning Federation,509.59, 18-Jan-2016
28,Revenue,CAHD,Academy Resource Base Funding,Other Public Bodies,Olympus Academy Trust,509.59, 18-Jan-2016
29,Revenue,CAHD,Academy Resource Base Funding,Other Public Bodies,Olympus Academy Trust,1613.70, 18-Jan-2016
30,Revenue,CAHD,Academy Resource Base Funding,Other Public Bodies,Olympus Academy Trust,1613.70, 18-Jan-2016
31,Revenue,CAHD,Academy Resource Base Funding,Other Public Bodies,Olympus Academy Trust,509.59, 18-Jan-2016
32,Revenue,CAHD,Academy Resource Base Funding,Other Public Bodies,Olympus Academy Trust,509.59, 18-Jan-2016
33,Revenue,CAHD,Academy Resource Base Funding,Other Public Bodies,Olympus Academy Trust,509.59, 18-Jan-2016
34,Revenue,CAHD,Academy Resource Base Funding,Other Public Bodies,Olympus Academy Trust,1613.70, 18-Jan-2016
35,Revenue,CAHD,Academy Resource Base Funding,Other Public Bodies,Olympus Academy Trust,509.59, 18-Jan-2016
36,Revenue,CAHD,Academy Resource Base Funding,Other Public Bodies,Olympus Academy Trust,509.59, 18-Jan-2016
37,Revenue,CAHD,Academy Resource Base Funding,Other Public Bodies,Olympus Academy Trust,1613.70, 18-Jan-2016
38,Revenue,CAHD,Academy Resource Base Funding,Other Public Bodies,Olympus Academy Trust,1613.70, 18-Jan-2016
39,Revenue,CAHD,Academy Resource Base Funding,Other Public Bodies,Olympus Academy Trust,1613.70, 18-Jan-2016
40,Revenue,CAHD,Academy Resource Base Funding,Other Public Bodies,Olympus Academy Trust,509.59, 18-Jan-2016
41,Revenue,CAHD,Academy Resource Base Funding,Other Public Bodies,Olympus Academy Trust,1613.70, 18-Jan-2016
42,Revenue,CAHD,Academy Resource Base Funding,Other Public Bodies,Olympus Academy Trust,509.59, 18-Jan-2016
43,Revenue,CAHD,Academy Resource Base Funding,Other Public Bodies,Olympus Academy Trust,1613.70, 18-Jan-2016
44,Revenue,CAHD,Academy Resource Base Funding,Other Public Bodies,Olympus Academy Trust,509.59, 18-Jan-2016
45,Revenue,CAHD,Academy Resource Base Funding,Other Public Bodies,Olympus Academy Trust,509.59, 18-Jan-2016
46,Revenue,CAHD,Academy Resource Base Funding,Other Public Bodies,Olympus Academy Trust,509.59, 18-Jan-2016
47,Revenue,CAHD,Academy Resource Base Funding,Other Public Bodies,Olympus Academy Trust,509.59, 18-Jan-2016
48,Revenue,CAHD,Academy Resource Base Funding,Other Public Bodies,Olympus Academy Trust,1613.70, 18-Jan-2016
49,Revenue,CAHD,Academy Resource Base Funding,Other Public Bodies,Olympus Academy Trust,1613.70, 18-Jan-2016
50,Revenue,CAHD,Academy Resource Base Funding,Other Public Bodies,Olympus Academy Trust,509.59, 18-Jan-2016
51,Revenue,CAHD,Academy Resource Base Funding,Other Public Bodies,Olympus Academy Trust,509.59, 18-Jan-2016
52,Revenue,CAHD,Academy Resource Base Funding,Other Public Bodies,Olympus Academy Trust,509.59, 18-Jan-2016
53,Revenue,CAHD,Academy Resource Base Funding,Other Public Bodies,Olympus Academy Trust,1613.70, 18-Jan-2016
54,Revenue,CAHD,Academy Resource Base Funding,Other Public Bodies,Olympus Academy Trust,849.32, 18-Jan-2016
55,Revenue,CAHD,Academy Resource Base Funding,Other Public Bodies,Olympus Academy Trust,1231.51, 18-Jan-2016
56,Revenue,CAHD,Academy Resource Base Funding,Other Public Bodies,Olympus Academy Trust,509.59, 18-Jan-2016
57,Revenue,CAHD,Academy Resource Base Funding,Other Public Bodies,Olympus Academy Trust,509.59, 18-Jan-2016
58,Revenue,CAHD,Academy Resource Base Funding,Other Public Bodies,Olympus Academy Trust,1231.51, 18-Jan-2016
59,Revenue,CAHD,Academy Resource Base Funding,Other Public Bodies,The Ridings Federation of Academies,679.45, 18-Jan-2016
60,Revenue,CAHD,Academy Resource Base Funding,Other Public Bodies,The Ridings Federation of Academies,1783.56, 18-Jan-2016
61,Revenue,CAHD,Academy Resource Base Funding,Other Public Bodies,The Ridings Federation of Academies,679.45, 18-Jan-2016
62,Revenue,CAHD,Academy Resource Base Funding,Other Public Bodies,The Ridings Federation of Academies,1613.70, 18-Jan-2016
63,Revenue,CAHD,Academy Resource Base Funding,Other Public Bodies,The Ridings Federation of Academies,679.45, 18-Jan-2016
64,Revenue,CAHD,Academy Resource Base Funding,Other Public Bodies,The Ridings Federation of Academies,1231.51, 18-Jan-2016
65,Revenue,CAHD,Academy Resource Base Funding,Other Public Bodies,The Ridings Federation of Academies,509.59, 18-Jan-2016
66,Revenue,CAHD,Academy Resource Base Funding,Other Public Bodies,The Ridings Federation of Academies,1613.70, 18-Jan-2016
67,Revenue,CAHD,Academy Resource Base Funding,Other Public Bodies,The Ridings Federation of Academies,509.59, 18-Jan-2016
68,Revenue,CAHD,Academy Resource Base Funding,Other Public Bodies,The Ridings Federation of Academies,679.45, 18-Jan-2016
69,Revenue,CAHD,Academy Resource Base Funding,Other Public Bodies,The Ridings Federation of Academies,1231.51, 18-Jan-2016
70,Revenue,CAHD,Academy Resource Base Funding,Other Public Bodies,The Ridings Federation of Academies,1783.56, 18-Jan-2016
71,Revenue,CAHD,Statemented Support Academies,Schools Funding,Bristol & South Gloucestershire UTC,583.30, 29-Jan-2016
72,Revenue,CAHD,Statemented Support Academies,Schools Funding,Bristol & South Gloucestershire UTC,649.97, 29-Jan-2016
73,Revenue,CAHD,Statemented Support Academies,Schools Funding,Cabot Learning Federation,641.64, 29-Jan-2016
74,Revenue,CAHD,Statemented Support Academies,Schools Funding,Cabot Learning Federation,691.64, 29-Jan-2016
75,Revenue,CAHD,Statemented Support Academies,Schools Funding,Cabot Learning Federation,624.97, 29-Jan-2016
76,Revenue,CAHD,Statemented Support Academies,Schools Funding,Cabot Learning Federation,583.30, 29-Jan-2016
77,Revenue,CAHD,Statemented Support Academies,Schools Funding,Cabot Learning Federation,541.64, 29-Jan-2016
78,Revenue,CAHD,Statemented Support Academies,Schools Funding,Cabot Learning Federation,599.97, 29-Jan-2016
79,Revenue,CAHD,Statemented Support Academies,Schools Funding,Cabot Learning Federation,724.97, 29-Jan-2016
80,Revenue,CAHD,Statemented Support Academies,Schools Funding,Cabot Learning Federation,874.97, 29-Jan-2016
81,Revenue,CAHD,Statemented Support Academies,Schools Funding,Cabot Learning Federation,691.64, 29-Jan-2016
82,Revenue,CAHD,Statemented Support Academies,Schools Funding,Cabot Learning Federation,583.30, 29-Jan-2016
83,Revenue,CAHD,Statemented Support Academies,Schools Funding,Cabot Learning Federation,1116.61, 29-Jan-2016
84,Revenue,CAHD,Statemented Support Academies,Schools Funding,Cabot Learning Federation,1316.64, 29-Jan-2016
85,Revenue,CAHD,Statemented Support Academies,Schools Funding,Cabot Learning Federation,624.97, 29-Jan-2016
86,Revenue,CAHD,Statemented Support Academies,Schools Funding,Cabot Learning Federation,899.97, 29-Jan-2016
87,Revenue,CAHD,Statemented Support Academies,Schools Funding,Cabot Learning Federation,1799.91, 29-Jan-2016
88,Revenue,CAHD,Statemented Support Academies,Schools Funding,Cabot Learning Federation,683.30, 29-Jan-2016
89,Revenue,CAHD,Statemented Support Academies,Schools Funding,Cabot Learning Federation,1224.97, 29-Jan-2016
90,Revenue,CAHD,Statemented Support Academies,Schools Funding,Cabot Learning Federation,958.30, 29-Jan-2016
91,Revenue,CAHD,Statemented Support Academies,Schools Funding,Cabot Learning Federation,583.30, 29-Jan-2016
92,Revenue,CAHD,Statemented Support Academies,Schools Funding,Cabot Learning Federation,749.97, 29-Jan-2016
93,Revenue,CAHD,Statemented Support Academies,Schools Funding,Cabot Learning Federation,941.64, 29-Jan-2016
94,Revenue,CAHD,Statemented Support Academies,Schools Funding,Cabot Learning Federation,549.97, 29-Jan-2016
95,Revenue,CAHD,Statemented Support Academies,Schools Funding,Cabot Learning Federation,1308.30, 29-Jan-2016
96,Revenue,CAHD,Statemented Support Academies,Schools Funding,Castle School Education Trust,674.97, 29-Jan-2016
97,Revenue,CAHD,Statemented Support Academies,Schools Funding,Castle School Education Trust,891.64, 29-Jan-2016
98,Revenue,CAHD,Statemented Support Academies,Schools Funding,Castle School Education Trust,783.30, 29-Jan-2016
99,Revenue,CAHD,Statemented Support Academies,Schools Funding,Castle School Education Trust,583.30, 29-Jan-2016
100,Revenue,CAHD,Statemented Support Academies,Schools Funding,Castle School Education Trust,583.30, 29-Jan-2016
101,Revenue,CAHD,Statemented Support Academies,Schools Funding,Castle School Education Trust,524.97, 29-Jan-2016
102,Revenue,CAHD,Statemented Support Academies,Schools Funding,Castle School Education Trust,1324.97, 29-Jan-2016
103,Revenue,CAHD,Statemented Support Academies,Schools Funding,Castle School Education Trust,591.64, 29-Jan-2016
104,Revenue,CAHD,Statemented Support Academies,Schools Funding,Castle School Education Trust,833.30, 29-Jan-2016
105,Revenue,CAHD,Statemented Support Academies,Schools Funding,Castle School Education Trust,649.97, 29-Jan-2016
106,Revenue,CAHD,Statemented Support Academies,Schools Funding,Castle School Education Trust,1474.97, 29-Jan-2016
107,Revenue,CAHD,Statemented Support Academies,Schools Funding,Castle School Education Trust,708.30, 29-Jan-2016
108,Revenue,CAHD,Statemented Support Academies,Schools Funding,Castle School Education Trust,766.64, 29-Jan-2016
109,Revenue,CAHD,Statemented Support Academies,Schools Funding,Castle School Education Trust,583.30, 29-Jan-2016
110,Revenue,CAHD,Statemented Support Academies,Schools Funding,Castle School Education Trust,508.30, 29-Jan-2016
111,Revenue,CAHD,Statemented Support Academies,Schools Funding,Castle School Education Trust,874.97, 29-Jan-2016
112,Revenue,CAHD,Statemented Support Academies,Schools Funding,Castle School Education Trust,733.30, 29-Jan-2016
113,Revenue,CAHD,Statemented Support Academies,Schools Funding,Castle School Education Trust,674.97, 29-Jan-2016
114,Revenue,CAHD,Statemented Support Academies,Schools Funding,Castle School Education Trust,883.30, 29-Jan-2016
115,Revenue,CAHD,Statemented Support Academies,Schools Funding,Castle School Education Trust,891.64, 29-Jan-2016
116,Revenue,CAHD,Statemented Support Academies,Schools Funding,Castle School Education Trust,599.97, 29-Jan-2016
117,Revenue,CAHD,Statemented Support Academies,Schools Funding,Castle School Education Trust,1166.64, 29-Jan-2016
118,Revenue,CAHD,Statemented Support Academies,Schools Funding,Castle School Education Trust,658.30, 29-Jan-2016
119,Revenue,CAHD,Statemented Support Academies,Schools Funding,Castle School Education Trust,608.30, 29-Jan-2016
120,Revenue,CAHD,Statemented Support Academies,Schools Funding,Castle School Education Trust,524.97, 29-Jan-2016
121,Revenue,CAHD,Statemented Support Academies,Schools Funding,Castle School Education Trust,533.30, 29-Jan-2016
122,Revenue,CAHD,Statemented Support Academies,Schools Funding,Castle School Education Trust,699.97, 29-Jan-2016
123,Revenue,CAHD,Statemented Support Academies,Schools Funding,Castle School Education Trust,649.97, 29-Jan-2016
124,Revenue,CAHD,Statemented Support Academies,Schools Funding,Castle School Education Trust,508.30, 29-Jan-2016
125,Revenue,CAHD,Statemented Support Academies,Schools Funding,Castle School Education Trust,874.97, 29-Jan-2016
126,Revenue,CAHD,Statemented Support Academies,Schools Funding,Castle School Education Trust,691.64, 29-Jan-2016
127,Revenue,CAHD,Statemented Support Academies,Schools Funding,Castle School Education Trust,558.30, 29-Jan-2016
128,Revenue,CAHD,Statemented Support Academies,Schools Funding,Castle School Education Trust,1133.30, 29-Jan-2016
129,Revenue,CAHD,Statemented Support Academies,Schools Funding,Castle School Education Trust,1283.30, 29-Jan-2016
130,Revenue,CAHD,Statemented Support Academies,Schools Funding,Downend School,591.64, 29-Jan-2016
131,Revenue,CAHD,Statemented Support Academies,Schools Funding,Downend School,1008.30, 29-Jan-2016
132,Revenue,CAHD,Statemented Support Academies,Schools Funding,Downend School,1083.30, 29-Jan-2016
133,Revenue,CAHD,Statemented Support Academies,Schools Funding,Downend School,583.30, 29-Jan-2016
134,Revenue,CAHD,Statemented Support Academies,Schools Funding,Downend School,583.30, 29-Jan-2016
135,Revenue,CAHD,Statemented Support Academies,Schools Funding,Olympus Academy Trust,541.64, 29-Jan-2016
136,Revenue,CAHD,Statemented Support Academies,Schools Funding,Olympus Academy Trust,933.30, 29-Jan-2016
137,Revenue,CAHD,Statemented Support Academies,Schools Funding,Olympus Academy Trust,1341.64, 29-Jan-2016
138,Revenue,CAHD,Statemented Support Academies,Schools Funding,Olympus Academy Trust,874.97, 29-Jan-2016
139,Revenue,CAHD,Statemented Support Academies,Schools Funding,Olympus Academy Trust,699.97, 29-Jan-2016
140,Revenue,CAHD,Statemented Support Academies,Schools Funding,Olympus Academy Trust,549.97, 29-Jan-2016
141,Revenue,CAHD,Statemented Support Academies,Schools Funding,Olympus Academy Trust,683.30, 29-Jan-2016
142,Revenue,CAHD,Statemented Support Academies,Schools Funding,Olympus Academy Trust,816.64, 29-Jan-2016
143,Revenue,CAHD,Statemented Support Academies,Schools Funding,Olympus Academy Trust,1174.97, 29-Jan-2016
144,Revenue,CAHD,Statemented Support Academies,Schools Funding,Olympus Academy Trust,666.64, 29-Jan-2016
145,Revenue,CAHD,Statemented Support Academies,Schools Funding,Olympus Academy Trust,724.97, 29-Jan-2016
146,Revenue,CAHD,Statemented Support Academies,Schools Funding,Olympus Academy Trust,824.97, 29-Jan-2016
147,Revenue,CAHD,Statemented Support Academies,Schools Funding,Olympus Academy Trust,1283.30, 29-Jan-2016
148,Revenue,CAHD,Statemented Support Academies,Schools Funding,Olympus Academy Trust,933.30, 29-Jan-2016
149,Revenue,CAHD,Statemented Support Academies,Schools Funding,Olympus Academy Trust,766.64, 29-Jan-2016
150,Revenue,CAHD,Statemented Support Academies,Schools Funding,Olympus Academy Trust,583.30, 29-Jan-2016
151,Revenue,CAHD,Statemented Support Academies,Schools Funding,Olympus Academy Trust,583.30, 29-Jan-2016
152,Revenue,CAHD,Statemented Support Academies,Schools Funding,Olympus Academy Trust,599.97, 29-Jan-2016
153,Revenue,CAHD,Statemented Support Academies,Schools Funding,Olympus Academy Trust,1749.91, 29-Jan-2016
154,Revenue,CAHD,Statemented Support Academies,Schools Funding,Olympus Academy Trust,1149.97, 29-Jan-2016
155,Revenue,CAHD,Statemented Support Academies,Schools Funding,Olympus Academy Trust,983.30, 29-Jan-2016
156,Revenue,CAHD,Statemented Support Academies,Schools Funding,Olympus Academy Trust,791.64, 29-Jan-2016
157,Revenue,CAHD,Statemented Support Academies,Schools Funding,Olympus Academy Trust,666.64, 29-Jan-2016
158,Revenue,CAHD,Statemented Support Academies,Schools Funding,Patchway Community College,1016.64, 29-Jan-2016
159,Revenue,CAHD,Statemented Support Academies,Schools Funding,Patchway Community College,1216.64, 29-Jan-2016
160,Revenue,CAHD,Statemented Support Academies,Schools Funding,Patchway Community College,1216.64, 29-Jan-2016
161,Revenue,CAHD,Statemented Support Academies,Schools Funding,Patchway Community College,508.30, 29-Jan-2016
162,Revenue,CAHD,Statemented Support Academies,Schools Funding,Patchway Community College,558.30, 29-Jan-2016
163,Revenue,CAHD,Statemented Support Academies,Schools Funding,The Cosmos Academy Trust,983.30, 29-Jan-2016
164,Revenue,CAHD,Statemented Support Academies,Schools Funding,The Cosmos Academy Trust,1199.97, 29-Jan-2016
165,Revenue,CAHD,Statemented Support Academies,Schools Funding,The Cosmos Academy Trust,733.30, 29-Jan-2016
166,Revenue,CAHD,Statemented Support Academies,Schools Funding,The Cosmos Academy Trust,974.97, 29-Jan-2016
167,Revenue,CAHD,Statemented Support Academies,Schools Funding,The Cosmos Academy Trust,699.97, 29-Jan-2016
168,Revenue,CAHD,Statemented Support Academies,Schools Funding,The Cosmos Academy Trust,1316.64, 29-Jan-2016
169,Revenue,CAHD,Statemented Support Academies,Schools Funding,The Cosmos Academy Trust,758.30, 29-Jan-2016
170,Revenue,CAHD,Statemented Support Academies,Schools Funding,The Cosmos Academy Trust,649.97, 29-Jan-2016
171,Revenue,CAHD,Statemented Support Academies,Schools Funding,The Cosmos Academy Trust,1316.64, 29-Jan-2016
172,Revenue,CAHD,Statemented Support Academies,Schools Funding,The Ridings Federation of Academies,2958.19, 29-Jan-2016
173,Revenue,CAHD,Statemented Support Academies,Schools Funding,The Ridings Federation of Academies,724.97, 29-Jan-2016
174,Revenue,CAHD,Statemented Support Academies,Schools Funding,The Ridings Federation of Academies,1049.97, 29-Jan-2016
175,Revenue,CAHD,Statemented Support Academies,Schools Funding,The Ridings Federation of Academies,1316.64, 29-Jan-2016
176,Revenue,CAHD,Statemented Support Academies,Schools Funding,The Ridings Federation of Academies,583.30, 29-Jan-2016
177,Revenue,CAHD,Statemented Support Academies,Schools Funding,The Ridings Federation of Academies,591.64, 29-Jan-2016
178,Revenue,CAHD,Statemented Support Academies,Schools Funding,The Ridings Federation of Academies,724.97, 29-Jan-2016
179,Revenue,CAHD,Statemented Support Academies,Schools Funding,The Ridings Federation of Academies,616.64, 29-Jan-2016
180,Revenue,CAHD,Statemented Support Academies,Schools Funding,The Ridings Federation of Academies,566.64, 29-Jan-2016
181,Revenue,CAHD,Statemented Support Academies,Schools Funding,The Ridings Federation of Academies,549.97, 29-Jan-2016
182,Revenue,CAHD,Statemented Support Academies,Schools Funding,The Ridings Federation of Academies,1383.30, 29-Jan-2016
183,Revenue,CAHD,Statemented Support Academies,Schools Funding,The Ridings Federation of Academies,933.30, 29-Jan-2016
184,Revenue,CAHD,Statemented Support Academies,Schools Funding,The Ridings Federation of Academies,558.30, 29-Jan-2016
185,Revenue,CAHD,Statemented Support Academies,Schools Funding,The Ridings Federation of Academies,633.30, 29-Jan-2016
186,Revenue,CAHD,Statemented Support Academies,Schools Funding,The Ridings Federation of Academies,1224.97, 29-Jan-2016
187,Revenue,CAHD,Statemented Support Academies,Schools Funding,The Ridings Federation of Academies,1049.97, 29-Jan-2016
188,Revenue,CAHD,Statemented Support Academies,Schools Funding,The Ridings Federation of Academies,724.97, 29-Jan-2016
189,Revenue,CAHD,Statemented Support Academies,Schools Funding,The Ridings Federation of Academies,541.64, 29-Jan-2016
190,Revenue,CAHD,Statemented Support Academies,Schools Funding,The Ridings Federation of Academies,858.30, 29-Jan-2016
191,Revenue,CAHD,Statemented Support Academies,Schools Funding,The Ridings Federation of Academies,816.64, 29-Jan-2016
192,Revenue,CAHD,Statemented Support Academies,Schools Funding,The Ridings Federation of Academies,708.30, 29-Jan-2016
193,Revenue,CAHD,Statemented Support Academies,Schools Funding,The Ridings Federation of Academies,733.30, 29-Jan-2016
194,Revenue,CAHD,Statemented Support Academies,Schools Funding,The Ridings Federation of Academies,2049.91, 29-Jan-2016
195,Revenue,CAHD,Statemented Support Academies,Schools Funding,The Ridings Federation of Academies,1024.97, 29-Jan-2016
196,Revenue,CAHD,Statemented Support Academies,Schools Funding,The Ridings Federation of Academies,791.64, 29-Jan-2016
197,Revenue,CAHD,Statemented Support Academies,Schools Funding,Wellsway MAT T/A Sir Bernard Lovell School,841.64, 29-Jan-2016
198,Revenue,CAHD,Statemented Support Academies,Schools Funding,Wellsway MAT T/A Sir Bernard Lovell School,583.30, 29-Jan-2016
199,Revenue,CAHD,Statemented Support Academies,Schools Funding,Wellsway MAT T/A Sir Bernard Lovell School,691.64, 29-Jan-2016
200,Revenue,CAHD,Statemented Support Academies,Schools Funding,Wellsway MAT T/A Sir Bernard Lovell School,699.97, 29-Jan-2016
201,Revenue,CAHD,Statemented Support Academies,Schools Funding,Wellsway MAT T/A Sir Bernard Lovell School,583.30, 29-Jan-2016
202,Revenue,CAHD,Statemented Support Academies,Schools Funding,Wellsway MAT T/A Sir Bernard Lovell School,874.97, 29-Jan-2016
203,Revenue,CAHD,Statemented Support Payments to OLAs,Other L.A.'s - General,Beechen Cliff School,716.64, 29-Jan-2016
204,Revenue,CAHD,Statemented Support Payments to OLAs,Other L.A.'s - General,Bristol City Council - Schools,1374.97, 29-Jan-2016
205,Revenue,CAHD,Statemented Support Payments to OLAs,Other L.A.'s - General,Bristol City Council - Schools,641.64, 29-Jan-2016
206,Revenue,CAHD,Statemented Support Payments to OLAs,Other L.A.'s - General,Bristol Free School,933.30, 29-Jan-2016
207,Revenue,CAHD,Statemented Support Payments to OLAs,Other L.A.'s - General,Cabot Learning Federation,524.97, 29-Jan-2016
208,Revenue,CAHD,Statemented Support Payments to OLAs,Other L.A.'s - General,Cabot Learning Federation,583.30, 29-Jan-2016
209,Revenue,CAHD,Statemented Support Payments to OLAs,Other L.A.'s - General,Dyson Perrins C of E Academy,541.64, 29-Jan-2016
210,Revenue,CAHD,Statemented Support Payments to OLAs,Other L.A.'s - General,Filton Avenue Primary School,608.30, 29-Jan-2016
211,Revenue,CAHD,Statemented Support Payments to OLAs,Other L.A.'s - General,Katharine Lady Berkeley School,533.30, 29-Jan-2016
212,Revenue,CAHD,Statemented Support Payments to OLAs,Other L.A.'s - General,Newbridge Primary School,733.30, 29-Jan-2016
213,Revenue,CAHD,Statemented Support Payments to OLAs,Other L.A.'s - General,Oldfield School,641.64, 29-Jan-2016
214,Revenue,CAHD,Statemented Support Payments to OLAs,Other L.A.'s - General,Orchard School Bristol,766.64, 29-Jan-2016
215,Revenue,CAHD,Statemented Support Payments to OLAs,Other L.A.'s - General,Sheldon School,974.97, 29-Jan-2016
216,Revenue,CAHD,Statemented Support Payments to OLAs,Other L.A.'s - General,Wellsway School,933.30, 29-Jan-2016
217,Revenue,CAHD,Statemented Support Payments to OLAs,Other L.A.'s - General,Wellsway School,2749.92, 29-Jan-2016
218,Revenue,CAHD,Placements OLA Special Schools and RB,Other L.A.'s - General,Bristol City Council - Schools,2406.67, 29-Jan-2016
219,Revenue,CAHD,Placements OLA Special Schools and RB,Other L.A.'s - General,Bristol City Council - Schools,5419.17, 29-Jan-2016
220,Revenue,CAHD,Placements OLA Special Schools and RB,Other L.A.'s - General,Bristol City Council - Schools,1333.33, 29-Jan-2016
221,Revenue,CAHD,Placements OLA Special Schools and RB,Other L.A.'s - General,Bristol City Council - Schools,5419.17, 29-Jan-2016
222,Revenue,CAHD,Placements OLA Special Schools and RB,Other L.A.'s - General,Bristol City Council - Schools,1656.67, 29-Jan-2016
223,Revenue,CAHD,Placements OLA Special Schools and RB,Other L.A.'s - General,Bristol City Council - Schools,1333.33, 29-Jan-2016
224,Revenue,CAHD,Placements OLA Special Schools and RB,Other L.A.'s - General,Bristol City Council - Schools,6252.50, 29-Jan-2016
225,Revenue,CAHD,Placements OLA Special Schools and RB,Other L.A.'s - General,Bristol City Council - Schools,5419.17, 29-Jan-2016
226,Revenue,CAHD,Placements OLA Special Schools and RB,Other L.A.'s - General,Bristol City Council - Schools,833.33, 29-Jan-2016
227,Revenue,CAHD,Placements OLA Special Schools and RB,Other L.A.'s - General,Bristol City Council - Schools,1333.33, 29-Jan-2016
228,Revenue,CAHD,Placements OLA Special Schools and RB,Other L.A.'s - General,Bristol City Council - Schools,5419.17, 29-Jan-2016
229,Revenue,CAHD,Placements OLA Special Schools and RB,Other L.A.'s - General,Bristol City Council - Schools,1136.67, 29-Jan-2016
230,Revenue,CAHD,Placements OLA Special Schools and RB,Other L.A.'s - General,Bristol City Council - Schools,2053.33, 29-Jan-2016
231,Revenue,CAHD,Placements OLA Special Schools and RB,Other L.A.'s - General,Bristol City Council - Schools,999.17, 29-Jan-2016
232,Revenue,CAHD,Placements OLA Special Schools and RB,Other L.A.'s - General,Bristol City Council - Schools,1553.33, 29-Jan-2016
233,Revenue,CAHD,Placements OLA Special Schools and RB,Other L.A.'s - General,Bristol City Council - Schools,5419.17, 29-Jan-2016
234,Revenue,CAHD,Placements OLA Special Schools and RB,Other L.A.'s - General,Bristol City Council - Schools,833.33, 29-Jan-2016
235,Revenue,CAHD,Placements OLA Special Schools and RB,Other L.A.'s - General,Bristol City Council - Schools,7003.71, 29-Jan-2016
236,Revenue,CAHD,Placements OLA Special Schools and RB,Other L.A.'s - General,Bristol City Council - Schools,833.33, 29-Jan-2016
237,Revenue,CAHD,Placements OLA Special Schools and RB,Other L.A.'s - General,Bristol City Council - Schools,5419.17, 29-Jan-2016
238,Revenue,CAHD,Placements OLA Special Schools and RB,Other L.A.'s - General,Bristol City Council - Schools,1656.67, 29-Jan-2016
239,Revenue,CAHD,Placements OLA Special Schools and RB,Other L.A.'s - General,Bristol City Council - Schools,5419.17, 29-Jan-2016
240,Revenue,CAHD,Placements OLA Special Schools and RB,Other L.A.'s - General,Bristol City Council - Schools,4335.33, 29-Jan-2016
241,Revenue,CAHD,Placements OLA Special Schools and RB,Other L.A.'s - General,Bristol City Council - Schools,1553.33, 29-Jan-2016
242,Revenue,CAHD,Placements OLA Special Schools and RB,Other L.A.'s - General,Bristol City Council - Schools,5419.17, 29-Jan-2016
243,Revenue,CAHD,Placements OLA Special Schools and RB,Other L.A.'s - General,Bristol City Council - Schools,1391.25, 29-Jan-2016
244,Revenue,CAHD,Placements OLA Special Schools and RB,Other L.A.'s - General,Bristol City Council - Schools,2053.33, 29-Jan-2016
245,Revenue,CAHD,Placements OLA Special Schools and RB,Other L.A.'s - General,Bristol City Council - Schools,1333.33, 29-Jan-2016
246,Revenue,CAHD,Placements OLA Special Schools and RB,Other L.A.'s - General,Bristol City Council - Schools,1391.25, 29-Jan-2016
247,Revenue,CAHD,Placements OLA Special Schools and RB,Other L.A.'s - General,Henbury Court Primary Academy,833.33, 29-Jan-2016
248,Revenue,CAHD,Placements OLA Special Schools and RB,Other L.A.'s - General,Herefordshire Council,5465.43, 12-Jan-2016
249,Revenue,CAHD,Placements OLA Special Schools and RB,Other L.A.'s - General,Knowle DGE,2658.33, 29-Jan-2016
250,Revenue,CAHD,Placements OLA Special Schools and RB,Other L.A.'s - General,Knowle DGE,1408.33, 29-Jan-2016
251,Revenue,CAHD,Placements OLA Special Schools and RB,Other L.A.'s - General,Knowle DGE,1120.83, 29-Jan-2016
252,Revenue,CAHD,Placements OLA Special Schools and RB,Other L.A.'s - General,Three Ways Special School,627.93, 29-Jan-2016
253,Revenue,CAHD,Placements OLA Special Schools and RB,Other L.A.'s - General,Three Ways Special School,1182.23, 29-Jan-2016
254,Revenue,CAHD,NQSW Pilot Programme,Training Expenses,Individual,2100.00, 07-Jan-2016
255,Revenue,CAHD,Training Budget - Children`s Social Serv,Training Expenses,Cruidin Training and Consultancy Ltd,2107.04, 28-Jan-2016
256,Revenue,CAHD,Quality and Standards,Catering,Bawa Healthcare & Leisure,1116.67, 06-Jan-2016
257,Revenue,CAHD,Quality and Standards,Premises Hire,Bawa Healthcare & Leisure,437.50, 06-Jan-2016
258,Revenue,CAHD,Quality and Standards,Consultants Fees,Individual,1200.00, 12-Jan-2016
259,Revenue,CAHD,Quality and Standards,Consultants Fees,Individual,1000.00, 12-Jan-2016
260,Revenue,CAHD,Quality and Standards,Consultants Fees,Individual,810.00, 04-Jan-2016
261,Revenue,CAHD,Quality and Standards,Consultants Fees,Individual,630.00, 18-Jan-2016
262,Revenue,CAHD,EY- 2 Yr Old Trajectory Building Funds,Advertising - General,Clear Channel UK Limited,4560.00, 18-Jan-2016
263,Revenue,CAHD,EY- 2 Yr Old Trajectory Building Funds,Advertising - General,Clear Channel UK Limited,1168.00, 15-Jan-2016
264,Revenue,CAHD,EY- 2 Yr Old Trajectory Building Funds,Advertising - General,Clear Channel UK Limited,850.00, 29-Jan-2016
265,Revenue,CAHD,EY- 2 Yr Old Trajectory Building Funds,Training Expenses,Pre-School Learning Alliance,5680.00, 04-Jan-2016
266,Revenue,CAHD,EY- 2 Yr Old Trajectory Building Funds,Training Expenses,Pre-School Learning Alliance,6390.00, 04-Jan-2016
267,Revenue,CAHD,EY Childcare Voucher Scheme,Childcare Voucher Payment to Providers,Clifton Childrens House,729.00, 18-Jan-2016
268,Revenue,CAHD,EY Childcare Voucher Scheme,Childcare Voucher Payment to Providers,Individual,729.00, 15-Jan-2016
269,Revenue,CAHD,Early Years Development,Computer Equipment - Purchase,Stone Computers Limited,12.00, 18-Jan-2016
270,Revenue,CAHD,Early Years High Needs Support,Other Private Contractors,Hillsides Secret Garden Day Nursery,987.00, 07-Jan-2016
271,Revenue,CAHD,Early Years High Needs Support,Other Private Contractors,Little Oaks Day Nursery & Pre-school,649.44, 15-Jan-2016
272,Revenue,CAHD,Early Years High Needs Support,Other Private Contractors,Marshfield Pre School Playgroup,676.80, 11-Jan-2016
273,Revenue,CAHD,Early Years High Needs Support,Other Private Contractors,Silverhill School,893.00, 15-Jan-2016
274,Revenue,CAHD,Breakthrough and Inclusion Work,Other Supplies & Services,121Turnaround Limited,936.68, 14-Jan-2016
275,Revenue,CAHD,Breakthrough and Inclusion Work,Other Supplies & Services,Impact Mentoring,1134.00, 27-Jan-2016
276,Revenue,CAHD,Breakthrough and Inclusion Work,Other Supplies & Services,Impact Mentoring,1260.00, 27-Jan-2016
277,Revenue,CAHD,Breakthrough and Inclusion Work,Other Supplies & Services,Impact Mentoring,693.00, 27-Jan-2016
278,Revenue,CAHD,Breakthrough and Inclusion Work,Other Supplies & Services,P3D,3409.56, 11-Jan-2016
279,Revenue,CAHD,Learning Difficulties,Computer Equipment - Purchase,Stone Computers Limited,115.00, 18-Jan-2016
280,Revenue,CAHD,Schools Specific Grant Income - from OLA,Other Public Bodies,Mangotsfield Secondary School,633.33, 21-Jan-2016
281,Revenue,CAHD,Schools Specific Grant Income - from OLA,Other Public Bodies,Mangotsfield Secondary School,633.33, 21-Jan-2016
282,Revenue,CAHD,Pensions - Non DSG,Annual Pension,Bath & North East Somerset Council,117392.17, 21-Jan-2016
283,Revenue,CAHD,Pensions - Non DSG,Annual Pension,Bath & North East Somerset Dist Council,5766.62, 08-Jan-2016
284,Revenue,CAHD,CSC - Independent Visitors Scheme,Grants to Voluntary Bodies,Signis Ltd,9000.00, 28-Jan-2016
285,Revenue,CAHD,CSC - LAT Placements,Client Transport,Individual,549.00, 08-Jan-2016
286,Revenue,CAHD,CSC - Age Related Allowances,Children - Family Support,Individual,648.00, 29-Jan-2016
287,Revenue,CAHD,CSC - Agency Fostering,Foster Parent Allowances,Enhanced Foster Care Ltd,4650.00, 28-Jan-2016
288,Revenue,CAHD,CSC - Agency Fostering,Foster Parent Allowances,Five Rivers Child Care Limited,3447.82, 28-Jan-2016
289,Revenue,CAHD,CSC - Agency Fostering,Foster Parent Allowances,Five Rivers Child Care Limited,3447.82, 28-Jan-2016
290,Revenue,CAHD,CSC - Agency Fostering,Foster Parent Allowances,Foster Care Associates Limited,2332.75, 28-Jan-2016
291,Revenue,CAHD,CSC - Agency Fostering,Foster Parent Allowances,Foster Care Associates Limited,4131.68, 28-Jan-2016
292,Revenue,CAHD,CSC - Agency Fostering,Foster Parent Allowances,Foster Care Associates Limited,5303.44, 28-Jan-2016
293,Revenue,CAHD,CSC - Agency Fostering,Foster Parent Allowances,TACT,3035.52, 28-Jan-2016
294,Revenue,CAHD,CSC - Agency Fostering,Foster Parent Allowances,TACT,3193.00, 28-Jan-2016
295,Revenue,CAHD,CSC - Agency Fostering,Foster Parent Allowances,TACT,3035.52, 28-Jan-2016
296,Revenue,CAHD,CSC - Agency Fostering,Foster Parent Allowances,TACT,3035.52, 28-Jan-2016
297,Revenue,CAHD,CSC - Agency Fostering,Foster Parent Allowances,The Foster Care Co-operative,3113.45, 18-Jan-2016
298,Revenue,CAHD,CSC - Agency Fostering,Foster Parent Allowances,The Foster Care Co-operative,3393.23, 18-Jan-2016
299,Revenue,CAHD,CSC - Fostering General,Advertising - General,Open Space Advertising Ltd,1397.50, 04-Jan-2016
300,Revenue,CAHD,CSC - Fostering General,Catering,Sphere Leisure Ltd,770.10, 26-Jan-2016
301,Revenue,CAHD,CSC - Professional Fees Foster Carers,Special Fostering Scheme,Individual,2376.00, 08-Jan-2016
302,Revenue,CAHD,CSC - Professional Fees Foster Carers,Respite Care,Individual,504.00, 22-Jan-2016
303,Revenue,CAHD,CSC - Corporate Parenting,Computer Services,IAP UK Limited,3871.50, 26-Jan-2016
304,Revenue,CAHD,CSC - Residential Placements,Permanent Residential,Broadwood Educational Services Limited,15057.01, 29-Jan-2016
305,Revenue,CAHD,CSC - Residential Placements,Permanent Residential,G4S Care & Justice Services (UK) Limited,11427.76, 29-Jan-2016
306,Revenue,CAHD,CSC - Residential Placements,Permanent Residential,Greenfields Adolecent Development Limited,21035.71, 18-Jan-2016
307,Revenue,CAHD,CSC - Residential Placements,Permanent Residential,Headway Adolescent Resources Limited,12400.00, 28-Jan-2016
308,Revenue,CAHD,CSC - Residential Placements,Permanent Residential,Options College Stoke,18578.57, 26-Jan-2016
309,Revenue,CAHD,CSC - Residential Placements,Permanent Residential,Options College Stoke,9908.56, 29-Jan-2016
310,Revenue,CAHD,CSC - Residential Placements,Permanent Residential,Resource Partners SPV Ltd,19463.56, 15-Jan-2016
311,Revenue,CAHD,CSC - Residential Placements,Permanent Residential,St Davids ASC (Marlowe) Limited,15942.87, 15-Jan-2016
312,Revenue,CAHD,CSC - Residential Placements,Permanent Residential,Timeout Childrens Homes Limited,18400.00, 15-Jan-2016
313,Revenue,CAHD,CSC - Residential Placements,Permanent Residential,Tumblewood Project,16714.20, 15-Jan-2016
314,Revenue,CAHD,CSC - Residential Placements,Permanent Residential,Tumblewood Project,17271.34, 28-Jan-2016
315,Revenue,CAHD,CSC - Care Leavers Independent Living,Adults - Family Support,The Leaving Care Company Limited,1761.43, 29-Jan-2016
316,Revenue,CAHD,CSC - Care Leavers Independent Living,Adults - Family Support,The Leaving Care Company Limited,2220.43, 29-Jan-2016
317,Revenue,CAHD,CSC - Care Leavers Support Costs,"Provisions (Food, etc)",Big Yellow Self Storage Company Limited,515.84, 15-Jan-2016
318,Revenue,CAHD,CSC - Care Leavers Support Costs,Personal Needs of Clients,Redefine Mentoring Ltd,2352.00, 18-Jan-2016
319,Revenue,CAHD,CSC - Section 17,Preventative Assistance,Meridian Business Support Ltd,521.34, 07-Jan-2016
320,Revenue,CAHD,CSC - Section 17,Preventative Assistance,Meridian Business Support Ltd,521.34, 14-Jan-2016
321,Revenue,CAHD,CSC - Section 17,Preventative Assistance,Meridian Business Support Ltd,760.96, 21-Jan-2016
322,Revenue,CAHD,CSC - Section 17,Preventative Assistance,Meridian Business Support Ltd,760.96, 28-Jan-2016
323,Revenue,CAHD,CSC - Section 17,Preventative Assistance,Sirona Care & Health CIC,531.00, 22-Jan-2016
324,Revenue,CAHD,CSC - Section 17,Preventative Assistance,Thornbury Community Services,685.00, 07-Jan-2016
325,Revenue,CAHD,CSC - Section 17,Preventative Assistance,Thornbury Community Services,721.00, 13-Jan-2016
326,Revenue,CAHD,CSC - Section 17,Preventative Assistance,Thornbury Community Services,690.03, 14-Jan-2016
327,Revenue,CAHD,CSC - Family Group Conferencing,Grants to Voluntary Bodies,Barnardo Services Limited,5350.00, 25-Jan-2016
328,Revenue,CAHD,CSC - Child Protection Advocacy,Grants to Voluntary Bodies,Signis Ltd,3750.00, 21-Jan-2016
329,Revenue,CAHD,CSC - Allowances,Post Adoption,Lloyds TSB Commercial Finance Limited,350.00, 25-Jan-2016
330,Revenue,CAHD,CSC - Adoption West Project,Consultants Fees,Individual,3200.00, 20-Jan-2016
331,Revenue,CAHD,CSC-Adoption Support Fund,Post Adoption,Lloyds TSB Commercial Finance Limited,1525.00, 25-Jan-2016
332,Revenue,CAHD,CSC-Adoption Support Fund,Post Adoption,Lloyds TSB Commercial Finance Limited,550.00, 15-Jan-2016
333,Revenue,CAHD,18-25 Year Olds,Permanent Residential,1 St Georges House,13350.08, 19-Jan-2016
334,Revenue,CAHD,18-25 Year Olds,Permanent Residential,5Th Floor Harlech Court,13837.80, 19-Jan-2016
335,Revenue,CAHD,18-25 Year Olds,Permanent Residential,5Th Floor Harlech Court,14114.08, 19-Jan-2016
336,Revenue,CAHD,18-25 Year Olds,Permanent Residential,5Th Floor Harlech Court,12656.32, 19-Jan-2016
337,Revenue,CAHD,18-25 Year Olds,Permanent Residential,5Th Floor Harlech Court,15925.08, 19-Jan-2016
338,Revenue,CAHD,18-25 Year Olds,Permanent Residential,Ash View House,6225.80, 19-Jan-2016
339,Revenue,CAHD,18-25 Year Olds,Permanent Residential,Bradbury House,8855.64, 19-Jan-2016
340,Revenue,CAHD,18-25 Year Olds,Permanent Residential,Citibase Watford,7088.60, 19-Jan-2016
341,Revenue,CAHD,18-25 Year Olds,Permanent Residential,Citibase Watford,5514.44, 19-Jan-2016
342,Revenue,CAHD,18-25 Year Olds,Day Care / Social Activities,Eclipse Office Park,897.84, 19-Jan-2016
343,Revenue,CAHD,18-25 Year Olds,Day Care / Social Activities,Eclipse Office Park,774.00, 19-Jan-2016
344,Revenue,CAHD,18-25 Year Olds,Permanent Residential,Freeways Trust Ltd,3409.64, 19-Jan-2016
345,Revenue,CAHD,18-25 Year Olds,Permanent Residential,Home From Home Care Ltd,9086.16, 19-Jan-2016
346,Revenue,CAHD,18-25 Year Olds,Permanent Residential,Homes Caring For Autism Ltd  Churchill H,13043.96, 19-Jan-2016
347,Revenue,CAHD,18-25 Year Olds,Permanent Residential,Leonard Cheshire  National Account Centr,3231.92, 19-Jan-2016
348,Revenue,CAHD,18-25 Year Olds,Permanent Residential,Milestones - Unit 10,9919.20, 19-Jan-2016
349,Revenue,CAHD,18-25 Year Olds,Permanent Residential,Park Hall,7259.36, 19-Jan-2016
350,Revenue,CAHD,18-25 Year Olds,Permanent Residential,Small House Homes Limited,18210.08, 19-Jan-2016
351,Revenue,CAHD,18-25 Year Olds,Permanent Nursing,St Roses School,4086.00, 19-Jan-2016
352,Revenue,CAHD,18-25 Year Olds,Respite Planned - Residential,St Roses School,1107.84, 19-Jan-2016
353,Revenue,CAHD,18-25 Year Olds,Respite Planned - Residential,St Roses School,1658.65, 19-Jan-2016
354,Revenue,CAHD,18-25 Year Olds,Permanent Residential,The Ann Coleman Centre,6122.56, 19-Jan-2016
355,Revenue,CAHD,18-25 Year Olds,Permanent Residential,The David Lewis Centre,5967.52, 19-Jan-2016
356,Revenue,CAHD,18-25 Year Olds,Permanent Residential,Wye House,8627.88, 19-Jan-2016
357,Revenue,CAHD,Bed Purchasing - South,Permanent Residential,5Th Floor Harlech Court,16236.56, 19-Jan-2016
358,Revenue,CAHD,Bed Purchasing - South,Permanent Residential,5Th Floor Harlech Court,9403.36, 19-Jan-2016
359,Revenue,CAHD,Bed Purchasing - South,Permanent Residential,5Th Floor Harlech Court,10352.52, 19-Jan-2016
360,Revenue,CAHD,Bed Purchasing - South,Permanent Nursing,Ambleside Nusing Ho!,1534.12, 19-Jan-2016
361,Revenue,CAHD,Bed Purchasing - South,Permanent Residential,Autism Specialised Care Homes,5672.64, 19-Jan-2016
362,Revenue,CAHD,Bed Purchasing - South,Permanent Residential,Beaufort House,1447.40, 19-Jan-2016
363,Revenue,CAHD,Bed Purchasing - South,Permanent Residential,Bedrock Lodge,3186.88, 19-Jan-2016
364,Revenue,CAHD,Bed Purchasing - South,Permanent Residential,Bedrock Lodge,2976.96, 19-Jan-2016
365,Revenue,CAHD,Bed Purchasing - South,Permanent Residential,Beech House,1270.80, 19-Jan-2016
366,Revenue,CAHD,Bed Purchasing - South,Permanent Residential,Brandon Trust,10380.40, 19-Jan-2016
367,Revenue,CAHD,Bed Purchasing - South,Permanent Residential,Brandon Trust,4080.76, 19-Jan-2016
368,Revenue,CAHD,Bed Purchasing - South,Permanent Nursing,Brandon Trust,5092.48, 19-Jan-2016
369,Revenue,CAHD,Bed Purchasing - South,Permanent Residential,Brandon Trust,3309.88, 19-Jan-2016
370,Revenue,CAHD,Bed Purchasing - South,Permanent Residential,Brightbow,2113.88, 19-Jan-2016
371,Revenue,CAHD,Bed Purchasing - South,Permanent Nursing,Brunelcare,2147.59, 25-Jan-2016
372,Revenue,CAHD,Bed Purchasing - South,Permanent Nursing,Brunelcare,2320.39, 25-Jan-2016
373,Revenue,CAHD,Bed Purchasing - South,Permanent Nursing,Brunelcare,2576.10, 25-Jan-2016
374,Revenue,CAHD,Bed Purchasing - South,Permanent Nursing,Brunelcare,2285.50, 25-Jan-2016
375,Revenue,CAHD,Bed Purchasing - South,Permanent Nursing,Brunelcare,606.86, 25-Jan-2016
376,Revenue,CAHD,Bed Purchasing - South,Permanent Nursing,Brunelcare,809.14, 25-Jan-2016
377,Revenue,CAHD,Bed Purchasing - South,Permanent Residential,Cleeve Lodge,568.08, 19-Jan-2016
378,Revenue,CAHD,Bed Purchasing - South,Permanent Residential,Cleeve Lodge,14385.16, 19-Jan-2016
379,Revenue,CAHD,Bed Purchasing - South,Permanent Residential,Cleeve Lodge,1827.76, 19-Jan-2016
380,Revenue,CAHD,Bed Purchasing - South,Permanent Residential,Collingwood Residential Home,1456.80, 19-Jan-2016
381,Revenue,CAHD,Bed Purchasing - South,Permanent Residential,Collingwood Residential Home,1466.04, 19-Jan-2016
382,Revenue,CAHD,Bed Purchasing - South,Permanent Residential,Collingwood Residential Home,1079.12, 19-Jan-2016
383,Revenue,CAHD,Bed Purchasing - South,Permanent Residential,Collingwood Residential Home,1333.28, 19-Jan-2016
384,Revenue,CAHD,Bed Purchasing - South,Permanent Residential,Collingwood Residential Home,1327.16, 19-Jan-2016
385,Revenue,CAHD,Bed Purchasing - South,Permanent Nursing,Community Integrated Care,664.84, 19-Jan-2016
386,Revenue,CAHD,Bed Purchasing - South,Permanent Residential,Cream Ii Ltd  Longrun House,5689.32, 19-Jan-2016
387,Revenue,CAHD,Bed Purchasing - South,Permanent Residential,Daneswood,11113.64, 19-Jan-2016
388,Revenue,CAHD,Bed Purchasing - South,Permanent Residential,Devon & Cornwall Autistic Community Trus,8880.84, 19-Jan-2016
389,Revenue,CAHD,Bed Purchasing - South,Permanent Residential,Dimensions  Suite 2,4933.76, 19-Jan-2016
390,Revenue,CAHD,Bed Purchasing - South,Permanent Residential,Edgecumbe Lodge,1201.56, 19-Jan-2016
391,Revenue,CAHD,Bed Purchasing - South,Permanent Residential,Edgecumbe Lodge,1060.40, 19-Jan-2016
392,Revenue,CAHD,Bed Purchasing - South,Permanent Residential,Edgecumbe Lodge,1444.84, 19-Jan-2016
393,Revenue,CAHD,Bed Purchasing - South,Permanent Residential,Edgecumbe Lodge,1569.60, 19-Jan-2016
394,Revenue,CAHD,Bed Purchasing - South,Permanent Residential,Edgecumbe Lodge,1145.92, 19-Jan-2016
395,Revenue,CAHD,Bed Purchasing - South,Permanent Residential,Edgemont House Ltd,1150.20, 19-Jan-2016
396,Revenue,CAHD,Bed Purchasing - South,Permanent Residential,Edgemont House Ltd,1311.36, 19-Jan-2016
397,Revenue,CAHD,Bed Purchasing - South,Permanent Nursing,Edgemont View Nursing Home,1402.24, 19-Jan-2016
398,Revenue,CAHD,Bed Purchasing - South,Permanent Nursing,Edgemont View Nursing Home,1763.04, 19-Jan-2016
399,Revenue,CAHD,Bed Purchasing - South,Permanent Nursing,Edgemont View Nursing Home,1457.44, 19-Jan-2016
400,Revenue,CAHD,Bed Purchasing - South,Permanent Nursing,Edgemont View Nursing Home,1648.40, 19-Jan-2016
401,Revenue,CAHD,Bed Purchasing - South,Permanent Nursing,Fairview Court,2446.80, 19-Jan-2016
402,Revenue,CAHD,Bed Purchasing - South,Permanent Nursing,Fairview Court,2446.80, 19-Jan-2016
403,Revenue,CAHD,Bed Purchasing - South,Permanent Nursing,Fairview Court,1655.12, 19-Jan-2016
404,Revenue,CAHD,Bed Purchasing - South,Permanent Nursing,Fairview Court,1786.36, 19-Jan-2016
405,Revenue,CAHD,Bed Purchasing - South,Permanent Nursing,Fairview Court,2019.04, 19-Jan-2016
406,Revenue,CAHD,Bed Purchasing - South,Permanent Residential,Fairview House,868.80, 19-Jan-2016
407,Revenue,CAHD,Bed Purchasing - South,Permanent Residential,Fairview House,669.04, 19-Jan-2016
408,Revenue,CAHD,Bed Purchasing - South,Permanent Residential,Fairview House,1270.80, 19-Jan-2016
409,Revenue,CAHD,Bed Purchasing - South,Permanent Residential,Fairview House,1222.60, 19-Jan-2016
410,Revenue,CAHD,Bed Purchasing - South,Permanent Residential,Fairview House,1134.96, 19-Jan-2016
411,Revenue,CAHD,Bed Purchasing - South,Permanent Residential,Fairview House,1044.00, 19-Jan-2016
412,Revenue,CAHD,Bed Purchasing - South,Permanent Residential,Fairview House,1455.56, 19-Jan-2016
413,Revenue,CAHD,Bed Purchasing - South,Permanent Residential,Freeways Trust Ltd,3375.88, 19-Jan-2016
414,Revenue,CAHD,Bed Purchasing - South,Permanent Residential,Freeways Trust Ltd,2426.72, 19-Jan-2016
415,Revenue,CAHD,Bed Purchasing - South,Permanent Nursing,Frenchay Park Nursing Home,1508.40, 19-Jan-2016
416,Revenue,CAHD,Bed Purchasing - South,Permanent Nursing,Fshc  1St Floor,900.32, 19-Jan-2016
417,Revenue,CAHD,Bed Purchasing - South,Permanent Nursing,Fshc  1St Floor,10813.70, 19-Jan-2016
418,Revenue,CAHD,Bed Purchasing - South,Permanent Nursing,Fshc  1St Floor,1054.36, 19-Jan-2016
419,Revenue,CAHD,Bed Purchasing - South,Permanent Nursing,Fshc  1St Floor,1013.96, 19-Jan-2016
420,Revenue,CAHD,Bed Purchasing - South,Permanent Nursing,Fshc  1St Floor,1142.76, 19-Jan-2016
421,Revenue,CAHD,Bed Purchasing - South,Permanent Nursing,Fshc  1St Floor,1344.08, 19-Jan-2016
422,Revenue,CAHD,Bed Purchasing - South,Permanent Nursing,Fshc  1St Floor,1398.80, 19-Jan-2016
423,Revenue,CAHD,Bed Purchasing - South,Permanent Nursing,Fshc  1St Floor,1398.80, 19-Jan-2016
424,Revenue,CAHD,Bed Purchasing - South,Permanent Nursing,Fshc  1St Floor,1354.20, 19-Jan-2016
425,Revenue,CAHD,Bed Purchasing - South,Respite Emergency - Residential,Fshc  1St Floor,697.71, 19-Jan-2016
426,Revenue,CAHD,Bed Purchasing - South,Permanent Residential,Fshc  1St Floor,1148.76, 19-Jan-2016
427,Revenue,CAHD,Bed Purchasing - South,Respite Planned - Nursing,Fshc  1St Floor,4080.00, 19-Jan-2016
428,Revenue,CAHD,Bed Purchasing - South,Permanent Nursing,Fshc  1St Floor,1418.80, 19-Jan-2016
429,Revenue,CAHD,Bed Purchasing - South,Respite Emergency - Residential,Fshc  1St Floor,888.00, 19-Jan-2016
430,Revenue,CAHD,Bed Purchasing - South,Permanent Nursing,Fshc  1St Floor,1198.76, 19-Jan-2016
431,Revenue,CAHD,Bed Purchasing - South,Permanent Nursing,Fshc  1St Floor,1904.00, 19-Jan-2016
432,Revenue,CAHD,Bed Purchasing - South,Permanent Residential,Fshc  1St Floor,949.60, 19-Jan-2016
433,Revenue,CAHD,Bed Purchasing - South,Permanent Residential,Fshc  1St Floor,1045.60, 19-Jan-2016
434,Revenue,CAHD,Bed Purchasing - South,Permanent Residential,Fshc  1St Floor,522.80, 19-Jan-2016
435,Revenue,CAHD,Bed Purchasing - South,Permanent Nursing,Fshc  1St Floor,1374.80, 19-Jan-2016
436,Revenue,CAHD,Bed Purchasing - South,Permanent Nursing,Fshc  1St Floor,1240.84, 19-Jan-2016
437,Revenue,CAHD,Bed Purchasing - South,Respite Emergency - Residential,Fshc  1St Floor,1078.29, 19-Jan-2016
438,Revenue,CAHD,Bed Purchasing - South,Permanent Residential,Fshc  1St Floor,1270.80, 19-Jan-2016
439,Revenue,CAHD,Bed Purchasing - South,Respite Emergency - Residential,Fshc  1St Floor,2306.57, 19-Jan-2016
440,Revenue,CAHD,Bed Purchasing - South,Respite Emergency - Nursing,Fshc  1St Floor,2306.57, 19-Jan-2016
441,Revenue,CAHD,Bed Purchasing - South,Permanent Nursing,Fshc  1St Floor,1240.16, 19-Jan-2016
442,Revenue,CAHD,Bed Purchasing - South,Permanent Residential,Fshc  1St Floor,1146.73, 19-Jan-2016
443,Revenue,CAHD,Bed Purchasing - South,Permanent Residential,Fshc  1St Floor,903.56, 19-Jan-2016
444,Revenue,CAHD,Bed Purchasing - South,Permanent Nursing,Fshc  1St Floor,1402.52, 19-Jan-2016
445,Revenue,CAHD,Bed Purchasing - South,Permanent Residential,Fshc  1St Floor,1386.96, 19-Jan-2016
446,Revenue,CAHD,Bed Purchasing - South,Respite Planned - Residential,Fshc  1St Floor,2012.00, 19-Jan-2016
447,Revenue,CAHD,Bed Purchasing - South,Permanent Nursing,Fshc  1St Floor,1398.80, 19-Jan-2016
448,Revenue,CAHD,Bed Purchasing - South,Permanent Nursing,Fshc  1St Floor,1267.20, 19-Jan-2016
449,Revenue,CAHD,Bed Purchasing - South,Permanent Nursing,Fshc  1St Floor,1352.12, 19-Jan-2016
450,Revenue,CAHD,Bed Purchasing - South,Permanent Nursing,Fshc  1St Floor,1681.08, 19-Jan-2016
451,Revenue,CAHD,Bed Purchasing - South,Permanent Nursing,Fshc  1St Floor,1132.64, 19-Jan-2016
452,Revenue,CAHD,Bed Purchasing - South,Permanent Nursing,Fshc  1St Floor,769.91, 19-Jan-2016
453,Revenue,CAHD,Bed Purchasing - South,Permanent Nursing,Fshc  1St Floor,1255.12, 19-Jan-2016
454,Revenue,CAHD,Bed Purchasing - South,Permanent Residential,Fshc  1St Floor,1368.08, 19-Jan-2016
455,Revenue,CAHD,Bed Purchasing - South,Permanent Residential,Gladstone House,31103.68, 19-Jan-2016
456,Revenue,CAHD,Bed Purchasing - South,Permanent Residential,Glasallt Fawr,4666.48, 19-Jan-2016
457,Revenue,CAHD,Bed Purchasing - South,Permanent Residential,Glebe House Nursing Home,2073.76, 19-Jan-2016
458,Revenue,CAHD,Bed Purchasing - South,Permanent Residential,Goldcare House,1021.35, 19-Jan-2016
459,Revenue,CAHD,Bed Purchasing - South,Permanent Residential,Gordena Care Home,2137.52, 19-Jan-2016
460,Revenue,CAHD,Bed Purchasing - South,Permanent Residential,Gordena Care Home,3189.84, 19-Jan-2016
461,Revenue,CAHD,Bed Purchasing - South,Permanent Residential,Gordena Care Home,2996.16, 19-Jan-2016
462,Revenue,CAHD,Bed Purchasing - South,Permanent Residential,Gordena Care Home,1950.08, 19-Jan-2016
463,Revenue,CAHD,Bed Purchasing - South,Permanent Residential,Gordena Care Limited,4264.60, 19-Jan-2016
464,Revenue,CAHD,Bed Purchasing - South,Permanent Nursing,Gracefields Nursing Home,1712.72, 19-Jan-2016
465,Revenue,CAHD,Bed Purchasing - South,Permanent Nursing,Gracefields Nursing Home,1132.40, 19-Jan-2016
466,Revenue,CAHD,Bed Purchasing - South,Permanent Nursing,Gracefields Nursing Home,2658.88, 19-Jan-2016
467,Revenue,CAHD,Bed Purchasing - South,Permanent Nursing,Gracefields Nursing Home,1601.96, 19-Jan-2016
468,Revenue,CAHD,Bed Purchasing - South,Permanent Nursing,Gracefields Nursing Home,1330.80, 19-Jan-2016
469,Revenue,CAHD,Bed Purchasing - South,Permanent Residential,Grove Care,1883.40, 19-Jan-2016
470,Revenue,CAHD,Bed Purchasing - South,Permanent Residential,Gwendoline House,846.44, 19-Jan-2016
471,Revenue,CAHD,Bed Purchasing - South,Permanent Residential,Gwendoline House,955.96, 19-Jan-2016
472,Revenue,CAHD,Bed Purchasing - South,Permanent Residential,Gwendoline House,1159.80, 19-Jan-2016
473,Revenue,CAHD,Bed Purchasing - South,Permanent Residential,Harefield Hall,1219.24, 19-Jan-2016
474,Revenue,CAHD,Bed Purchasing - South,Permanent Residential,Harefield Hall,1150.52, 19-Jan-2016
475,Revenue,CAHD,Bed Purchasing - South,Permanent Residential,Harefield Hall,955.96, 19-Jan-2016
476,Revenue,CAHD,Bed Purchasing - South,Permanent Residential,Harefield Hall,1039.04, 19-Jan-2016
477,Revenue,CAHD,Bed Purchasing - South,Permanent Residential,Harefield Hall,1313.12, 19-Jan-2016
478,Revenue,CAHD,Bed Purchasing - South,Permanent Residential,Harefield Hall,1254.36, 19-Jan-2016
479,Revenue,CAHD,Bed Purchasing - South,Permanent Nursing,Hc-One Ltd,1540.80, 19-Jan-2016
480,Revenue,CAHD,Bed Purchasing - South,Permanent Nursing,Hc-One Ltd,1375.72, 19-Jan-2016
481,Revenue,CAHD,Bed Purchasing - South,Permanent Residential,Holmleigh Care Homes Ltd,41563.17, 19-Jan-2016
482,Revenue,CAHD,Bed Purchasing - South,Permanent Residential,Holmleigh Care Homes Ltd,884.33, 19-Jan-2016
483,Revenue,CAHD,Bed Purchasing - South,Permanent Residential,Home Farm Trust Ltd  5-6 Brook Office Pa,5174.76, 19-Jan-2016
484,Revenue,CAHD,Bed Purchasing - South,Permanent Residential,Home Farm Trust Ltd  5-6 Brook Office Pa,5607.24, 19-Jan-2016
485,Revenue,CAHD,Bed Purchasing - South,Permanent Nursing,Horfield Care Limited,1320.39, 18-Jan-2016
486,Revenue,CAHD,Bed Purchasing - South,Permanent Nursing,Horfield Care Limited,1364.40, 18-Jan-2016
487,Revenue,CAHD,Bed Purchasing - South,Permanent Residential,Julia Simone- Supp. Ind.,4004.36, 19-Jan-2016
488,Revenue,CAHD,Bed Purchasing - South,Permanent Residential,Kenver House Residential Home,1153.00, 19-Jan-2016
489,Revenue,CAHD,Bed Purchasing - South,Permanent Residential,Kenver House Residential Home,1388.84, 19-Jan-2016
490,Revenue,CAHD,Bed Purchasing - South,Permanent Residential,Kenver House Residential Home,1685.08, 19-Jan-2016
491,Revenue,CAHD,Bed Purchasing - South,Permanent Residential,Kenver House Residential Home,1294.36, 19-Jan-2016
492,Revenue,CAHD,Bed Purchasing - South,Respite Emergency - Residential,Kenver House Residential Home,2190.28, 19-Jan-2016
493,Revenue,CAHD,Bed Purchasing - South,Permanent Residential,Kenver House Residential Home,1277.20, 19-Jan-2016
494,Revenue,CAHD,Bed Purchasing - South,Permanent Residential,Kenver House Residential Home,1685.08, 19-Jan-2016
495,Revenue,CAHD,Bed Purchasing - South,Permanent Residential,Leonard Cheshire  National Account Centr,3376.16, 19-Jan-2016
496,Revenue,CAHD,Bed Purchasing - South,Permanent Residential,Leonard Cheshire  National Account Centr,4544.12, 19-Jan-2016
497,Revenue,CAHD,Bed Purchasing - South,Permanent Nursing,Leonard Cheshire  National Account Centr,2940.92, 19-Jan-2016
498,Revenue,CAHD,Bed Purchasing - South,Respite Emergency - Residential,Leonard Cheshire  National Account Centr,4926.88, 19-Jan-2016
499,Revenue,CAHD,Bed Purchasing - South,Respite Emergency - Residential,Leonard Cheshire  National Account Centr,13548.92, 19-Jan-2016
500,Revenue,CAHD,Bed Purchasing - South,Permanent Residential,Little Croft,908.60, 19-Jan-2016
501,Revenue,CAHD,Bed Purchasing - South,Permanent Residential,Little Croft,1422.92, 19-Jan-2016
502,Revenue,CAHD,Bed Purchasing - South,Permanent Residential,Manor Cottage,1865.68, 19-Jan-2016
503,Revenue,CAHD,Bed Purchasing - South,Respite Emergency - Residential,Manor Cottage,4628.57, 19-Jan-2016
504,Revenue,CAHD,Bed Purchasing - South,Permanent Residential,Manor Cottage,8425.86, 19-Jan-2016
505,Revenue,CAHD,Bed Purchasing - South,Permanent Residential,Manor Cottage,1814.80, 19-Jan-2016
506,Revenue,CAHD,Bed Purchasing - South,Permanent Residential,Manor Cottage,1464.20, 19-Jan-2016
507,Revenue,CAHD,Bed Purchasing - South,Permanent Residential,Manor Cottage,1516.40, 19-Jan-2016
508,Revenue,CAHD,Bed Purchasing - South,Permanent Residential,Marsden Healthcare Ltd,1276.04, 19-Jan-2016
509,Revenue,CAHD,Bed Purchasing - South,Permanent Residential,Marsden Healthcare Ltd,3278.84, 19-Jan-2016
510,Revenue,CAHD,Bed Purchasing - South,Permanent Residential,Marsden Healthcare Ltd,1538.08, 19-Jan-2016
511,Revenue,CAHD,Bed Purchasing - South,Permanent Nursing,Meadow Care Home,1552.32, 19-Jan-2016
512,Revenue,CAHD,Bed Purchasing - South,Permanent Residential,Mencap,2277.84, 19-Jan-2016
513,Revenue,CAHD,Bed Purchasing - South,Permanent Residential,Milestones - Unit 10,4921.56, 19-Jan-2016
514,Revenue,CAHD,Bed Purchasing - South,Permanent Residential,Milestones - Unit 10,6443.92, 19-Jan-2016
515,Revenue,CAHD,Bed Purchasing - South,Permanent Nursing,Milestones - Unit 10,2763.44, 19-Jan-2016
516,Revenue,CAHD,Bed Purchasing - South,Permanent Nursing,Milestones - Unit 10,1286.44, 19-Jan-2016
517,Revenue,CAHD,Bed Purchasing - South,Permanent Residential,Milestones - Unit 10,3640.84, 19-Jan-2016
518,Revenue,CAHD,Bed Purchasing - South,Permanent Residential,Milestones - Unit 10,4165.64, 19-Jan-2016
519,Revenue,CAHD,Bed Purchasing - South,Permanent Residential,Milestones - Unit 10,1317.44, 19-Jan-2016
520,Revenue,CAHD,Bed Purchasing - South,Permanent Residential,Milestones - Unit 10,5042.32, 19-Jan-2016
521,Revenue,CAHD,Bed Purchasing - South,Permanent Residential,Milestones - Unit 10,5595.76, 19-Jan-2016
522,Revenue,CAHD,Bed Purchasing - South,Permanent Residential,Milestones - Unit 10,4886.20, 19-Jan-2016
523,Revenue,CAHD,Bed Purchasing - South,Permanent Residential,Milestones - Unit 10,5175.80, 19-Jan-2016
524,Revenue,CAHD,Bed Purchasing - South,Permanent Residential,Milestones - Unit 10,3245.72, 19-Jan-2016
525,Revenue,CAHD,Bed Purchasing - South,Permanent Residential,Milestones - Unit 10,866.80, 19-Jan-2016
526,Revenue,CAHD,Bed Purchasing - South,Permanent Residential,Milestones - Unit 10,4318.72, 19-Jan-2016
527,Revenue,CAHD,Bed Purchasing - South,Permanent Nursing,Milestones - Unit 10,3319.80, 19-Jan-2016
528,Revenue,CAHD,Bed Purchasing - South,Permanent Residential,Milestones - Unit 10,3285.36, 19-Jan-2016
529,Revenue,CAHD,Bed Purchasing - South,Permanent Residential,Milestones - Unit 10,5984.52, 19-Jan-2016
530,Revenue,CAHD,Bed Purchasing - South,Permanent Residential,Milestones - Unit 10,4386.24, 19-Jan-2016
531,Revenue,CAHD,Bed Purchasing - South,Permanent Residential,Milestones - Unit 10,16770.65, 19-Jan-2016
532,Revenue,CAHD,Bed Purchasing - South,Permanent Residential,Milestones - Unit 10,1239.36, 19-Jan-2016
533,Revenue,CAHD,Bed Purchasing - South,Permanent Residential,Milestones - Unit 10,5319.52, 19-Jan-2016
534,Revenue,CAHD,Bed Purchasing - South,Permanent Nursing,Milestones - Unit 10,3399.64, 19-Jan-2016
535,Revenue,CAHD,Bed Purchasing - South,Permanent Nursing,Milestones - Unit 10,2808.92, 19-Jan-2016
536,Revenue,CAHD,Bed Purchasing - South,Permanent Residential,Norwood   Broadway House,5027.16, 19-Jan-2016
537,Revenue,CAHD,Bed Purchasing - South,Permanent Residential,Notaro Homes Ltd  Queensmead Court,1905.16, 19-Jan-2016
538,Revenue,CAHD,Bed Purchasing - South,Permanent Residential,Nova House Care Home,954.84, 19-Jan-2016
539,Revenue,CAHD,Bed Purchasing - South,Permanent Residential,Osprey Court,7835.00, 19-Jan-2016
540,Revenue,CAHD,Bed Purchasing - South,Permanent Residential,Park Farm House,1800.16, 19-Jan-2016
541,Revenue,CAHD,Bed Purchasing - South,Permanent Residential,Park Farm House,1627.56, 19-Jan-2016
542,Revenue,CAHD,Bed Purchasing - South,Permanent Residential,Park Hall,5617.76, 19-Jan-2016
543,Revenue,CAHD,Bed Purchasing - South,Permanent Residential,Park Hall,5069.64, 19-Jan-2016
544,Revenue,CAHD,Bed Purchasing - South,Permanent Residential,Park Hall,2579.24, 19-Jan-2016
545,Revenue,CAHD,Bed Purchasing - South,Permanent Residential,Park Hall,4966.56, 19-Jan-2016
546,Revenue,CAHD,Bed Purchasing - South,Permanent Residential,Park Hall,10884.24, 19-Jan-2016
547,Revenue,CAHD,Bed Purchasing - South,Permanent Residential,Penleigh House Care Home,4610.80, 19-Jan-2016
548,Revenue,CAHD,Bed Purchasing - South,Permanent Residential,Penleigh House Care Home,6501.16, 19-Jan-2016
549,Revenue,CAHD,Bed Purchasing - South,Permanent Residential,Penleigh House Care Home,4361.48, 19-Jan-2016
550,Revenue,CAHD,Bed Purchasing - South,Permanent Residential,Penleigh House Care Home,5020.84, 19-Jan-2016
551,Revenue,CAHD,Bed Purchasing - South,Permanent Nursing,Regent House,2121.60, 19-Jan-2016
552,Revenue,CAHD,Bed Purchasing - South,Permanent Nursing,Regent House,2412.72, 19-Jan-2016
553,Revenue,CAHD,Bed Purchasing - South,Permanent Nursing,Regent House,1684.88, 19-Jan-2016
554,Revenue,CAHD,Bed Purchasing - South,Permanent Nursing,Regent House,1992.36, 19-Jan-2016
555,Revenue,CAHD,Bed Purchasing - South,Permanent Nursing,Regent House,2038.84, 19-Jan-2016
556,Revenue,CAHD,Bed Purchasing - South,Permanent Nursing,Regent House,1695.80, 19-Jan-2016
557,Revenue,CAHD,Bed Purchasing - South,Permanent Nursing,Regent House,1766.68, 19-Jan-2016
558,Revenue,CAHD,Bed Purchasing - South,Permanent Nursing,Regent House,1687.76, 19-Jan-2016
559,Revenue,CAHD,Bed Purchasing - South,Permanent Nursing,Regent House,1202.68, 19-Jan-2016
560,Revenue,CAHD,Bed Purchasing - South,Permanent Nursing,Regent House,2374.16, 19-Jan-2016
561,Revenue,CAHD,Bed Purchasing - South,Permanent Residential,Ridgeway House,3540.96, 19-Jan-2016
562,Revenue,CAHD,Bed Purchasing - South,Permanent Residential,Riverside House,3651.08, 19-Jan-2016
563,Revenue,CAHD,Bed Purchasing - South,Permanent Residential,Rockleaze,2437.00, 19-Jan-2016
564,Revenue,CAHD,Bed Purchasing - South,Permanent Residential,Rockleaze,1438.16, 19-Jan-2016
565,Revenue,CAHD,Bed Purchasing - South,Permanent Residential,Rosedale House,1527.28, 19-Jan-2016
566,Revenue,CAHD,Bed Purchasing - South,Permanent Residential,Rosewood Lodge & Brook House,4620.12, 19-Jan-2016
567,Revenue,CAHD,Bed Purchasing - South,Permanent Nursing,Saffron Gardens Nursing Home,2011.96, 19-Jan-2016
568,Revenue,CAHD,Bed Purchasing - South,Permanent Nursing,Saffron Gardens Nursing Home,2113.48, 19-Jan-2016
569,Revenue,CAHD,Bed Purchasing - South,Permanent Nursing,Saffron Gardens Nursing Home,2090.64, 19-Jan-2016
570,Revenue,CAHD,Bed Purchasing - South,Permanent Nursing,Saffron Gardens Nursing Home,1890.76, 19-Jan-2016
571,Revenue,CAHD,Bed Purchasing - South,Permanent Residential,Saffron Gardens Nursing Home,1308.56, 19-Jan-2016
572,Revenue,CAHD,Bed Purchasing - South,Permanent Residential,Salters Hill Barn,2027.52, 19-Jan-2016
573,Revenue,CAHD,Bed Purchasing - South,Permanent Residential,Scope   Accounts Dept,3107.40, 19-Jan-2016
574,Revenue,CAHD,Bed Purchasing - South,Permanent Residential,Shaldon House (Positive Care Ltd),2252.04, 19-Jan-2016
575,Revenue,CAHD,Bed Purchasing - South,Permanent Nursing,Shaw Healthcare Ltd,2110.72, 19-Jan-2016
576,Revenue,CAHD,Bed Purchasing - South,Permanent Nursing,Shaw Healthcare Ltd,2100.88, 19-Jan-2016
577,Revenue,CAHD,Bed Purchasing - South,Permanent Residential,Shaw Healthcare Ltd,10013.56, 19-Jan-2016
578,Revenue,CAHD,Bed Purchasing - South,Permanent Residential,Shaw Healthcare Ltd,4001.68, 19-Jan-2016
579,Revenue,CAHD,Bed Purchasing - South,Permanent Residential,St Brigas,2036.64, 19-Jan-2016
580,Revenue,CAHD,Bed Purchasing - South,Permanent Residential,St Brigas,3053.76, 19-Jan-2016
581,Revenue,CAHD,Bed Purchasing - South,Permanent Residential,St Brigas,2056.44, 19-Jan-2016
582,Revenue,CAHD,Bed Purchasing - South,Permanent Nursing,St George Nursing Home,1330.80, 19-Jan-2016
583,Revenue,CAHD,Bed Purchasing - South,Permanent Nursing,St George Nursing Home,1330.80, 19-Jan-2016
584,Revenue,CAHD,Bed Purchasing - South,Permanent Nursing,St George Nursing Home,1330.80, 19-Jan-2016
585,Revenue,CAHD,Bed Purchasing - South,Permanent Nursing,St George Nursing Home,570.35, 19-Jan-2016
586,Revenue,CAHD,Bed Purchasing - South,Permanent Nursing,Stanley House,7456.12, 19-Jan-2016
587,Revenue,CAHD,Bed Purchasing - South,Permanent Residential,Stepping Stones Re-Sett. Unit,7679.12, 19-Jan-2016
588,Revenue,CAHD,Bed Purchasing - South,Permanent Residential,The Beeches,1270.80, 19-Jan-2016
589,Revenue,CAHD,Bed Purchasing - South,Permanent Residential,The Gables Residential Home,1045.80, 19-Jan-2016
590,Revenue,CAHD,Bed Purchasing - South,Permanent Residential,The Garden House,755.44, 19-Jan-2016
591,Revenue,CAHD,Bed Purchasing - South,Respite Planned - Residential,The Garden House,2680.00, 19-Jan-2016
592,Revenue,CAHD,Bed Purchasing - South,Permanent Residential,The Garden House,1951.32, 19-Jan-2016
593,Revenue,CAHD,Bed Purchasing - South,Permanent Residential,The Garden House,871.08, 19-Jan-2016
594,Revenue,CAHD,Bed Purchasing - South,Permanent Residential,The Garden House,1202.52, 19-Jan-2016
595,Revenue,CAHD,Bed Purchasing - South,Permanent Residential,The Grove,1714.64, 19-Jan-2016
596,Revenue,CAHD,Bed Purchasing - South,Permanent Nursing,The Heathers,1281.64, 19-Jan-2016
597,Revenue,CAHD,Bed Purchasing - South,Permanent Nursing,The Heathers,1330.80, 19-Jan-2016
598,Revenue,CAHD,Bed Purchasing - South,Permanent Residential,The Manor House,3618.68, 19-Jan-2016
599,Revenue,CAHD,Bed Purchasing - South,Permanent Residential,The Manor House,3054.76, 19-Jan-2016
600,Revenue,CAHD,Bed Purchasing - South,Respite Planned - Residential,The Manor House,677.83, 19-Jan-2016
601,Revenue,CAHD,Bed Purchasing - South,Respite Planned - Residential,The Manor House,1016.76, 19-Jan-2016
602,Revenue,CAHD,Bed Purchasing - South,Respite Planned - Residential,The Manor House,676.28, 19-Jan-2016
603,Revenue,CAHD,Bed Purchasing - South,Permanent Residential,The Manor House,5021.72, 19-Jan-2016
604,Revenue,CAHD,Bed Purchasing - South,Permanent Residential,The Manor House,4747.16, 19-Jan-2016
605,Revenue,CAHD,Bed Purchasing - South,Permanent Residential,The Manor House,4031.20, 19-Jan-2016
606,Revenue,CAHD,Bed Purchasing - South,Permanent Residential,The Manor House,4893.00, 19-Jan-2016
607,Revenue,CAHD,Bed Purchasing - South,Permanent Residential,The Manor House,3422.52, 19-Jan-2016
608,Revenue,CAHD,Bed Purchasing - South,Permanent Residential,The Manor House,6149.60, 19-Jan-2016
609,Revenue,CAHD,Bed Purchasing - South,Permanent Residential,The Manor House,3335.52, 19-Jan-2016
610,Revenue,CAHD,Bed Purchasing - South,Permanent Residential,The Manor House,3469.76, 19-Jan-2016
611,Revenue,CAHD,Bed Purchasing - South,Permanent Residential,The Manor House,3302.80, 19-Jan-2016
612,Revenue,CAHD,Bed Purchasing - South,Permanent Residential,The Manor House,2889.92, 19-Jan-2016
613,Revenue,CAHD,Bed Purchasing - South,Permanent Residential,The Manor House,4461.48, 19-Jan-2016
614,Revenue,CAHD,Bed Purchasing - South,Permanent Residential,The Manor House,4416.68, 19-Jan-2016
615,Revenue,CAHD,Bed Purchasing - South,Permanent Residential,The Manor House,3315.80, 19-Jan-2016
616,Revenue,CAHD,Bed Purchasing - South,Respite Emergency - Residential,The Manor House,1731.43, 19-Jan-2016
617,Revenue,CAHD,Bed Purchasing - South,Respite Emergency - Residential,The Manor House,4328.57, 19-Jan-2016
618,Revenue,CAHD,Bed Purchasing - South,Permanent Residential,The Manor House,2740.16, 19-Jan-2016
619,Revenue,CAHD,Bed Purchasing - South,Permanent Residential,The Manor House,3295.56, 19-Jan-2016
620,Revenue,CAHD,Bed Purchasing - South,Permanent Residential,The Manor House,4823.32, 19-Jan-2016
621,Revenue,CAHD,Bed Purchasing - South,Permanent Residential,The Worthies,1442.80, 19-Jan-2016
622,Revenue,CAHD,Bed Purchasing - South,Permanent Residential,Tracs Group Ltd,6604.20, 19-Jan-2016
623,Revenue,CAHD,Bed Purchasing - South,Permanent Residential,Victoria Court,11596.52, 19-Jan-2016
624,Revenue,CAHD,Bed Purchasing - South,Permanent Residential,Visions,3640.36, 19-Jan-2016
625,Revenue,CAHD,Bed Purchasing - South,Permanent Residential,Voyage Care,3075.64, 19-Jan-2016
626,Revenue,CAHD,Bed Purchasing - South,Permanent Residential,Voyage Care,7145.84, 19-Jan-2016
627,Revenue,CAHD,Bed Purchasing - South,Permanent Residential,Voyage Care,5760.08, 19-Jan-2016
628,Revenue,CAHD,Bed Purchasing - South,Permanent Residential,Voyage Care,5398.80, 19-Jan-2016
629,Revenue,CAHD,Bed Purchasing - South,Permanent Residential,Voyage Care,6354.08, 19-Jan-2016
630,Revenue,CAHD,Bed Purchasing - South,Permanent Residential,Voyage Care,6312.20, 19-Jan-2016
631,Revenue,CAHD,Bed Purchasing - South,Permanent Residential,Voyage Care,5885.60, 19-Jan-2016
632,Revenue,CAHD,Bed Purchasing - South,Permanent Residential,Voyage Care,5326.76, 19-Jan-2016
633,Revenue,CAHD,Bed Purchasing - South,Permanent Residential,Wayside Residential Care Home,1046.68, 19-Jan-2016
634,Revenue,CAHD,Bed Purchasing - South,Permanent Residential,Wayside Residential Care Home,1518.88, 19-Jan-2016
635,Revenue,CAHD,Bed Purchasing - South,Permanent Residential,Wayside Residential Care Home,1634.80, 19-Jan-2016
636,Revenue,CAHD,Bed Purchasing - South,Permanent Residential,Wayside Residential Care Home,1195.00, 19-Jan-2016
637,Revenue,CAHD,Bed Purchasing - South,Permanent Nursing,Wayside Residential Care Home,1290.08, 19-Jan-2016
638,Revenue,CAHD,Bed Purchasing - South,Permanent Residential,Wayside Residential Care Home,1183.20, 19-Jan-2016
639,Revenue,CAHD,Bed Purchasing - South,Permanent Residential,Willows,1418.24, 19-Jan-2016
640,Revenue,CAHD,Bed Purchasing - South,Permanent Residential,Willows,1558.28, 19-Jan-2016
641,Revenue,CAHD,Bed Purchasing - South,Permanent Nursing,Woodlands Manor,1005.84, 19-Jan-2016
642,Revenue,CAHD,Bed Purchasing - North,Respite Planned - Residential,5Th Floor Harlech Court,38656.16, 19-Jan-2016
643,Revenue,CAHD,Bed Purchasing - North,Respite Planned - Residential,5Th Floor Harlech Court,11925.84, 19-Jan-2016
644,Revenue,CAHD,Bed Purchasing - North,Permanent Residential,5Th Floor Harlech Court,16769.20, 19-Jan-2016
645,Revenue,CAHD,Bed Purchasing - North,Permanent Nursing,ABI Development Limited,7046.44, 19-Jan-2016
646,Revenue,CAHD,Bed Purchasing - North,Permanent Residential,Ark Care Homes Ltd,10348.28, 19-Jan-2016
647,Revenue,CAHD,Bed Purchasing - North,Permanent Residential,Ash View House,2307.10, 19-Jan-2016
648,Revenue,CAHD,Bed Purchasing - North,Permanent Residential,Aspects 2 Limited,6428.16, 19-Jan-2016
649,Revenue,CAHD,Bed Purchasing - North,Respite Planned - Residential,Avery Homes WSM Limited,1060.00, 19-Jan-2016
650,Revenue,CAHD,Bed Purchasing - North,Permanent Residential,Beaufort House,1686.44, 19-Jan-2016
651,Revenue,CAHD,Bed Purchasing - North,Permanent Residential,Beaufort House,1894.80, 19-Jan-2016
652,Revenue,CAHD,Bed Purchasing - North,Permanent Residential,Beaufort House,2425.92, 19-Jan-2016
653,Revenue,CAHD,Bed Purchasing - North,Respite Planned - Residential,Beaufort House,4200.00, 19-Jan-2016
654,Revenue,CAHD,Bed Purchasing - North,Permanent Residential,Beaufort House,3789.60, 19-Jan-2016
655,Revenue,CAHD,Bed Purchasing - North,Permanent Residential,Beaufort House,1395.68, 19-Jan-2016
656,Revenue,CAHD,Bed Purchasing - North,Permanent Residential,Beaufort House,1822.84, 19-Jan-2016
657,Revenue,CAHD,Bed Purchasing - North,Permanent Residential,Beaufort House,1365.16, 19-Jan-2016
658,Revenue,CAHD,Bed Purchasing - North,Permanent Residential,Beaufort House,1960.72, 19-Jan-2016
659,Revenue,CAHD,Bed Purchasing - North,Respite Emergency - Residential,Beaufort House,600.00, 19-Jan-2016
660,Revenue,CAHD,Bed Purchasing - North,Respite Planned - Nursing,Beech House,2915.71, 19-Jan-2016
661,Revenue,CAHD,Bed Purchasing - North,Permanent Nursing,Beech House,1663.92, 19-Jan-2016
662,Revenue,CAHD,Bed Purchasing - North,Permanent Nursing,Beech House,2115.56, 19-Jan-2016
663,Revenue,CAHD,Bed Purchasing - North,Permanent Residential,Beech House,1442.80, 19-Jan-2016
664,Revenue,CAHD,Bed Purchasing - North,Permanent Residential,Beech House,1413.56, 19-Jan-2016
665,Revenue,CAHD,Bed Purchasing - North,Permanent Residential,Beech House,2386.80, 19-Jan-2016
666,Revenue,CAHD,Bed Purchasing - North,Permanent Nursing,Blossom Field,1393.52, 19-Jan-2016
667,Revenue,CAHD,Bed Purchasing - North,Permanent Nursing,Blossom Field,2850.96, 19-Jan-2016
668,Revenue,CAHD,Bed Purchasing - North,Permanent Nursing,Blossom Field,2729.24, 19-Jan-2016
669,Revenue,CAHD,Bed Purchasing - North,Permanent Nursing,Blossom Fields,1874.48, 14-Jan-2016
670,Revenue,CAHD,Bed Purchasing - North,Permanent Nursing,Blossom Fields,2616.92, 14-Jan-2016
671,Revenue,CAHD,Bed Purchasing - North,Permanent Residential,Bradley House,1546.32, 19-Jan-2016
672,Revenue,CAHD,Bed Purchasing - North,Permanent Residential,Bridge House Care Home,1533.60, 19-Jan-2016
673,Revenue,CAHD,Bed Purchasing - North,Permanent Residential,Bridge House Care Home,3173.72, 19-Jan-2016
674,Revenue,CAHD,Bed Purchasing - North,Permanent Residential,Bridge House Care Home,1079.20, 19-Jan-2016
675,Revenue,CAHD,Bed Purchasing - North,Permanent Residential,Bridge House Care Home,1531.48, 19-Jan-2016
676,Revenue,CAHD,Bed Purchasing - North,Permanent Residential,Bridge House Care Home,1544.60, 19-Jan-2016
677,Revenue,CAHD,Bed Purchasing - North,Permanent Residential,Bridgwater Court,10055.68, 19-Jan-2016
678,Revenue,CAHD,Bed Purchasing - North,Permanent Nursing,Brunelcare,2501.61, 25-Jan-2016
679,Revenue,CAHD,Bed Purchasing - North,Permanent Nursing,Brunelcare,2516.31, 25-Jan-2016
680,Revenue,CAHD,Bed Purchasing - North,Permanent Nursing,Brunelcare,2576.10, 25-Jan-2016
681,Revenue,CAHD,Bed Purchasing - North,Permanent Residential,Charlton House,919.52, 19-Jan-2016
682,Revenue,CAHD,Bed Purchasing - North,Permanent Residential,Church House,10621.16, 19-Jan-2016
683,Revenue,CAHD,Bed Purchasing - North,Permanent Residential,Church House,5984.56, 19-Jan-2016
684,Revenue,CAHD,Bed Purchasing - North,Permanent Residential,Creedy Court,12716.84, 19-Jan-2016
685,Revenue,CAHD,Bed Purchasing - North,Permanent Residential,Daneswood,9213.64, 19-Jan-2016
686,Revenue,CAHD,Bed Purchasing - North,Permanent Residential,East Court,2238.40, 19-Jan-2016
687,Revenue,CAHD,Bed Purchasing - North,Permanent Residential,Edgecumbe Lodge,1022.44, 19-Jan-2016
688,Revenue,CAHD,Bed Purchasing - North,Permanent Residential,Edgecumbe Lodge,1406.80, 19-Jan-2016
689,Revenue,CAHD,Bed Purchasing - North,Respite Emergency - Residential,Edgemont House Ltd,4757.14, 19-Jan-2016
690,Revenue,CAHD,Bed Purchasing - North,Respite Emergency - Residential,Edgemont House Ltd,1522.29, 19-Jan-2016
691,Revenue,CAHD,Bed Purchasing - North,Respite Emergency - Residential,Edgemont House Ltd,1332.00, 19-Jan-2016
692,Revenue,CAHD,Bed Purchasing - North,Permanent Nursing,Edgemont View Nursing Home,1232.16, 19-Jan-2016
693,Revenue,CAHD,Bed Purchasing - North,Permanent Residential,Epworth House,1053.36, 19-Jan-2016
694,Revenue,CAHD,Bed Purchasing - North,Permanent Nursing,Fairview Court,2410.80, 19-Jan-2016
695,Revenue,CAHD,Bed Purchasing - North,Permanent Residential,Fernbank,7790.28, 19-Jan-2016
696,Revenue,CAHD,Bed Purchasing - North,Permanent Nursing,Field House Care Home,2530.80, 19-Jan-2016
697,Revenue,CAHD,Bed Purchasing - North,Permanent Residential,Freeways Trust Ltd,2891.96, 19-Jan-2016
698,Revenue,CAHD,Bed Purchasing - North,Permanent Residential,Freeways Trust Ltd,3164.68, 19-Jan-2016
699,Revenue,CAHD,Bed Purchasing - North,Permanent Residential,Freeways Trust Ltd,2312.72, 19-Jan-2016
700,Revenue,CAHD,Bed Purchasing - North,Permanent Residential,Freeways Trust Ltd,2761.92, 19-Jan-2016
701,Revenue,CAHD,Bed Purchasing - North,Permanent Residential,Freeways Trust Ltd,2286.84, 19-Jan-2016
702,Revenue,CAHD,Bed Purchasing - North,Permanent Residential,Freeways Trust Ltd,2683.12, 19-Jan-2016
703,Revenue,CAHD,Bed Purchasing - North,Permanent Residential,Freeways Trust Ltd,3185.76, 19-Jan-2016
704,Revenue,CAHD,Bed Purchasing - North,Permanent Residential,Freeways Trust Ltd,3866.08, 19-Jan-2016
705,Revenue,CAHD,Bed Purchasing - North,Permanent Nursing,Fshc  1St Floor,1904.00, 19-Jan-2016
706,Revenue,CAHD,Bed Purchasing - North,Respite Emergency - Nursing,Fshc  1St Floor,1206.43, 19-Jan-2016
707,Revenue,CAHD,Bed Purchasing - North,Respite Emergency - Residential,Fshc  1St Floor,1206.43, 19-Jan-2016
708,Revenue,CAHD,Bed Purchasing - North,Respite Emergency - Nursing,Fshc  1St Floor,1206.43, 19-Jan-2016
709,Revenue,CAHD,Bed Purchasing - North,Permanent Nursing,Fshc  1St Floor,1097.68, 19-Jan-2016
710,Revenue,CAHD,Bed Purchasing - North,Permanent Residential,Fshc  1St Floor,1270.80, 19-Jan-2016
711,Revenue,CAHD,Bed Purchasing - North,Permanent Nursing,Fshc  1St Floor,1026.60, 19-Jan-2016
712,Revenue,CAHD,Bed Purchasing - North,Permanent Nursing,Fshc  1St Floor,1398.80, 19-Jan-2016
713,Revenue,CAHD,Bed Purchasing - North,Permanent Residential,Fshc  1St Floor,1248.40, 19-Jan-2016
714,Revenue,CAHD,Bed Purchasing - North,Permanent Nursing,Fshc  1St Floor,545.84, 19-Jan-2016
715,Revenue,CAHD,Bed Purchasing - North,Permanent Nursing,Fshc  1St Floor,1501.92, 19-Jan-2016
716,Revenue,CAHD,Bed Purchasing - North,Permanent Nursing,Fshc  1St Floor,1270.20, 19-Jan-2016
717,Revenue,CAHD,Bed Purchasing - North,Permanent Nursing,Fshc  1St Floor,908.28, 19-Jan-2016
718,Revenue,CAHD,Bed Purchasing - North,Permanent Nursing,Fshc  1St Floor,1398.80, 19-Jan-2016
719,Revenue,CAHD,Bed Purchasing - North,Permanent Nursing,Fshc  1St Floor,1489.56, 19-Jan-2016
720,Revenue,CAHD,Bed Purchasing - North,Permanent Residential,Fshc  1St Floor,1421.84, 19-Jan-2016
721,Revenue,CAHD,Bed Purchasing - North,Permanent Nursing,Fshc  1St Floor,1007.00, 19-Jan-2016
722,Revenue,CAHD,Bed Purchasing - North,Permanent Residential,Fshc  1St Floor,1268.08, 19-Jan-2016
723,Revenue,CAHD,Bed Purchasing - North,Permanent Residential,Fshc  1St Floor,731.16, 19-Jan-2016
724,Revenue,CAHD,Bed Purchasing - North,Permanent Nursing,Fshc  1St Floor,1422.80, 19-Jan-2016
725,Revenue,CAHD,Bed Purchasing - North,Permanent Residential,Fshc  1St Floor,1421.60, 19-Jan-2016
726,Revenue,CAHD,Bed Purchasing - North,Permanent Nursing,Fshc  1St Floor,1602.80, 19-Jan-2016
727,Revenue,CAHD,Bed Purchasing - North,Permanent Nursing,Fshc  1St Floor,1398.80, 19-Jan-2016
728,Revenue,CAHD,Bed Purchasing - North,Permanent Nursing,Fshc  1St Floor,1054.32, 19-Jan-2016
729,Revenue,CAHD,Bed Purchasing - North,Permanent Nursing,Fshc  1St Floor,1019.44, 19-Jan-2016
730,Revenue,CAHD,Bed Purchasing - North,Permanent Nursing,Fshc  1St Floor,1433.84, 19-Jan-2016
731,Revenue,CAHD,Bed Purchasing - North,Permanent Nursing,Fshc  1St Floor,1503.40, 19-Jan-2016
732,Revenue,CAHD,Bed Purchasing - North,Permanent Nursing,Fshc  1St Floor,1287.04, 19-Jan-2016
733,Revenue,CAHD,Bed Purchasing - North,Permanent Nursing,Fshc  1St Floor,1023.84, 19-Jan-2016
734,Revenue,CAHD,Bed Purchasing - North,Permanent Residential,Fshc  1St Floor,3034.68, 19-Jan-2016
735,Revenue,CAHD,Bed Purchasing - North,Permanent Nursing,Fshc  1St Floor,1405.04, 19-Jan-2016
736,Revenue,CAHD,Bed Purchasing - North,Permanent Nursing,Fshc  1St Floor,689.48, 19-Jan-2016
737,Revenue,CAHD,Bed Purchasing - North,Permanent Residential,Fshc  1St Floor,1179.64, 19-Jan-2016
738,Revenue,CAHD,Bed Purchasing - North,Permanent Nursing,Fshc  1St Floor,1144.52, 19-Jan-2016
739,Revenue,CAHD,Bed Purchasing - North,Respite Planned - Residential,Fshc  1St Floor,888.00, 19-Jan-2016
740,Revenue,CAHD,Bed Purchasing - North,Permanent Residential,Fshc  1St Floor,1233.32, 19-Jan-2016
741,Revenue,CAHD,Bed Purchasing - North,Permanent Nursing,Fshc  1St Floor,1356.20, 19-Jan-2016
742,Revenue,CAHD,Bed Purchasing - North,Permanent Nursing,Fshc  1St Floor,1364.16, 19-Jan-2016
743,Revenue,CAHD,Bed Purchasing - North,Permanent Nursing,Fshc  1St Floor,1430.00, 19-Jan-2016
744,Revenue,CAHD,Bed Purchasing - North,Permanent Nursing,Fshc  1St Floor,715.00, 19-Jan-2016
745,Revenue,CAHD,Bed Purchasing - North,Permanent Nursing,Fshc  1St Floor,845.84, 19-Jan-2016
746,Revenue,CAHD,Bed Purchasing - North,Permanent Nursing,Fshc  1St Floor,1506.80, 19-Jan-2016
747,Revenue,CAHD,Bed Purchasing - North,Permanent Nursing,Fshc  1St Floor,1374.32, 19-Jan-2016
748,Revenue,CAHD,Bed Purchasing - North,Permanent Nursing,Fshc  1St Floor,1302.52, 19-Jan-2016
749,Revenue,CAHD,Bed Purchasing - North,Permanent Nursing,Fshc  1St Floor,1411.28, 19-Jan-2016
750,Revenue,CAHD,Bed Purchasing - North,Permanent Residential,Fshc  1St Floor,1128.92, 19-Jan-2016
751,Revenue,CAHD,Bed Purchasing - North,Permanent Nursing,Fshc  1St Floor,1506.80, 19-Jan-2016
752,Revenue,CAHD,Bed Purchasing - North,Permanent Residential,Fshc  1St Floor,1050.88, 19-Jan-2016
753,Revenue,CAHD,Bed Purchasing - North,Permanent Nursing,Glebe House Nursing Home,2140.68, 19-Jan-2016
754,Revenue,CAHD,Bed Purchasing - North,Permanent Nursing,Glebe House Nursing Home,2257.08, 19-Jan-2016
755,Revenue,CAHD,Bed Purchasing - North,Permanent Nursing,Glebe House Nursing Home,2186.96, 19-Jan-2016
756,Revenue,CAHD,Bed Purchasing - North,Permanent Residential,Glebe House Nursing Home,2628.08, 19-Jan-2016
757,Revenue,CAHD,Bed Purchasing - North,Permanent Residential,Gordena Care Limited,4260.48, 19-Jan-2016
758,Revenue,CAHD,Bed Purchasing - North,Permanent Residential,Greensleeves,1344.52, 19-Jan-2016
759,Revenue,CAHD,Bed Purchasing - North,Permanent Nursing,Hambledon House,2988.36, 19-Jan-2016
760,Revenue,CAHD,Bed Purchasing - North,Permanent Nursing,Hc-One Ltd,1511.16, 19-Jan-2016
761,Revenue,CAHD,Bed Purchasing - North,Permanent Residential,Hc-One Ltd,2083.68, 19-Jan-2016
762,Revenue,CAHD,Bed Purchasing - North,Permanent Residential,Hc-One Ltd,2083.68, 19-Jan-2016
763,Revenue,CAHD,Bed Purchasing - North,Permanent Residential,Hc-One Ltd,1488.34, 19-Jan-2016
764,Revenue,CAHD,Bed Purchasing - North,Permanent Residential,Hc-One Ltd,2083.68, 19-Jan-2016
765,Revenue,CAHD,Bed Purchasing - North,Permanent Nursing,Hc-One Ltd,822.84, 19-Jan-2016
766,Revenue,CAHD,Bed Purchasing - North,Permanent Residential,Holmleigh Care Homes Ltd,4115.32, 19-Jan-2016
767,Revenue,CAHD,Bed Purchasing - North,Permanent Residential,Home Farm Trust Ltd  5-6 Brook Office Pa,2700.52, 19-Jan-2016
768,Revenue,CAHD,Bed Purchasing - North,Permanent Residential,Home Farm Trust Ltd  5-6 Brook Office Pa,3386.32, 19-Jan-2016
769,Revenue,CAHD,Bed Purchasing - North,Permanent Residential,Homes Caring For Autism Ltd  Churchill H,10015.24, 19-Jan-2016
770,Revenue,CAHD,Bed Purchasing - North,Respite Planned - Nursing,Horfield Care Limited,2217.17, 18-Jan-2016
771,Revenue,CAHD,Bed Purchasing - North,Respite Planned - Nursing,Horfield Care Limited,2291.08, 18-Jan-2016
772,Revenue,CAHD,Bed Purchasing - North,Permanent Residential,Kenver House Residential Home,1542.36, 19-Jan-2016
773,Revenue,CAHD,Bed Purchasing - North,Permanent Nursing,Kingfisher Lodge Care Centre,2531.88, 19-Jan-2016
774,Revenue,CAHD,Bed Purchasing - North,Permanent Residential,Kisimul Group,11512.80, 19-Jan-2016
775,Revenue,CAHD,Bed Purchasing - North,Permanent Nursing,Leonard Cheshire  National Account Centr,5090.88, 19-Jan-2016
776,Revenue,CAHD,Bed Purchasing - North,Permanent Residential,Leonard Cheshire  National Account Centr,2948.64, 19-Jan-2016
777,Revenue,CAHD,Bed Purchasing - North,Permanent Nursing,Leonard Cheshire  National Account Centr,3559.68, 19-Jan-2016
778,Revenue,CAHD,Bed Purchasing - North,Permanent Nursing,Leonard Cheshire  National Account Centr,2858.32, 19-Jan-2016
779,Revenue,CAHD,Bed Purchasing - North,Permanent Residential,Leonard Cheshire  National Account Centr,6024.88, 19-Jan-2016
780,Revenue,CAHD,Bed Purchasing - North,Permanent Residential,Leonard Cheshire  National Account Centr,6023.32, 19-Jan-2016
781,Revenue,CAHD,Bed Purchasing - North,Permanent Nursing,Leonard Cheshire  National Account Centr,2913.28, 19-Jan-2016
782,Revenue,CAHD,Bed Purchasing - North,Permanent Nursing,Leonard Cheshire  National Account Centr,3912.16, 19-Jan-2016
783,Revenue,CAHD,Bed Purchasing - North,Permanent Residential,Leonard Cheshire  National Account Centr,2965.36, 19-Jan-2016
784,Revenue,CAHD,Bed Purchasing - North,Permanent Nursing,Leonard Cheshire  National Account Centr,3306.84, 19-Jan-2016
785,Revenue,CAHD,Bed Purchasing - North,Permanent Nursing,Leonard Cheshire  National Account Centr,5663.60, 19-Jan-2016
786,Revenue,CAHD,Bed Purchasing - North,Permanent Nursing,Leonard Cheshire  National Account Centr,3363.96, 19-Jan-2016
787,Revenue,CAHD,Bed Purchasing - North,Permanent Nursing,Leonard Cheshire  National Account Centr,4167.96, 19-Jan-2016
788,Revenue,CAHD,Bed Purchasing - North,Permanent Residential,Little Croft,1230.92, 19-Jan-2016
789,Revenue,CAHD,Bed Purchasing - North,Permanent Residential,Little Croft,1217.96, 19-Jan-2016
790,Revenue,CAHD,Bed Purchasing - North,Permanent Residential,Little Croft,1075.60, 19-Jan-2016
791,Revenue,CAHD,Bed Purchasing - North,Permanent Residential,Little Croft,1408.44, 19-Jan-2016
792,Revenue,CAHD,Bed Purchasing - North,Permanent Residential,Littlecroft Residential Homes  Longcroft,6478.92, 19-Jan-2016
793,Revenue,CAHD,Bed Purchasing - North,Permanent Residential,Manton Hall Residential Home,1542.80, 19-Jan-2016
794,Revenue,CAHD,Bed Purchasing - North,Permanent Residential,Milestones - Unit 10,3496.32, 19-Jan-2016
795,Revenue,CAHD,Bed Purchasing - North,Permanent Nursing,Milestones - Unit 10,1440.08, 19-Jan-2016
796,Revenue,CAHD,Bed Purchasing - North,Permanent Residential,Milestones - Unit 10,8845.08, 19-Jan-2016
797,Revenue,CAHD,Bed Purchasing - North,Permanent Nursing,Milestones - Unit 10,4246.80, 19-Jan-2016
798,Revenue,CAHD,Bed Purchasing - North,Permanent Residential,Milestones - Unit 10,4062.96, 19-Jan-2016
799,Revenue,CAHD,Bed Purchasing - North,Permanent Residential,Milestones - Unit 10,4685.96, 19-Jan-2016
800,Revenue,CAHD,Bed Purchasing - North,Permanent Residential,Milestones - Unit 10,4349.92, 19-Jan-2016
801,Revenue,CAHD,Bed Purchasing - North,Permanent Nursing,Milestones - Unit 10,6971.80, 19-Jan-2016
802,Revenue,CAHD,Bed Purchasing - North,Permanent Residential,Milestones - Unit 10,3162.44, 19-Jan-2016
803,Revenue,CAHD,Bed Purchasing - North,Respite Emergency - Residential,Milestones - Unit 10,21678.83, 19-Jan-2016
804,Revenue,CAHD,Bed Purchasing - North,Permanent Nursing,Milestones - Unit 10,1330.80, 19-Jan-2016
805,Revenue,CAHD,Bed Purchasing - North,Permanent Nursing,Milestones - Unit 10,1460.24, 19-Jan-2016
806,Revenue,CAHD,Bed Purchasing - North,Permanent Nursing,Milestones - Unit 10,834.36, 19-Jan-2016
807,Revenue,CAHD,Bed Purchasing - North,Permanent Residential,Millennium House,1429.56, 19-Jan-2016
808,Revenue,CAHD,Bed Purchasing - North,Permanent Residential,Mostyn Lodge Residential Home,1239.80, 19-Jan-2016
809,Revenue,CAHD,Bed Purchasing - North,Permanent Residential,National Star College,5035.04, 19-Jan-2016
810,Revenue,CAHD,Bed Purchasing - North,Permanent Residential,NHS South Gloucestershire CCG,895.17, 19-Jan-2016
811,Revenue,CAHD,Bed Purchasing - North,Permanent Residential,Osbourne Court,2006.16, 19-Jan-2016
812,Revenue,CAHD,Bed Purchasing - North,Permanent Residential,Osbourne Court,18437.02, 19-Jan-2016
813,Revenue,CAHD,Bed Purchasing - North,Permanent Residential,Osbourne Court,2204.80, 19-Jan-2016
814,Revenue,CAHD,Bed Purchasing - North,Permanent Residential,Osbourne Court,1831.04, 19-Jan-2016
815,Revenue,CAHD,Bed Purchasing - North,Permanent Residential,Osbourne Court,2063.12, 19-Jan-2016
816,Revenue,CAHD,Bed Purchasing - North,Permanent Residential,Osbourne Court,1597.27, 19-Jan-2016
817,Revenue,CAHD,Bed Purchasing - North,Permanent Residential,Osbourne Court,862.42, 19-Jan-2016
818,Revenue,CAHD,Bed Purchasing - North,Permanent Residential,Park Farm House,826.76, 19-Jan-2016
819,Revenue,CAHD,Bed Purchasing - North,Permanent Residential,Park Hall,5258.76, 19-Jan-2016
820,Revenue,CAHD,Bed Purchasing - North,Permanent Residential,Park Hall,4371.04, 19-Jan-2016
821,Revenue,CAHD,Bed Purchasing - North,Permanent Nursing,Ravenswood,2218.80, 19-Jan-2016
822,Revenue,CAHD,Bed Purchasing - North,Permanent Nursing,Regent House,2018.20, 19-Jan-2016
823,Revenue,CAHD,Bed Purchasing - North,Permanent Nursing,Regent House,2081.48, 19-Jan-2016
824,Revenue,CAHD,Bed Purchasing - North,Permanent Residential,Shaw Healthcare Ltd,4185.36, 19-Jan-2016
825,Revenue,CAHD,Bed Purchasing - North,Permanent Nursing,St George Nursing Home,1901.14, 19-Jan-2016
826,Revenue,CAHD,Bed Purchasing - North,Permanent Nursing,St George Nursing Home,665.40, 19-Jan-2016
827,Revenue,CAHD,Bed Purchasing - North,Permanent Residential,St George Nursing Home,985.16, 19-Jan-2016
828,Revenue,CAHD,Bed Purchasing - North,Permanent Nursing,St Georges Nursing Home,2162.12, 19-Jan-2016
829,Revenue,CAHD,Bed Purchasing - North,Permanent Nursing,Stanley House,6432.28, 19-Jan-2016
830,Revenue,CAHD,Bed Purchasing - North,Permanent Nursing,Stinchcombe Manor,8728.57, 07-Jan-2016
831,Revenue,CAHD,Bed Purchasing - North,Permanent Residential,The Beeches,1473.56, 19-Jan-2016
832,Revenue,CAHD,Bed Purchasing - North,Permanent Residential,The Cidermill,1442.80, 19-Jan-2016
833,Revenue,CAHD,Bed Purchasing - North,Permanent Nursing,The Cidermill,1397.44, 19-Jan-2016
834,Revenue,CAHD,Bed Purchasing - North,Permanent Nursing,The Cidermill,1098.88, 19-Jan-2016
835,Revenue,CAHD,Bed Purchasing - North,Permanent Nursing,The Cidermill,1506.80, 19-Jan-2016
836,Revenue,CAHD,Bed Purchasing - North,Permanent Nursing,The Cidermill,962.00, 19-Jan-2016
837,Revenue,CAHD,Bed Purchasing - North,Permanent Nursing,The Cidermill,1225.44, 19-Jan-2016
838,Revenue,CAHD,Bed Purchasing - North,Permanent Residential,The Elms,1419.04, 19-Jan-2016
839,Revenue,CAHD,Bed Purchasing - North,Permanent Residential,The Garden House,1411.36, 19-Jan-2016
840,Revenue,CAHD,Bed Purchasing - North,Permanent Residential,The Garden House,2830.24, 19-Jan-2016
841,Revenue,CAHD,Bed Purchasing - North,Permanent Residential,The Garden House,1280.84, 19-Jan-2016
842,Revenue,CAHD,Bed Purchasing - North,Permanent Residential,The Garden House,1328.56, 19-Jan-2016
843,Revenue,CAHD,Bed Purchasing - North,Permanent Residential,The Grove,2138.08, 19-Jan-2016
844,Revenue,CAHD,Bed Purchasing - North,Permanent Residential,The Grove,1333.60, 19-Jan-2016
845,Revenue,CAHD,Bed Purchasing - North,Permanent Residential,The Grove,2163.32, 19-Jan-2016
846,Revenue,CAHD,Bed Purchasing - North,Permanent Residential,The Grove,1932.40, 19-Jan-2016
847,Revenue,CAHD,Bed Purchasing - North,Permanent Residential,The Grove,1474.80, 19-Jan-2016
848,Revenue,CAHD,Bed Purchasing - North,Permanent Residential,The Grove,2214.80, 19-Jan-2016
849,Revenue,CAHD,Bed Purchasing - North,Permanent Residential,The Grove,2246.64, 19-Jan-2016
850,Revenue,CAHD,Bed Purchasing - North,Permanent Nursing,The Heathers,914.80, 19-Jan-2016
851,Revenue,CAHD,Bed Purchasing - North,Permanent Nursing,The Heathers,1384.56, 19-Jan-2016
852,Revenue,CAHD,Bed Purchasing - North,Permanent Nursing,The Heathers,1277.64, 19-Jan-2016
853,Revenue,CAHD,Bed Purchasing - North,Permanent Nursing,The Heathers,999.68, 19-Jan-2016
854,Revenue,CAHD,Bed Purchasing - North,Permanent Nursing,The Hollies Nursing Home,1816.12, 19-Jan-2016
855,Revenue,CAHD,Bed Purchasing - North,Permanent Residential,The Manor House,3382.28, 19-Jan-2016
856,Revenue,CAHD,Bed Purchasing - North,Permanent Residential,The Manor House,4055.52, 19-Jan-2016
857,Revenue,CAHD,Bed Purchasing - North,Respite Planned - Residential,The Old Vicarage Residential Home,834.86, 19-Jan-2016
858,Revenue,CAHD,Bed Purchasing - North,Permanent Residential,The Old Vicarage Residential Home,1179.68, 19-Jan-2016
859,Revenue,CAHD,Bed Purchasing - North,Permanent Residential,The Thomas Moore Project,1983.60, 19-Jan-2016
860,Revenue,CAHD,Bed Purchasing - North,Permanent Residential,The Worthies,1377.20, 19-Jan-2016
861,Revenue,CAHD,Bed Purchasing - North,Permanent Residential,The Worthies,1039.68, 19-Jan-2016
862,Revenue,CAHD,Bed Purchasing - North,Permanent Residential,Tracs Group Ltd,6436.40, 19-Jan-2016
863,Revenue,CAHD,Bed Purchasing - North,Permanent Residential,Tracs Group Ltd,4693.32, 19-Jan-2016
864,Revenue,CAHD,Bed Purchasing - North,Permanent Residential,Ty Hafod Tudor,3976.76, 19-Jan-2016
865,Revenue,CAHD,Bed Purchasing - North,Permanent Residential,Victoria Court,8965.88, 19-Jan-2016
866,Revenue,CAHD,Bed Purchasing - North,Permanent Residential,Voyage Care,8461.32, 19-Jan-2016
867,Revenue,CAHD,Bed Purchasing - North,Permanent Nursing,Wellingore Hall,1606.54, 19-Jan-2016
868,Revenue,CAHD,Bed Purchasing - North,Permanent Residential,Wellingore Hall,1270.80, 19-Jan-2016
869,Revenue,CAHD,Bed Purchasing - North,Permanent Nursing,Westbury Nursing Home,2041.16, 19-Jan-2016
870,Revenue,CAHD,Bed Purchasing - North,Permanent Nursing,Westbury Nursing Home,2483.16, 19-Jan-2016
871,Revenue,CAHD,Bed Purchasing - North,Permanent Nursing,Wickwar Nursing Home  Castle House,1325.40, 19-Jan-2016
872,Revenue,CAHD,Bed Purchasing - North,Permanent Nursing,Wickwar Nursing Home  Castle House,1330.80, 19-Jan-2016
873,Revenue,CAHD,Bed Purchasing - North,Permanent Nursing,Wickwar Nursing Home  Castle House,1575.16, 19-Jan-2016
874,Revenue,CAHD,Bed Purchasing - North,Permanent Nursing,Wickwar Nursing Home  Castle House,899.84, 19-Jan-2016
875,Revenue,CAHD,Bed Purchasing - North,Permanent Nursing,Wickwar Nursing Home  Castle House,814.64, 19-Jan-2016
876,Revenue,CAHD,Bed Purchasing - North,Permanent Nursing,Wickwar Nursing Home  Castle House,761.96, 19-Jan-2016
877,Revenue,CAHD,Bed Purchasing - North,Permanent Nursing,Wickwar Nursing Home  Castle House,5137.48, 19-Jan-2016
878,Revenue,CAHD,Bed Purchasing - North,Permanent Nursing,Wickwar Nursing Home  Castle House,1240.08, 19-Jan-2016
879,Revenue,CAHD,Bed Purchasing - North,Permanent Residential,Wickwar Nursing Home  Castle House,1266.80, 19-Jan-2016
880,Revenue,CAHD,Bed Purchasing - North,Permanent Nursing,Wickwar Nursing Home  Castle House,1251.60, 19-Jan-2016
881,Revenue,CAHD,Bed Purchasing - North,Permanent Nursing,Willow Cottage,2082.12, 19-Jan-2016
882,Revenue,CAHD,Bed Purchasing - North,Permanent Nursing,Willow Cottage,2048.56, 19-Jan-2016
883,Revenue,CAHD,Bed Purchasing - North,Permanent Nursing,Willow Cottage,1424.96, 19-Jan-2016
884,Revenue,CAHD,Bed Purchasing - North,Permanent Residential,Willows,1734.44, 19-Jan-2016
885,Revenue,CAHD,Bed Purchasing - North,Permanent Residential,Windmill House,1157.96, 19-Jan-2016
886,Revenue,CAHD,Bed Purchasing - North,Permanent Residential,Windmill House,1077.80, 19-Jan-2016
887,Revenue,CAHD,Bed Purchasing - North,Permanent Residential,Windmill House,772.29, 19-Jan-2016
888,Revenue,CAHD,Bed Purchasing - North,Permanent Residential,Windmill House,1217.72, 19-Jan-2016
889,Revenue,CAHD,Bed Purchasing - North,Permanent Nursing,Woodlands Manor,2186.80, 19-Jan-2016
890,Revenue,CAHD,Bed Purchasing - North,Permanent Nursing,Woodlands Manor,1356.52, 19-Jan-2016
891,Revenue,CAHD,Bed Purchasing - North,Permanent Nursing,Woodlands Manor,2061.24, 19-Jan-2016
892,Revenue,CAHD,Bed Purchasing - North,Permanent Nursing,Woodlands Manor,5985.90, 19-Jan-2016
893,Revenue,CAHD,Bed Purchasing - North,Permanent Nursing,Woodlands Manor,1670.04, 19-Jan-2016
894,Revenue,CAHD,Bed Purchasing - North,Respite Planned - Residential,Yercombe Lodge,810.00, 19-Jan-2016
895,Revenue,CAHD,Bed Purchasing - Frenchay Hospital,Permanent Nursing,Horfield Care Limited,1322.83, 18-Jan-2016
896,Revenue,CAHD,Bed Purchasing - Frenchay Hospital,Permanent Nursing,Horfield Care Limited,1366.92, 18-Jan-2016
897,Revenue,CAHD,Bed Purchasing - Southmead Hospital,Permanent Nursing,Bayview Nursing & Residential Home,1494.36, 19-Jan-2016
898,Revenue,CAHD,Bed Purchasing - Southmead Hospital,Permanent Residential,Beaufort House,1270.48, 19-Jan-2016
899,Revenue,CAHD,Bed Purchasing - Southmead Hospital,Respite Planned - Nursing,Blossom Field,4800.00, 19-Jan-2016
900,Revenue,CAHD,Bed Purchasing - Southmead Hospital,Respite Planned - Nursing,Blossom Field,2057.14, 19-Jan-2016
901,Revenue,CAHD,Bed Purchasing - Southmead Hospital,Permanent Nursing,Blossom Fields,2111.72, 14-Jan-2016
902,Revenue,CAHD,Bed Purchasing - Southmead Hospital,Permanent Nursing,Brandon Trust,4603.08, 19-Jan-2016
903,Revenue,CAHD,Bed Purchasing - Southmead Hospital,Permanent Nursing,Brunelcare,2253.74, 25-Jan-2016
904,Revenue,CAHD,Bed Purchasing - Southmead Hospital,Permanent Nursing,Brunelcare,2498.20, 25-Jan-2016
905,Revenue,CAHD,Bed Purchasing - Southmead Hospital,Permanent Nursing,Brunelcare,1435.39, 25-Jan-2016
906,Revenue,CAHD,Bed Purchasing - Southmead Hospital,Permanent Nursing,Brunelcare,2461.13, 25-Jan-2016
907,Revenue,CAHD,Bed Purchasing - Southmead Hospital,Permanent Nursing,Brunelcare,2400.42, 25-Jan-2016
908,Revenue,CAHD,Bed Purchasing - Southmead Hospital,Permanent Nursing,Brunelcare,2576.10, 25-Jan-2016
909,Revenue,CAHD,Bed Purchasing - Southmead Hospital,Permanent Nursing,Brunelcare,2478.23, 25-Jan-2016
910,Revenue,CAHD,Bed Purchasing - Southmead Hospital,Permanent Nursing,Bupa Care Services  Bridge House,1924.68, 19-Jan-2016
911,Revenue,CAHD,Bed Purchasing - Southmead Hospital,Permanent Nursing,Bupa Care Services  Bridge House,1696.32, 19-Jan-2016
912,Revenue,CAHD,Bed Purchasing - Southmead Hospital,Permanent Nursing,Cholwell House Nursing Home Ltd,1989.76, 19-Jan-2016
913,Revenue,CAHD,Bed Purchasing - Southmead Hospital,Permanent Nursing,Churchill Property Services,1698.04, 19-Jan-2016
914,Revenue,CAHD,Bed Purchasing - Southmead Hospital,Permanent Residential,Cleeve Lodge,1475.80, 19-Jan-2016
915,Revenue,CAHD,Bed Purchasing - Southmead Hospital,Permanent Residential,Coombs Wood House,1192.80, 19-Jan-2016
916,Revenue,CAHD,Bed Purchasing - Southmead Hospital,Permanent Residential,Dylan House,790.41, 19-Jan-2016
917,Revenue,CAHD,Bed Purchasing - Southmead Hospital,Permanent Residential,Edgecumbe Lodge,1776.00, 19-Jan-2016
918,Revenue,CAHD,Bed Purchasing - Southmead Hospital,Permanent Residential,Edgecumbe Lodge,1617.48, 19-Jan-2016
919,Revenue,CAHD,Bed Purchasing - Southmead Hospital,Permanent Residential,Edgecumbe Lodge,1546.32, 19-Jan-2016
920,Revenue,CAHD,Bed Purchasing - Southmead Hospital,Permanent Residential,Edgemont House Ltd,1322.80, 19-Jan-2016
921,Revenue,CAHD,Bed Purchasing - Southmead Hospital,Permanent Nursing,Fairview Court,4356.90, 19-Jan-2016
922,Revenue,CAHD,Bed Purchasing - Southmead Hospital,Permanent Nursing,Fairview Court,1896.04, 19-Jan-2016
923,Revenue,CAHD,Bed Purchasing - Southmead Hospital,Permanent Nursing,Fairview Court,1204.96, 19-Jan-2016
924,Revenue,CAHD,Bed Purchasing - Southmead Hospital,Permanent Nursing,Fairview Court,2349.72, 19-Jan-2016
925,Revenue,CAHD,Bed Purchasing - Southmead Hospital,Permanent Residential,Fairview House,1043.16, 19-Jan-2016
926,Revenue,CAHD,Bed Purchasing - Southmead Hospital,Permanent Residential,Fairview House,1407.12, 19-Jan-2016
927,Revenue,CAHD,Bed Purchasing - Southmead Hospital,Permanent Residential,Faith House,560.04, 19-Jan-2016
928,Revenue,CAHD,Bed Purchasing - Southmead Hospital,Permanent Residential,Faith House,1252.12, 19-Jan-2016
929,Revenue,CAHD,Bed Purchasing - Southmead Hospital,Permanent Nursing,Frenchay Park Nursing Home,2200.00, 19-Jan-2016
930,Revenue,CAHD,Bed Purchasing - Southmead Hospital,Permanent Residential,Fshc  1St Floor,896.92, 19-Jan-2016
931,Revenue,CAHD,Bed Purchasing - Southmead Hospital,Permanent Nursing,Fshc  1St Floor,1308.48, 19-Jan-2016
932,Revenue,CAHD,Bed Purchasing - Southmead Hospital,Permanent Nursing,Fshc  1St Floor,1362.80, 19-Jan-2016
933,Revenue,CAHD,Bed Purchasing - Southmead Hospital,Permanent Nursing,Fshc  1St Floor,1398.80, 19-Jan-2016
934,Revenue,CAHD,Bed Purchasing - Southmead Hospital,Permanent Nursing,Fshc  1St Floor,1398.80, 19-Jan-2016
935,Revenue,CAHD,Bed Purchasing - Southmead Hospital,Permanent Nursing,Fshc  1St Floor,1064.28, 19-Jan-2016
936,Revenue,CAHD,Bed Purchasing - Southmead Hospital,Permanent Nursing,Fshc  1St Floor,1746.80, 19-Jan-2016
937,Revenue,CAHD,Bed Purchasing - Southmead Hospital,Permanent Nursing,Fshc  1St Floor,1398.80, 19-Jan-2016
938,Revenue,CAHD,Bed Purchasing - Southmead Hospital,Permanent Nursing,Fshc  1St Floor,1382.44, 19-Jan-2016
939,Revenue,CAHD,Bed Purchasing - Southmead Hospital,Permanent Nursing,Fshc  1St Floor,1398.80, 19-Jan-2016
940,Revenue,CAHD,Bed Purchasing - Southmead Hospital,Permanent Residential,Fshc  1St Floor,546.36, 19-Jan-2016
941,Revenue,CAHD,Bed Purchasing - Southmead Hospital,Permanent Nursing,Fshc  1St Floor,1398.80, 19-Jan-2016
942,Revenue,CAHD,Bed Purchasing - Southmead Hospital,Permanent Nursing,Fshc  1St Floor,1207.68, 19-Jan-2016
943,Revenue,CAHD,Bed Purchasing - Southmead Hospital,Permanent Nursing,Fshc  1St Floor,1398.80, 19-Jan-2016
944,Revenue,CAHD,Bed Purchasing - Southmead Hospital,Permanent Nursing,Fshc  1St Floor,1023.00, 19-Jan-2016
945,Revenue,CAHD,Bed Purchasing - Southmead Hospital,Permanent Nursing,Fshc  1St Floor,1622.04, 19-Jan-2016
946,Revenue,CAHD,Bed Purchasing - Southmead Hospital,Permanent Nursing,Fshc  1St Floor,935.04, 19-Jan-2016
947,Revenue,CAHD,Bed Purchasing - Southmead Hospital,Permanent Residential,Fshc  1St Floor,1158.00, 19-Jan-2016
948,Revenue,CAHD,Bed Purchasing - Southmead Hospital,Permanent Nursing,Fshc  1St Floor,1112.44, 19-Jan-2016
949,Revenue,CAHD,Bed Purchasing - Southmead Hospital,Permanent Nursing,Fshc  1St Floor,1132.12, 19-Jan-2016
950,Revenue,CAHD,Bed Purchasing - Southmead Hospital,Permanent Nursing,Fshc  1St Floor,25596.31, 19-Jan-2016
951,Revenue,CAHD,Bed Purchasing - Southmead Hospital,Permanent Nursing,Fshc  1St Floor,1315.04, 19-Jan-2016
952,Revenue,CAHD,Bed Purchasing - Southmead Hospital,Permanent Nursing,Fshc  1St Floor,1398.80, 19-Jan-2016
953,Revenue,CAHD,Bed Purchasing - Southmead Hospital,Permanent Nursing,Fshc  1St Floor,1130.76, 19-Jan-2016
954,Revenue,CAHD,Bed Purchasing - Southmead Hospital,Permanent Nursing,Fshc  1St Floor,2080.00, 19-Jan-2016
955,Revenue,CAHD,Bed Purchasing - Southmead Hospital,Permanent Nursing,Fshc  1St Floor,1393.24, 19-Jan-2016
956,Revenue,CAHD,Bed Purchasing - Southmead Hospital,Permanent Nursing,Fshc  1St Floor,1398.80, 19-Jan-2016
957,Revenue,CAHD,Bed Purchasing - Southmead Hospital,Permanent Residential,Fshc  1St Floor,619.48, 19-Jan-2016
958,Revenue,CAHD,Bed Purchasing - Southmead Hospital,Permanent Nursing,Fshc  1St Floor,1385.72, 19-Jan-2016
959,Revenue,CAHD,Bed Purchasing - Southmead Hospital,Permanent Nursing,Fshc  1St Floor,1108.28, 19-Jan-2016
960,Revenue,CAHD,Bed Purchasing - Southmead Hospital,Permanent Nursing,Fshc  1St Floor,1197.88, 19-Jan-2016
961,Revenue,CAHD,Bed Purchasing - Southmead Hospital,Permanent Residential,Fshc  1St Floor,1171.20, 19-Jan-2016
962,Revenue,CAHD,Bed Purchasing - Southmead Hospital,Permanent Nursing,Fshc  1St Floor,1344.04, 19-Jan-2016
963,Revenue,CAHD,Bed Purchasing - Southmead Hospital,Permanent Nursing,Fshc  1St Floor,1398.80, 19-Jan-2016
964,Revenue,CAHD,Bed Purchasing - Southmead Hospital,Permanent Nursing,Fshc  1St Floor,582.08, 19-Jan-2016
965,Revenue,CAHD,Bed Purchasing - Southmead Hospital,Permanent Nursing,Fshc  1St Floor,1398.80, 19-Jan-2016
966,Revenue,CAHD,Bed Purchasing - Southmead Hospital,Permanent Nursing,Fshc  1St Floor,874.00, 19-Jan-2016
967,Revenue,CAHD,Bed Purchasing - Southmead Hospital,Permanent Nursing,Fshc  1St Floor,1398.80, 19-Jan-2016
968,Revenue,CAHD,Bed Purchasing - Southmead Hospital,Permanent Nursing,Fshc  1St Floor,1329.40, 19-Jan-2016
969,Revenue,CAHD,Bed Purchasing - Southmead Hospital,Permanent Nursing,Fshc  1St Floor,1271.84, 19-Jan-2016
970,Revenue,CAHD,Bed Purchasing - Southmead Hospital,Permanent Nursing,Fshc  1St Floor,3981.79, 19-Jan-2016
971,Revenue,CAHD,Bed Purchasing - Southmead Hospital,Permanent Nursing,Fshc  1St Floor,1848.92, 19-Jan-2016
972,Revenue,CAHD,Bed Purchasing - Southmead Hospital,Permanent Nursing,Fshc  1St Floor,1335.04, 19-Jan-2016
973,Revenue,CAHD,Bed Purchasing - Southmead Hospital,Permanent Residential,Fshc  1St Floor,1494.80, 19-Jan-2016
974,Revenue,CAHD,Bed Purchasing - Southmead Hospital,Permanent Nursing,Fshc  1St Floor,1398.80, 19-Jan-2016
975,Revenue,CAHD,Bed Purchasing - Southmead Hospital,Permanent Nursing,Fshc  1St Floor,1252.64, 19-Jan-2016
976,Revenue,CAHD,Bed Purchasing - Southmead Hospital,Permanent Nursing,Fshc  1St Floor,1304.40, 19-Jan-2016
977,Revenue,CAHD,Bed Purchasing - Southmead Hospital,Permanent Nursing,Fshc  1St Floor,1398.80, 19-Jan-2016
978,Revenue,CAHD,Bed Purchasing - Southmead Hospital,Respite Emergency - Nursing,Fshc  1St Floor,1904.00, 19-Jan-2016
979,Revenue,CAHD,Bed Purchasing - Southmead Hospital,Permanent Nursing,Fshc  1St Floor,1398.80, 19-Jan-2016
980,Revenue,CAHD,Bed Purchasing - Southmead Hospital,Permanent Nursing,Fshc  1St Floor,1324.72, 19-Jan-2016
981,Revenue,CAHD,Bed Purchasing - Southmead Hospital,Permanent Residential,Fshc  1St Floor,1484.16, 19-Jan-2016
982,Revenue,CAHD,Bed Purchasing - Southmead Hospital,Permanent Nursing,Fshc  1St Floor,1398.80, 19-Jan-2016
983,Revenue,CAHD,Bed Purchasing - Southmead Hospital,Permanent Residential,Fshc  1St Floor,1131.52, 19-Jan-2016
984,Revenue,CAHD,Bed Purchasing - Southmead Hospital,Permanent Nursing,Fshc  1St Floor,813.60, 19-Jan-2016
985,Revenue,CAHD,Bed Purchasing - Southmead Hospital,Permanent Nursing,Fshc  1St Floor,1240.64, 19-Jan-2016
986,Revenue,CAHD,Bed Purchasing - Southmead Hospital,Permanent Nursing,Fshc  1St Floor,956.72, 19-Jan-2016
987,Revenue,CAHD,Bed Purchasing - Southmead Hospital,Permanent Nursing,Fshc  1St Floor,1566.40, 19-Jan-2016
988,Revenue,CAHD,Bed Purchasing - Southmead Hospital,Permanent Nursing,Fshc  1St Floor,1398.80, 19-Jan-2016
989,Revenue,CAHD,Bed Purchasing - Southmead Hospital,Permanent Nursing,Fshc  1St Floor,3280.16, 19-Jan-2016
990,Revenue,CAHD,Bed Purchasing - Southmead Hospital,Permanent Nursing,Fshc  1St Floor,894.72, 19-Jan-2016
991,Revenue,CAHD,Bed Purchasing - Southmead Hospital,Permanent Residential,Fshc  1St Floor,1381.92, 19-Jan-2016
992,Revenue,CAHD,Bed Purchasing - Southmead Hospital,Permanent Residential,Fshc  1St Floor,592.26, 19-Jan-2016
993,Revenue,CAHD,Bed Purchasing - Southmead Hospital,Permanent Nursing,Fshc  1St Floor,1430.00, 19-Jan-2016
994,Revenue,CAHD,Bed Purchasing - Southmead Hospital,Permanent Nursing,Fshc  1St Floor,1327.86, 19-Jan-2016
995,Revenue,CAHD,Bed Purchasing - Southmead Hospital,Permanent Nursing,Fshc  1St Floor,1327.86, 19-Jan-2016
996,Revenue,CAHD,Bed Purchasing - Southmead Hospital,Permanent Nursing,Fshc  1St Floor,1462.20, 19-Jan-2016
997,Revenue,CAHD,Bed Purchasing - Southmead Hospital,Permanent Nursing,Fshc  1St Floor,1355.76, 19-Jan-2016
998,Revenue,CAHD,Bed Purchasing - Southmead Hospital,Permanent Nursing,Fshc  1St Floor,1506.80, 19-Jan-2016
999,Revenue,CAHD,Bed Purchasing - Southmead Hospital,Permanent Nursing,Fshc  1St Floor,1574.80, 19-Jan-2016
1000,Revenue,CAHD,Bed Purchasing - Southmead Hospital,Permanent Residential,Fshc  1St Floor,1250.68, 19-Jan-2016
1001,Revenue,CAHD,Bed Purchasing - Southmead Hospital,Permanent Nursing,Fshc  1St Floor,1382.28, 19-Jan-2016
1002,Revenue,CAHD,Bed Purchasing - Southmead Hospital,Permanent Nursing,Fshc  1St Floor,1242.28, 19-Jan-2016
1003,Revenue,CAHD,Bed Purchasing - Southmead Hospital,Permanent Nursing,Fshc  1St Floor,950.80, 19-Jan-2016
1004,Revenue,CAHD,Bed Purchasing - Southmead Hospital,Permanent Nursing,Fshc  1St Floor,3752.77, 19-Jan-2016
1005,Revenue,CAHD,Bed Purchasing - Southmead Hospital,Permanent Nursing,Fshc  1St Floor,1101.28, 19-Jan-2016
1006,Revenue,CAHD,Bed Purchasing - Southmead Hospital,Permanent Residential,Fshc  1St Floor,808.44, 19-Jan-2016
1007,Revenue,CAHD,Bed Purchasing - Southmead Hospital,Permanent Nursing,Gracefields Nursing Home,1733.76, 19-Jan-2016
1008,Revenue,CAHD,Bed Purchasing - Southmead Hospital,Permanent Nursing,Gracefields Nursing Home,1655.96, 19-Jan-2016
1009,Revenue,CAHD,Bed Purchasing - Southmead Hospital,Permanent Nursing,Gracefields Nursing Home,883.28, 19-Jan-2016
1010,Revenue,CAHD,Bed Purchasing - Southmead Hospital,Permanent Nursing,Gracefields Nursing Home,1586.56, 19-Jan-2016
1011,Revenue,CAHD,Bed Purchasing - Southmead Hospital,Permanent Nursing,Gracefields Nursing Home,1539.00, 19-Jan-2016
1012,Revenue,CAHD,Bed Purchasing - Southmead Hospital,Permanent Residential,Granada House Residential Home,1043.36, 19-Jan-2016
1013,Revenue,CAHD,Bed Purchasing - Southmead Hospital,Permanent Residential,Gwendoline House,1282.04, 19-Jan-2016
1014,Revenue,CAHD,Bed Purchasing - Southmead Hospital,Permanent Residential,Gwendoline House,3164.41, 19-Jan-2016
1015,Revenue,CAHD,Bed Purchasing - Southmead Hospital,Permanent Nursing,Hc-One Ltd,1648.40, 19-Jan-2016
1016,Revenue,CAHD,Bed Purchasing - Southmead Hospital,Permanent Nursing,Hc-One Ltd,1455.24, 19-Jan-2016
1017,Revenue,CAHD,Bed Purchasing - Southmead Hospital,Permanent Nursing,Hc-One Ltd,2146.12, 19-Jan-2016
1018,Revenue,CAHD,Bed Purchasing - Southmead Hospital,Permanent Nursing,Hc-One Ltd,1540.80, 19-Jan-2016
1019,Revenue,CAHD,Bed Purchasing - Southmead Hospital,Respite Planned - Nursing,Hc-One Ltd,1169.14, 19-Jan-2016
1020,Revenue,CAHD,Bed Purchasing - Southmead Hospital,Permanent Nursing,Hc-One Ltd,1480.04, 19-Jan-2016
1021,Revenue,CAHD,Bed Purchasing - Southmead Hospital,Permanent Residential,Head Office,1694.80, 19-Jan-2016
1022,Revenue,CAHD,Bed Purchasing - Southmead Hospital,Permanent Residential,High Border Lodge,1442.40, 19-Jan-2016
1023,Revenue,CAHD,Bed Purchasing - Southmead Hospital,Permanent Residential,Highfield House,2092.56, 19-Jan-2016
1024,Revenue,CAHD,Bed Purchasing - Southmead Hospital,Permanent Residential,Highgate Studios,1179.08, 19-Jan-2016
1025,Revenue,CAHD,Bed Purchasing - Southmead Hospital,Permanent Nursing,Horfield Care Limited,1428.60, 18-Jan-2016
1026,Revenue,CAHD,Bed Purchasing - Southmead Hospital,Permanent Nursing,Horfield Care Limited,1787.96, 18-Jan-2016
1027,Revenue,CAHD,Bed Purchasing - Southmead Hospital,Respite Planned - Nursing,Horfield Care Limited,2217.17, 18-Jan-2016
1028,Revenue,CAHD,Bed Purchasing - Southmead Hospital,Permanent Nursing,Horfield Care Limited,1476.22, 18-Jan-2016
1029,Revenue,CAHD,Bed Purchasing - Southmead Hospital,Permanent Nursing,Horfield Care Limited,1847.56, 18-Jan-2016
1030,Revenue,CAHD,Bed Purchasing - Southmead Hospital,Respite Planned - Nursing,Horfield Care Limited,2291.08, 18-Jan-2016
1031,Revenue,CAHD,Bed Purchasing - Southmead Hospital,Permanent Residential,Kenver House Residential Home,1664.04, 19-Jan-2016
1032,Revenue,CAHD,Bed Purchasing - Southmead Hospital,Permanent Residential,Kenver House Residential Home,1685.08, 19-Jan-2016
1033,Revenue,CAHD,Bed Purchasing - Southmead Hospital,Respite Planned - Residential,Kenver House Residential Home,2190.28, 19-Jan-2016
1034,Revenue,CAHD,Bed Purchasing - Southmead Hospital,Permanent Residential,Kenver House Residential Home,1748.00, 19-Jan-2016
1035,Revenue,CAHD,Bed Purchasing - Southmead Hospital,Respite Planned - Residential,Kenver House Residential Home,4511.20, 19-Jan-2016
1036,Revenue,CAHD,Bed Purchasing - Southmead Hospital,Permanent Residential,Kenver House Residential Home,1570.80, 19-Jan-2016
1037,Revenue,CAHD,Bed Purchasing - Southmead Hospital,Permanent Residential,Kenver House Residential Home,1442.80, 19-Jan-2016
1038,Revenue,CAHD,Bed Purchasing - Southmead Hospital,Permanent Residential,Kenver House Residential Home,1685.00, 19-Jan-2016
1039,Revenue,CAHD,Bed Purchasing - Southmead Hospital,Permanent Nursing,Leonard Cheshire  National Account Centr,3075.12, 19-Jan-2016
1040,Revenue,CAHD,Bed Purchasing - Southmead Hospital,Permanent Residential,Little Croft,1085.24, 19-Jan-2016
1041,Revenue,CAHD,Bed Purchasing - Southmead Hospital,Permanent Residential,Little Croft,1269.32, 19-Jan-2016
1042,Revenue,CAHD,Bed Purchasing - Southmead Hospital,Permanent Residential,Little Croft,1300.28, 19-Jan-2016
1043,Revenue,CAHD,Bed Purchasing - Southmead Hospital,Permanent Residential,Little Croft,557.27, 19-Jan-2016
1044,Revenue,CAHD,Bed Purchasing - Southmead Hospital,Permanent Residential,Little Croft,1278.80, 19-Jan-2016
1045,Revenue,CAHD,Bed Purchasing - Southmead Hospital,Permanent Residential,Little Croft,2200.00, 19-Jan-2016
1046,Revenue,CAHD,Bed Purchasing - Southmead Hospital,Permanent Residential,Little Croft,1763.48, 19-Jan-2016
1047,Revenue,CAHD,Bed Purchasing - Southmead Hospital,Permanent Residential,Little Croft,1776.00, 19-Jan-2016
1048,Revenue,CAHD,Bed Purchasing - Southmead Hospital,Permanent Residential,Little Croft,1478.80, 19-Jan-2016
1049,Revenue,CAHD,Bed Purchasing - Southmead Hospital,Permanent Residential,Little Croft,1442.80, 19-Jan-2016
1050,Revenue,CAHD,Bed Purchasing - Southmead Hospital,Permanent Residential,Little Croft,1233.68, 19-Jan-2016
1051,Revenue,CAHD,Bed Purchasing - Southmead Hospital,Permanent Residential,Little Croft,1270.80, 19-Jan-2016
1052,Revenue,CAHD,Bed Purchasing - Southmead Hospital,Permanent Residential,Little Croft,1270.80, 19-Jan-2016
1053,Revenue,CAHD,Bed Purchasing - Southmead Hospital,Permanent Residential,Little Croft,1494.80, 19-Jan-2016
1054,Revenue,CAHD,Bed Purchasing - Southmead Hospital,Permanent Nursing,Majestic 3 Limited,1004.20, 19-Jan-2016
1055,Revenue,CAHD,Bed Purchasing - Southmead Hospital,Permanent Residential,Manor Cottage,1270.80, 19-Jan-2016
1056,Revenue,CAHD,Bed Purchasing - Southmead Hospital,Permanent Residential,Manor Cottage,1041.92, 19-Jan-2016
1057,Revenue,CAHD,Bed Purchasing - Southmead Hospital,Permanent Nursing,Milestones - Unit 10,5836.64, 19-Jan-2016
1058,Revenue,CAHD,Bed Purchasing - Southmead Hospital,Permanent Nursing,Milestones - Unit 10,1368.08, 19-Jan-2016
1059,Revenue,CAHD,Bed Purchasing - Southmead Hospital,Permanent Residential,Mostyn Lodge Residential Home,1143.20, 19-Jan-2016
1060,Revenue,CAHD,Bed Purchasing - Southmead Hospital,Permanent Residential,Nashley House Retirement Home,1270.80, 19-Jan-2016
1061,Revenue,CAHD,Bed Purchasing - Southmead Hospital,Respite Planned - Residential,Notaro Homes Ltd  Queensmead Court,6050.00, 19-Jan-2016
1062,Revenue,CAHD,Bed Purchasing - Southmead Hospital,Respite Emergency - Residential,Notaro Homes Ltd  Queensmead Court,3080.00, 19-Jan-2016
1063,Revenue,CAHD,Bed Purchasing - Southmead Hospital,Permanent Residential,Notaro Homes Ltd  Queensmead Court,1399.96, 19-Jan-2016
1064,Revenue,CAHD,Bed Purchasing - Southmead Hospital,Permanent Residential,Osbourne Court,973.08, 19-Jan-2016
1065,Revenue,CAHD,Bed Purchasing - Southmead Hospital,Respite Planned - Residential,Osbourne Court,820.00, 19-Jan-2016
1066,Revenue,CAHD,Bed Purchasing - Southmead Hospital,Permanent Nursing,Palm Court Nursing Home,1617.72, 19-Jan-2016
1067,Revenue,CAHD,Bed Purchasing - Southmead Hospital,Permanent Residential,Park Farm House,2600.00, 19-Jan-2016
1068,Revenue,CAHD,Bed Purchasing - Southmead Hospital,Permanent Nursing,Regent House,1306.84, 19-Jan-2016
1069,Revenue,CAHD,Bed Purchasing - Southmead Hospital,Permanent Nursing,Regent House,5038.40, 19-Jan-2016
1070,Revenue,CAHD,Bed Purchasing - Southmead Hospital,Permanent Nursing,Regent House,2007.40, 19-Jan-2016
1071,Revenue,CAHD,Bed Purchasing - Southmead Hospital,Permanent Nursing,Regent House,9831.00, 19-Jan-2016
1072,Revenue,CAHD,Bed Purchasing - Southmead Hospital,Permanent Nursing,Riversway Nursing Home,896.00, 19-Jan-2016
1073,Revenue,CAHD,Bed Purchasing - Southmead Hospital,Permanent Nursing,Riversway Nursing Home,2715.32, 19-Jan-2016
1074,Revenue,CAHD,Bed Purchasing - Southmead Hospital,Permanent Nursing,Saffron Gardens Nursing Home,2003.92, 19-Jan-2016
1075,Revenue,CAHD,Bed Purchasing - Southmead Hospital,Permanent Nursing,Saffron Gardens Nursing Home,1166.80, 19-Jan-2016
1076,Revenue,CAHD,Bed Purchasing - Southmead Hospital,Permanent Nursing,Saffron Gardens Nursing Home,1176.04, 19-Jan-2016
1077,Revenue,CAHD,Bed Purchasing - Southmead Hospital,Permanent Nursing,Saffron Gardens Nursing Home,2072.60, 19-Jan-2016
1078,Revenue,CAHD,Bed Purchasing - Southmead Hospital,Permanent Residential,Sanctuary Care Ltd,1924.64, 19-Jan-2016
1079,Revenue,CAHD,Bed Purchasing - Southmead Hospital,Permanent Nursing,St George Nursing Home,1330.80, 19-Jan-2016
1080,Revenue,CAHD,Bed Purchasing - Southmead Hospital,Permanent Nursing,St George Nursing Home,1265.59, 19-Jan-2016
1081,Revenue,CAHD,Bed Purchasing - Southmead Hospital,Permanent Nursing,St George Nursing Home,1330.80, 19-Jan-2016
1082,Revenue,CAHD,Bed Purchasing - Southmead Hospital,Permanent Nursing,St George Nursing Home,2662.91, 19-Jan-2016
1083,Revenue,CAHD,Bed Purchasing - Southmead Hospital,Permanent Nursing,St George Nursing Home,776.68, 19-Jan-2016
1084,Revenue,CAHD,Bed Purchasing - Southmead Hospital,Permanent Nursing,St George Nursing Home,1311.36, 19-Jan-2016
1085,Revenue,CAHD,Bed Purchasing - Southmead Hospital,Permanent Nursing,St George Nursing Home,1350.80, 19-Jan-2016
1086,Revenue,CAHD,Bed Purchasing - Southmead Hospital,Permanent Nursing,St George Nursing Home,1330.80, 19-Jan-2016
1087,Revenue,CAHD,Bed Purchasing - Southmead Hospital,Permanent Nursing,St Monicas Trust,1691.40, 19-Jan-2016
1088,Revenue,CAHD,Bed Purchasing - Southmead Hospital,Permanent Nursing,St Teresa`S Nursing Home,2009.88, 19-Jan-2016
1089,Revenue,CAHD,Bed Purchasing - Southmead Hospital,Permanent Nursing,St Teresa`S Nursing Home,2400.00, 19-Jan-2016
1090,Revenue,CAHD,Bed Purchasing - Southmead Hospital,Permanent Nursing,St Teresa`S Nursing Home,2400.00, 19-Jan-2016
1091,Revenue,CAHD,Bed Purchasing - Southmead Hospital,Permanent Nursing,St Teresa`S Nursing Home,919.72, 19-Jan-2016
1092,Revenue,CAHD,Bed Purchasing - Southmead Hospital,Permanent Residential,The Beeches,1563.64, 19-Jan-2016
1093,Revenue,CAHD,Bed Purchasing - Southmead Hospital,Permanent Nursing,The Cidermill,1836.00, 19-Jan-2016
1094,Revenue,CAHD,Bed Purchasing - Southmead Hospital,Permanent Residential,The Cidermill,978.04, 19-Jan-2016
1095,Revenue,CAHD,Bed Purchasing - Southmead Hospital,Permanent Residential,The Gables Residential Home,1385.20, 19-Jan-2016
1096,Revenue,CAHD,Bed Purchasing - Southmead Hospital,Permanent Residential,The Gables Residential Home,982.80, 19-Jan-2016
1097,Revenue,CAHD,Bed Purchasing - Southmead Hospital,Respite Planned - Residential,The Garden House,1337.14, 19-Jan-2016
1098,Revenue,CAHD,Bed Purchasing - Southmead Hospital,Permanent Residential,The Grove,1997.68, 19-Jan-2016
1099,Revenue,CAHD,Bed Purchasing - Southmead Hospital,Permanent Nursing,The Heathers,1346.80, 19-Jan-2016
1100,Revenue,CAHD,Bed Purchasing - Southmead Hospital,Permanent Nursing,The Heathers,1230.72, 19-Jan-2016
1101,Revenue,CAHD,Bed Purchasing - Southmead Hospital,Permanent Nursing,The Heathers,1287.92, 19-Jan-2016
1102,Revenue,CAHD,Bed Purchasing - Southmead Hospital,Permanent Nursing,The Heathers,1330.80, 19-Jan-2016
1103,Revenue,CAHD,Bed Purchasing - Southmead Hospital,Permanent Nursing,The Heathers,1427.60, 19-Jan-2016
1104,Revenue,CAHD,Bed Purchasing - Southmead Hospital,Permanent Nursing,The Heathers,1731.72, 19-Jan-2016
1105,Revenue,CAHD,Bed Purchasing - Southmead Hospital,Permanent Residential,The Worthies,1159.00, 19-Jan-2016
1106,Revenue,CAHD,Bed Purchasing - Southmead Hospital,Permanent Residential,The Worthies,1460.48, 19-Jan-2016
1107,Revenue,CAHD,Bed Purchasing - Southmead Hospital,Permanent Residential,Warley House,924.72, 19-Jan-2016
1108,Revenue,CAHD,Bed Purchasing - Southmead Hospital,Permanent Residential,Wayside Residential Care Home,1497.96, 19-Jan-2016
1109,Revenue,CAHD,Bed Purchasing - Southmead Hospital,Permanent Residential,Wellingore Hall,1570.40, 19-Jan-2016
1110,Revenue,CAHD,Bed Purchasing - Southmead Hospital,Permanent Nursing,Wickwar Nursing Home  Castle House,1323.88, 19-Jan-2016
1111,Revenue,CAHD,Bed Purchasing - Southmead Hospital,Permanent Nursing,Wickwar Nursing Home  Castle House,641.16, 19-Jan-2016
1112,Revenue,CAHD,Bed Purchasing - Southmead Hospital,Permanent Residential,Wickwar Nursing Home  Castle House,1270.80, 19-Jan-2016
1113,Revenue,CAHD,Bed Purchasing - Southmead Hospital,Permanent Nursing,Wickwar Nursing Home  Castle House,1836.00, 19-Jan-2016
1114,Revenue,CAHD,Bed Purchasing - Southmead Hospital,Permanent Nursing,Wickwar Nursing Home  Castle House,1218.16, 19-Jan-2016
1115,Revenue,CAHD,Bed Purchasing - Southmead Hospital,Permanent Residential,Wickwar Nursing Home  Castle House,1718.56, 19-Jan-2016
1116,Revenue,CAHD,Bed Purchasing - Southmead Hospital,Permanent Nursing,Wickwar Nursing Home  Castle House,1010.84, 19-Jan-2016
1117,Revenue,CAHD,Bed Purchasing - Southmead Hospital,Permanent Nursing,Wickwar Nursing Home  Castle House,1052.72, 19-Jan-2016
1118,Revenue,CAHD,Bed Purchasing - Southmead Hospital,Permanent Nursing,Wickwar Nursing Home  Castle House,832.72, 19-Jan-2016
1119,Revenue,CAHD,Bed Purchasing - Southmead Hospital,Permanent Nursing,Willow Cottage,1202.72, 19-Jan-2016
1120,Revenue,CAHD,Bed Purchasing - Southmead Hospital,Permanent Nursing,Willow Cottage,1330.40, 19-Jan-2016
1121,Revenue,CAHD,Bed Purchasing - Southmead Hospital,Permanent Residential,Willows,1570.00, 19-Jan-2016
1122,Revenue,CAHD,Bed Purchasing - Southmead Hospital,Permanent Residential,Willows,1449.60, 19-Jan-2016
1123,Revenue,CAHD,Bed Purchasing - Southmead Hospital,Permanent Residential,Windmill House,1270.80, 19-Jan-2016
1124,Revenue,CAHD,Bed Purchasing - Southmead Hospital,Permanent Residential,Windmill House,778.68, 19-Jan-2016
1125,Revenue,CAHD,Bed Purchasing - Southmead Hospital,Permanent Nursing,Woodland Health Care  Pinetree Court,1330.80, 19-Jan-2016
1126,Revenue,CAHD,Bed Purchasing - Southmead Hospital,Permanent Nursing,Woodlands Manor,1077.84, 19-Jan-2016
1127,Revenue,CAHD,Bed Purchasing - Southmead Hospital,Permanent Nursing,Woodlands Manor,1334.80, 19-Jan-2016
1128,Revenue,CAHD,South Glos Users in South Glos Homes,Permanent Nursing,Beaufort Grange Care Home,688.00, 19-Jan-2016
1129,Revenue,CAHD,South Glos Users in South Glos Homes,Permanent Nursing,Beaufort Grange Care Home,1104.00, 19-Jan-2016
1130,Revenue,CAHD,South Glos Users in South Glos Homes,Permanent Nursing,Beech House,1952.00, 19-Jan-2016
1131,Revenue,CAHD,South Glos Users in South Glos Homes,Permanent Nursing,Blossom Field,896.00, 19-Jan-2016
1132,Revenue,CAHD,South Glos Users in South Glos Homes,Permanent Nursing,Edgemont View Nursing Home,1008.00, 19-Jan-2016
1133,Revenue,CAHD,South Glos Users in South Glos Homes,Permanent Nursing,Fairview Court,832.00, 19-Jan-2016
1134,Revenue,CAHD,South Glos Users in South Glos Homes,Permanent Nursing,Fshc  1St Floor,848.00, 19-Jan-2016
1135,Revenue,CAHD,South Glos Users in South Glos Homes,Permanent Nursing,Fshc  1St Floor,1056.00, 19-Jan-2016
1136,Revenue,CAHD,South Glos Users in South Glos Homes,Permanent Nursing,Fshc  1St Floor,832.00, 19-Jan-2016
1137,Revenue,CAHD,South Glos Users in South Glos Homes,Permanent Nursing,Fshc  1St Floor,2288.00, 19-Jan-2016
1138,Revenue,CAHD,South Glos Users in South Glos Homes,Permanent Nursing,Fshc  1St Floor,992.00, 19-Jan-2016
1139,Revenue,CAHD,South Glos Users in South Glos Homes,Permanent Nursing,Fshc  1St Floor,2304.00, 19-Jan-2016
1140,Revenue,CAHD,South Glos Users in South Glos Homes,Permanent Nursing,Fshc  1St Floor,1552.00, 19-Jan-2016
1141,Revenue,CAHD,South Glos Users in South Glos Homes,Permanent Nursing,Glebe House Nursing Home,640.00, 19-Jan-2016
1142,Revenue,CAHD,South Glos Users in South Glos Homes,Permanent Nursing,Gracefields Nursing Home,672.00, 19-Jan-2016
1143,Revenue,CAHD,South Glos Users in South Glos Homes,Permanent Nursing,Gracefields Nursing Home,1520.00, 19-Jan-2016
1144,Revenue,CAHD,South Glos Users in South Glos Homes,Permanent Nursing,Gracefields Nursing Home,1104.00, 19-Jan-2016
1145,Revenue,CAHD,South Glos Users in South Glos Homes,Permanent Nursing,Milestones - Unit 10,2128.00, 19-Jan-2016
1146,Revenue,CAHD,South Glos Users in South Glos Homes,Permanent Nursing,Regent House,944.00, 19-Jan-2016
1147,Revenue,CAHD,South Glos Users in South Glos Homes,Permanent Nursing,The Heathers,1328.00, 19-Jan-2016
1148,Revenue,CAHD,South Glos Users in South Glos Homes,Permanent Nursing,Willow Cottage,832.00, 19-Jan-2016
1149,Revenue,CAHD,South Glos Users in South Glos Homes,Permanent Nursing,Willow Cottage,1104.00, 19-Jan-2016
1150,Revenue,CAHD,South Glos Users in South Glos Homes,Permanent Nursing,Woodlands Manor,1616.00, 19-Jan-2016
1151,Revenue,CAHD,South Glos Users in South Glos Homes,Permanent Nursing,Woodlands Manor,1200.00, 19-Jan-2016
1152,Revenue,CAHD,South Glos Users in South Glos Homes,Permanent Nursing,Woodlands Manor,1456.00, 19-Jan-2016
1153,Revenue,CAHD,Pathway 2 - (Interim Beds),Permanent Nursing,Avon Lodge Care Centre,20400.00, 15-Jan-2016
1154,Revenue,CAHD,Pathway 2 - (Interim Beds),Permanent Nursing,Brunelcare,15200.00, 22-Jan-2016
1155,Revenue,CAHD,Pathway 2 - (Interim Beds),Permanent Nursing,Fairview Court Care Home,10200.00, 08-Jan-2016
1156,Revenue,CAHD,Pathway 2 - (Interim Beds),Permanent Nursing,Windmill Care Limited,13040.00, 15-Jan-2016
1157,Revenue,CAHD,Pathway 3 - (Complex Beds),Permanent Nursing,Beaufort Care Ltd,5200.00, 18-Jan-2016
1158,Revenue,CAHD,Pathway 3 - (Complex Beds),Permanent Nursing,Beaufort Care Ltd,5200.00, 26-Jan-2016
1159,Revenue,CAHD,Pathway 3 - (Complex Beds),Permanent Nursing,Frenchay House,3120.00, 07-Jan-2016
1160,Revenue,CAHD,Pathway 3 - (Complex Beds),Permanent Nursing,The Grove,5600.00, 25-Jan-2016
1161,Revenue,CAHD,South Glos Users in all other LA Homes,Permanent Nursing,Leonard Cheshire  National Account Centr,616.56, 19-Jan-2016
1162,Revenue,CAHD,Swift Dump Code,Permanent Residential,Cleeve Lodge,582.48, 19-Jan-2016
1163,Revenue,CAHD,Swift Dump Code,Permanent Residential,Fairview Court,4146.11, 19-Jan-2016
1164,Revenue,CAHD,Swift Dump Code,Permanent Residential,The Garden House,3868.33, 19-Jan-2016
1165,Revenue,CAHD,Swift Dump Code,Permanent Residential,The Garden House,7105.39, 19-Jan-2016
1166,Revenue,CAHD,Swift Dump Code,Permanent Residential,Woodlands Manor,1140.44, 19-Jan-2016
1167,Revenue,CAHD,Older People's Commissioned Se,Grants to Voluntary Bodies,The MS Therapy Centre Bristol,500.00, 04-Jan-2016
1168,Revenue,CAHD,Home Care - Elderly - South,Day Care / Social Activities,3 Trees Community Support Ltd,198.88, 05-Jan-2016
1169,Revenue,CAHD,Home Care - Elderly - South,Day Care / Social Activities,3 Trees Community Support Ltd,90.40, 08-Jan-2016
1170,Revenue,CAHD,Home Care - Elderly - South,Day Care / Social Activities,3 Trees Community Support Ltd,108.48, 08-Jan-2016
1171,Revenue,CAHD,Home Care - Elderly - South,Day Care / Social Activities,3 Trees Community Support Ltd,198.88, 27-Jan-2016
1172,Revenue,CAHD,Home Care - Elderly - South,Day Care / Social Activities,3 Trees Community Support Ltd,198.88, 27-Jan-2016
1173,Revenue,CAHD,Home Care - Elderly - South,Day Care / Social Activities,3 Trees Community Support Ltd,3522.80, 22-Jan-2016
1174,Revenue,CAHD,Home Care - Elderly - South,Other Small Contracts,Agincare Chippenham,1851.85, 12-Jan-2016
1175,Revenue,CAHD,Home Care - Elderly - South,Other Small Contracts,Agincare Chippenham,1759.45, 12-Jan-2016
1176,Revenue,CAHD,Home Care - Elderly - South,Other Small Contracts,Agincare Chippenham,1493.80, 12-Jan-2016
1177,Revenue,CAHD,Home Care - Elderly - South,Other Small Contracts,Agincare UK Limited,1170.40, 08-Jan-2016
1178,Revenue,CAHD,Home Care - Elderly - South,Other Small Contracts,Agincare UK Limited,985.60, 08-Jan-2016
1179,Revenue,CAHD,Home Care - Elderly - South,Other Small Contracts,Agincare UK Limited,947.10, 12-Jan-2016
1180,Revenue,CAHD,Home Care - Elderly - South,Other Small Contracts,AliMo Care Ltd,1011.56, 06-Jan-2016
1181,Revenue,CAHD,Home Care - Elderly - South,Other Small Contracts,AliMo Care Ltd,1124.42, 13-Jan-2016
1182,Revenue,CAHD,Home Care - Elderly - South,Other Small Contracts,AliMo Care Ltd,1287.44, 21-Jan-2016
1183,Revenue,CAHD,Home Care - Elderly - South,Other Small Contracts,AliMo Care Ltd,1178.76, 28-Jan-2016
1184,Revenue,CAHD,Home Care - Elderly - South,Day Care / Social Activities,Britannia House,693.60, 19-Jan-2016
1185,Revenue,CAHD,Home Care - Elderly - South,Day Care / Social Activities,Britannia House,1156.00, 19-Jan-2016
1186,Revenue,CAHD,Home Care - Elderly - South,Day Care / Social Activities,Britannia House,693.60, 19-Jan-2016
1187,Revenue,CAHD,Home Care - Elderly - South,Day Care / Social Activities,Britannia House,693.60, 19-Jan-2016
1188,Revenue,CAHD,Home Care - Elderly - South,Day Care / Social Activities,Britannia House,693.60, 19-Jan-2016
1189,Revenue,CAHD,Home Care - Elderly - South,Other Small Contracts,Brunelcare,2783.62, 27-Jan-2016
1190,Revenue,CAHD,Home Care - Elderly - South,Other Small Contracts,Care 1st Homecare,4220.25, 13-Jan-2016
1191,Revenue,CAHD,Home Care - Elderly - South,Supported Living,Care 1st Homecare,21.25, 13-Jan-2016
1192,Revenue,CAHD,Home Care - Elderly - South,Other Small Contracts,Care 1st Homecare,4904.50, 13-Jan-2016
1193,Revenue,CAHD,Home Care - Elderly - South,Supported Living,Care 1st Homecare,12.75, 13-Jan-2016
1194,Revenue,CAHD,Home Care - Elderly - South,Other Small Contracts,Care 1st Homecare,4993.75, 13-Jan-2016
1195,Revenue,CAHD,Home Care - Elderly - South,Supported Living,Care 1st Homecare,17.00, 13-Jan-2016
1196,Revenue,CAHD,Home Care - Elderly - South,Other Small Contracts,Care 1st Homecare,6137.00, 13-Jan-2016
1197,Revenue,CAHD,Home Care - Elderly - South,Supported Living,Care 1st Homecare,21.25, 13-Jan-2016
1198,Revenue,CAHD,Home Care - Elderly - South,Day Care / Social Activities,Care 1st Homecare,102.00, 13-Jan-2016
1199,Revenue,CAHD,Home Care - Elderly - South,Other Small Contracts,Care 1st Homecare,5801.25, 13-Jan-2016
1200,Revenue,CAHD,Home Care - Elderly - South,Supported Living,Care 1st Homecare,25.50, 13-Jan-2016
1201,Revenue,CAHD,Home Care - Elderly - South,Other Small Contracts,Care 1st Homecare,5805.50, 13-Jan-2016
1202,Revenue,CAHD,Home Care - Elderly - South,Supported Living,Care 1st Homecare,8.50, 13-Jan-2016
1203,Revenue,CAHD,Home Care - Elderly - South,Other Small Contracts,Care Horizons Limited,364.50, 20-Jan-2016
1204,Revenue,CAHD,Home Care - Elderly - South,Other Small Contracts,Care Horizons Limited,288.00, 20-Jan-2016
1205,Revenue,CAHD,Home Care - Elderly - South,Other Small Contracts,Care Horizons Limited,342.00, 20-Jan-2016
1206,Revenue,CAHD,Home Care - Elderly - South,Other Small Contracts,Care Horizons Limited,319.50, 20-Jan-2016
1207,Revenue,CAHD,Home Care - Elderly - South,Other Small Contracts,Care Horizons Limited,346.50, 20-Jan-2016
1208,Revenue,CAHD,Home Care - Elderly - South,Other Small Contracts,Care UK,3545.21, 05-Jan-2016
1209,Revenue,CAHD,Home Care - Elderly - South,Other Small Contracts,Carers R Us (Bristol) Limited,642.36, 12-Jan-2016
1210,Revenue,CAHD,Home Care - Elderly - South,Other Small Contracts,Carers R Us (Bristol) Limited,553.48, 12-Jan-2016
1211,Revenue,CAHD,Home Care - Elderly - South,Other Small Contracts,Carers R Us (Bristol) Limited,638.32, 12-Jan-2016
1212,Revenue,CAHD,Home Care - Elderly - South,Other Small Contracts,Cherish Able Care Limited,4903.64, 08-Jan-2016
1213,Revenue,CAHD,Home Care - Elderly - South,Other Small Contracts,Cherish Able Care Limited,5004.92, 14-Jan-2016
1214,Revenue,CAHD,Home Care - Elderly - South,Other Small Contracts,Cherish Able Care Limited,5042.90, 22-Jan-2016
1215,Revenue,CAHD,Home Care - Elderly - South,Other Small Contracts,Cherish Able Care Limited,4456.32, 29-Jan-2016
1216,Revenue,CAHD,Home Care - Elderly - South,Supported Living,Design House,2674.68, 19-Jan-2016
1217,Revenue,CAHD,Home Care - Elderly - South,Supported Living,Design House,2859.20, 19-Jan-2016
1218,Revenue,CAHD,Home Care - Elderly - South,Supported Living,Design House,2924.32, 19-Jan-2016
1219,Revenue,CAHD,Home Care - Elderly - South,Supported Living,Design House,2794.08, 19-Jan-2016
1220,Revenue,CAHD,Home Care - Elderly - South,Supported Living,Design House,2463.04, 19-Jan-2016
1221,Revenue,CAHD,Home Care - Elderly - South,Supported Living,Design House,2463.04, 19-Jan-2016
1222,Revenue,CAHD,Home Care - Elderly - South,Supported Living,Design House,2349.08, 19-Jan-2016
1223,Revenue,CAHD,Home Care - Elderly - South,Supported Living,Design House,3800.40, 19-Jan-2016
1224,Revenue,CAHD,Home Care - Elderly - South,Supported Living,Design House,2707.24, 19-Jan-2016
1225,Revenue,CAHD,Home Care - Elderly - South,Supported Living,Design House,2756.08, 19-Jan-2016
1226,Revenue,CAHD,Home Care - Elderly - South,Supported Living,Design House,2107.28, 19-Jan-2016
1227,Revenue,CAHD,Home Care - Elderly - South,Supported Living,Design House,2107.28, 19-Jan-2016
1228,Revenue,CAHD,Home Care - Elderly - South,Day Care / Social Activities,Dhek Bhal,196.00, 20-Jan-2016
1229,Revenue,CAHD,Home Care - Elderly - South,Other Small Contracts,Dhek Bhal,279.30, 20-Jan-2016
1230,Revenue,CAHD,Home Care - Elderly - South,Day Care / Social Activities,Dhek Bhal,196.00, 07-Jan-2016
1231,Revenue,CAHD,Home Care - Elderly - South,Other Small Contracts,Dhek Bhal,249.90, 07-Jan-2016
1232,Revenue,CAHD,Home Care - Elderly - South,Day Care / Social Activities,Dhek Bhal,196.00, 12-Jan-2016
1233,Revenue,CAHD,Home Care - Elderly - South,Other Small Contracts,Dhek Bhal,196.00, 12-Jan-2016
1234,Revenue,CAHD,Home Care - Elderly - South,Day Care / Social Activities,DoCare Ltd,40.24, 27-Jan-2016
1235,Revenue,CAHD,Home Care - Elderly - South,Other Small Contracts,DoCare Ltd,1664.93, 27-Jan-2016
1236,Revenue,CAHD,Home Care - Elderly - South,Day Care / Social Activities,DoCare Ltd,40.24, 27-Jan-2016
1237,Revenue,CAHD,Home Care - Elderly - South,Other Small Contracts,DoCare Ltd,1695.11, 27-Jan-2016
1238,Revenue,CAHD,Home Care - Elderly - South,Day Care / Social Activities,DoCare Ltd,35.21, 27-Jan-2016
1239,Revenue,CAHD,Home Care - Elderly - South,Other Small Contracts,DoCare Ltd,1755.47, 27-Jan-2016
1240,Revenue,CAHD,Home Care - Elderly - South,Other Small Contracts,DoCare Ltd,1408.40, 27-Jan-2016
1241,Revenue,CAHD,Home Care - Elderly - South,Other Small Contracts,DoCare Ltd,1438.58, 27-Jan-2016
1242,Revenue,CAHD,Home Care - Elderly - South,Day Care / Social Activities,DoCare Ltd,40.24, 27-Jan-2016
1243,Revenue,CAHD,Home Care - Elderly - South,Other Small Contracts,DoCare Ltd,1519.06, 27-Jan-2016
1244,Revenue,CAHD,Home Care - Elderly - South,Day Care / Social Activities,Easton Community Centre,526.08, 19-Jan-2016
1245,Revenue,CAHD,Home Care - Elderly - South,Day Care / Social Activities,Easton Community Centre,526.08, 19-Jan-2016
1246,Revenue,CAHD,Home Care - Elderly - South,Day Care / Social Activities,Easton Community Centre,613.76, 19-Jan-2016
1247,Revenue,CAHD,Home Care - Elderly - South,Day Care / Social Activities,Eclipse Office Park,743.04, 19-Jan-2016
1248,Revenue,CAHD,Home Care - Elderly - South,Day Care / Social Activities,Eclipse Office Park,619.20, 19-Jan-2016
1249,Revenue,CAHD,Home Care - Elderly - South,Day Care / Social Activities,Eclipse Office Park,743.04, 19-Jan-2016
1250,Revenue,CAHD,Home Care - Elderly - South,Day Care / Social Activities,Eclipse Office Park,866.88, 19-Jan-2016
1251,Revenue,CAHD,Home Care - Elderly - South,Day Care / Social Activities,Eclipse Office Park,743.04, 19-Jan-2016
1252,Revenue,CAHD,Home Care - Elderly - South,Day Care / Social Activities,Eclipse Office Park,866.88, 19-Jan-2016
1253,Revenue,CAHD,Home Care - Elderly - South,Day Care / Social Activities,Eclipse Office Park,1238.40, 19-Jan-2016
1254,Revenue,CAHD,Home Care - Elderly - South,Day Care / Social Activities,Eclipse Office Park,743.04, 19-Jan-2016
1255,Revenue,CAHD,Home Care - Elderly - South,Day Care / Social Activities,Eclipse Office Park,866.88, 19-Jan-2016
1256,Revenue,CAHD,Home Care - Elderly - South,Day Care / Social Activities,Eclipse Office Park,990.72, 19-Jan-2016
1257,Revenue,CAHD,Home Care - Elderly - South,Day Care / Social Activities,Elite Home Care Ltd,35.36, 12-Jan-2016
1258,Revenue,CAHD,Home Care - Elderly - South,Other Small Contracts,Elite Home Care Ltd,5115.23, 12-Jan-2016
1259,Revenue,CAHD,Home Care - Elderly - South,Day Care / Social Activities,Elite Home Care Ltd,35.36, 12-Jan-2016
1260,Revenue,CAHD,Home Care - Elderly - South,Other Small Contracts,Elite Home Care Ltd,5573.62, 12-Jan-2016
1261,Revenue,CAHD,Home Care - Elderly - South,Day Care / Social Activities,Elite Home Care Ltd,35.36, 20-Jan-2016
1262,Revenue,CAHD,Home Care - Elderly - South,Other Small Contracts,Elite Home Care Ltd,6050.98, 20-Jan-2016
1263,Revenue,CAHD,Home Care - Elderly - South,Day Care / Social Activities,Elite Home Care Ltd,35.36, 27-Jan-2016
1264,Revenue,CAHD,Home Care - Elderly - South,Other Small Contracts,Elite Home Care Ltd,6024.46, 27-Jan-2016
1265,Revenue,CAHD,Home Care - Elderly - South,Other Small Contracts,Everycare (Bristol) Ltd,3822.70, 18-Jan-2016
1266,Revenue,CAHD,Home Care - Elderly - South,Other Small Contracts,Everycare (Bristol) Ltd,3461.50, 20-Jan-2016
1267,Revenue,CAHD,Home Care - Elderly - South,Other Small Contracts,Everycare (Bristol) Ltd,3680.80, 25-Jan-2016
1268,Revenue,CAHD,Home Care - Elderly - South,Other Small Contracts,Everycare (Bristol) Ltd,3775.40, 25-Jan-2016
1269,Revenue,CAHD,Home Care - Elderly - South,Other Small Contracts,Firstpoint Homecare Ltd,1820.52, 27-Jan-2016
1270,Revenue,CAHD,Home Care - Elderly - South,Other Small Contracts,Firstpoint Homecare Ltd,1828.30, 27-Jan-2016
1271,Revenue,CAHD,Home Care - Elderly - South,Day Care / Social Activities,Fourways Care Limited,380.00, 08-Jan-2016
1272,Revenue,CAHD,Home Care - Elderly - South,Other Small Contracts,Fourways Care Limited,2536.50, 08-Jan-2016
1273,Revenue,CAHD,Home Care - Elderly - South,Day Care / Social Activities,Fourways Care Limited,389.50, 12-Jan-2016
1274,Revenue,CAHD,Home Care - Elderly - South,Other Small Contracts,Fourways Care Limited,2660.00, 12-Jan-2016
1275,Revenue,CAHD,Home Care - Elderly - South,Day Care / Social Activities,Fourways Care Limited,389.50, 20-Jan-2016
1276,Revenue,CAHD,Home Care - Elderly - South,Other Small Contracts,Fourways Care Limited,2864.25, 20-Jan-2016
1277,Revenue,CAHD,Home Care - Elderly - South,Day Care / Social Activities,Fourways Care Limited,389.50, 25-Jan-2016
1278,Revenue,CAHD,Home Care - Elderly - South,Other Small Contracts,Fourways Care Limited,3011.50, 25-Jan-2016
1279,Revenue,CAHD,Home Care - Elderly - South,Day Care / Social Activities,Headway Bristol,294.56, 13-Jan-2016
1280,Revenue,CAHD,Home Care - Elderly - South,Day Care / Social Activities,Headway Bristol,294.56, 04-Jan-2016
1281,Revenue,CAHD,Home Care - Elderly - South,Day Care / Social Activities,Headway Bristol,336.64, 11-Jan-2016
1282,Revenue,CAHD,Home Care - Elderly - South,Day Care / Social Activities,Headway Bristol,210.40, 19-Jan-2016
1283,Revenue,CAHD,Home Care - Elderly - South,Other Small Contracts,Homecare 4U,858.14, 07-Jan-2016
1284,Revenue,CAHD,Home Care - Elderly - South,Other Small Contracts,Homecare 4U,858.14, 20-Jan-2016
1285,Revenue,CAHD,Home Care - Elderly - South,Other Small Contracts,Homecare 4U,918.29, 20-Jan-2016
1286,Revenue,CAHD,Home Care - Elderly - South,Other Small Contracts,Homecare 4U,910.27, 27-Jan-2016
1287,Revenue,CAHD,Home Care - Elderly - South,Day Care / Social Activities,Humphrey Repton Day Centre,2102.88, 19-Jan-2016
1288,Revenue,CAHD,Home Care - Elderly - South,Supported Living,Julia Simone- Supp. Ind.,1178.36, 19-Jan-2016
1289,Revenue,CAHD,Home Care - Elderly - South,Other Small Contracts,Kensington Community Care,940.68, 07-Jan-2016
1290,Revenue,CAHD,Home Care - Elderly - South,Other Small Contracts,Kensington Community Care,1049.22, 07-Jan-2016
1291,Revenue,CAHD,Home Care - Elderly - South,Other Small Contracts,Kensington Community Care,1113.54, 12-Jan-2016
1292,Revenue,CAHD,Home Care - Elderly - South,Other Small Contracts,Kensington Community Care,1226.10, 20-Jan-2016
1293,Revenue,CAHD,Home Care - Elderly - South,Other Small Contracts,Kumari Care Limited,1966.73, 20-Jan-2016
1294,Revenue,CAHD,Home Care - Elderly - South,Other Small Contracts,Kumari Care Limited,1700.85, 25-Jan-2016
1295,Revenue,CAHD,Home Care - Elderly - South,Other Small Contracts,Kumari Care Limited,1958.91, 18-Jan-2016
1296,Revenue,CAHD,Home Care - Elderly - South,Other Small Contracts,Kumari Care Limited,2060.57, 20-Jan-2016
1297,Revenue,CAHD,Home Care - Elderly - South,Other Small Contracts,Kumari Care Limited,2044.93, 27-Jan-2016
1298,Revenue,CAHD,Home Care - Elderly - South,Day Care / Social Activities,Lloyds TSB Commercial Finance Limited,3854.29, 27-Jan-2016
1299,Revenue,CAHD,Home Care - Elderly - South,Other Small Contracts,Lloyds TSB Commercial Finance Limited,5361.78, 27-Jan-2016
1300,Revenue,CAHD,Home Care - Elderly - South,Supported Living,Lloyds TSB Commercial Finance Limited,5982.39, 27-Jan-2016
1301,Revenue,CAHD,Home Care - Elderly - South,Day Care / Social Activities,Lloyds TSB Commercial Finance Limited,4489.21, 27-Jan-2016
1302,Revenue,CAHD,Home Care - Elderly - South,Other Small Contracts,Lloyds TSB Commercial Finance Limited,5357.71, 27-Jan-2016
1303,Revenue,CAHD,Home Care - Elderly - South,Supported Living,Lloyds TSB Commercial Finance Limited,5525.38, 27-Jan-2016
1304,Revenue,CAHD,Home Care - Elderly - South,Day Care / Social Activities,Lloyds TSB Commercial Finance Limited,4603.17, 27-Jan-2016
1305,Revenue,CAHD,Home Care - Elderly - South,Other Small Contracts,Lloyds TSB Commercial Finance Limited,5329.22, 27-Jan-2016
1306,Revenue,CAHD,Home Care - Elderly - South,Supported Living,Lloyds TSB Commercial Finance Limited,7997.37, 27-Jan-2016
1307,Revenue,CAHD,Home Care - Elderly - South,Supported Living,Maples Community Care Limited,1400.00, 19-Jan-2016
1308,Revenue,CAHD,Home Care - Elderly - South,Supported Living,Maples Community Care Limited,1400.00, 19-Jan-2016
1309,Revenue,CAHD,Home Care - Elderly - South,Supported Living,Maples Community Care Limited,5262.86, 19-Jan-2016
1310,Revenue,CAHD,Home Care - Elderly - South,Day Care / Social Activities,Mears Care,93.60, 07-Jan-2016
1311,Revenue,CAHD,Home Care - Elderly - South,Other Small Contracts,Mears Care,1372.80, 07-Jan-2016
1312,Revenue,CAHD,Home Care - Elderly - South,Private & Voluntary Home Care,Mears Care,49770.25, 28-Jan-2016
1313,Revenue,CAHD,Home Care - Elderly - South,Other Small Contracts,Medacs Home Care,84.96, 07-Jan-2016
1314,Revenue,CAHD,Home Care - Elderly - South,Other Small Contracts,Medacs Home Care,35.40, 07-Jan-2016
1315,Revenue,CAHD,Home Care - Elderly - South,Other Small Contracts,Medacs Home Care,31.86, 07-Jan-2016
1316,Revenue,CAHD,Home Care - Elderly - South,Other Small Contracts,Medacs Home Care,28.32, 07-Jan-2016
1317,Revenue,CAHD,Home Care - Elderly - South,Other Small Contracts,Medacs Home Care,24.78, 07-Jan-2016
1318,Revenue,CAHD,Home Care - Elderly - South,Other Small Contracts,Medacs Home Care,31.86, 07-Jan-2016
1319,Revenue,CAHD,Home Care - Elderly - South,Other Small Contracts,Medacs Home Care,24.78, 12-Jan-2016
1320,Revenue,CAHD,Home Care - Elderly - South,Other Small Contracts,Medacs Home Care,35.40, 20-Jan-2016
1321,Revenue,CAHD,Home Care - Elderly - South,Other Small Contracts,Medacs Home Care,28.32, 27-Jan-2016
1322,Revenue,CAHD,Home Care - Elderly - South,Supported Living,Milestones - Unit 10,3631.76, 19-Jan-2016
1323,Revenue,CAHD,Home Care - Elderly - South,Supported Living,Milestones - Unit 10,3631.76, 19-Jan-2016
1324,Revenue,CAHD,Home Care - Elderly - South,Supported Living,Milestones - Unit 10,3643.60, 19-Jan-2016
1325,Revenue,CAHD,Home Care - Elderly - South,Supported Living,Milestones - Unit 10,2317.68, 19-Jan-2016
1326,Revenue,CAHD,Home Care - Elderly - South,Supported Living,Milestones - Unit 10,3715.52, 19-Jan-2016
1327,Revenue,CAHD,Home Care - Elderly - South,Other Small Contracts,Milestones - Unit 10,3719.52, 19-Jan-2016
1328,Revenue,CAHD,Home Care - Elderly - South,Supported Living,Milestones - Unit 10,1251.04, 19-Jan-2016
1329,Revenue,CAHD,Home Care - Elderly - South,Supported Living,Milestones - Unit 10,2232.52, 19-Jan-2016
1330,Revenue,CAHD,Home Care - Elderly - South,Other Small Contracts,Milestones Homecare & Dementia Service,927.48, 15-Jan-2016
1331,Revenue,CAHD,Home Care - Elderly - South,Other Small Contracts,Milestones Homecare & Dementia Service,746.70, 29-Jan-2016
1332,Revenue,CAHD,Home Care - Elderly - South,Supported Living,Moving On,3110.64, 08-Jan-2016
1333,Revenue,CAHD,Home Care - Elderly - South,Supported Living,Moving On,3110.64, 08-Jan-2016
1334,Revenue,CAHD,Home Care - Elderly - South,Supported Living,Moving On,661.20, 26-Jan-2016
1335,Revenue,CAHD,Home Care - Elderly - South,Supported Living,Moving On,2644.80, 26-Jan-2016
1336,Revenue,CAHD,Home Care - Elderly - South,Supported Living,Moving On,991.80, 26-Jan-2016
1337,Revenue,CAHD,Home Care - Elderly - South,Supported Living,Moving On,1223.22, 07-Jan-2016
1338,Revenue,CAHD,Home Care - Elderly - South,Supported Living,Moving On,1223.22, 08-Jan-2016
1339,Revenue,CAHD,Home Care - Elderly - South,Supported Living,Moving On,1223.22, 26-Jan-2016
1340,Revenue,CAHD,Home Care - Elderly - South,Supported Living,Moving On,727.32, 26-Jan-2016
1341,Revenue,CAHD,Home Care - Elderly - South,Supported Living,Moving On (UK) Limited,2415.28, 19-Jan-2016
1342,Revenue,CAHD,Home Care - Elderly - South,Supported Living,Moving On (UK) Limited,2415.28, 19-Jan-2016
1343,Revenue,CAHD,Home Care - Elderly - South,Day Care / Social Activities,Mrs B Kimber -  CM2000,1936.00, 07-Jan-2016
1344,Revenue,CAHD,Home Care - Elderly - South,Other Small Contracts,Mrs B Kimber -  CM2000,9873.60, 07-Jan-2016
1345,Revenue,CAHD,Home Care - Elderly - South,Supported Living,Mrs B Kimber -  CM2000,33.28, 07-Jan-2016
1346,Revenue,CAHD,Home Care - Elderly - South,Day Care / Social Activities,Mrs B Kimber -  CM2000,1673.92, 20-Jan-2016
1347,Revenue,CAHD,Home Care - Elderly - South,Other Small Contracts,Mrs B Kimber -  CM2000,9399.04, 20-Jan-2016
1348,Revenue,CAHD,Home Care - Elderly - South,Supported Living,Mrs B Kimber -  CM2000,33.28, 20-Jan-2016
1349,Revenue,CAHD,Home Care - Elderly - South,Day Care / Social Activities,Mrs B Kimber -  CM2000,1912.20, 14-Jan-2016
1350,Revenue,CAHD,Home Care - Elderly - South,Other Small Contracts,Mrs B Kimber -  CM2000,10077.80, 14-Jan-2016
1351,Revenue,CAHD,Home Care - Elderly - South,Supported Living,Mrs B Kimber -  CM2000,29.71, 14-Jan-2016
1352,Revenue,CAHD,Home Care - Elderly - South,Day Care / Social Activities,NAS Services Limited,607.32, 07-Jan-2016
1353,Revenue,CAHD,Home Care - Elderly - South,Supported Living,NAS Services Limited,19.28, 07-Jan-2016
1354,Revenue,CAHD,Home Care - Elderly - South,Day Care / Social Activities,NAS Services Limited,549.48, 07-Jan-2016
1355,Revenue,CAHD,Home Care - Elderly - South,Supported Living,NAS Services Limited,28.92, 07-Jan-2016
1356,Revenue,CAHD,Home Care - Elderly - South,Day Care / Social Activities,NAS Services Limited,414.52, 07-Jan-2016
1357,Revenue,CAHD,Home Care - Elderly - South,Supported Living,NAS Services Limited,19.28, 07-Jan-2016
1358,Revenue,CAHD,Home Care - Elderly - South,Day Care / Social Activities,Nestor T/A Allied Healthcare,69.30, 12-Jan-2016
1359,Revenue,CAHD,Home Care - Elderly - South,Other Small Contracts,Nestor T/A Allied Healthcare,2511.67, 12-Jan-2016
1360,Revenue,CAHD,Home Care - Elderly - South,Day Care / Social Activities,Nestor T/A Allied Healthcare,69.30, 14-Jan-2016
1361,Revenue,CAHD,Home Care - Elderly - South,Other Small Contracts,Nestor T/A Allied Healthcare,2438.42, 14-Jan-2016
1362,Revenue,CAHD,Home Care - Elderly - South,Day Care / Social Activities,Nestor T/A Allied Healthcare,30.79, 21-Jan-2016
1363,Revenue,CAHD,Home Care - Elderly - South,Other Small Contracts,Nestor T/A Allied Healthcare,2312.02, 21-Jan-2016
1364,Revenue,CAHD,Home Care - Elderly - South,Day Care / Social Activities,Nestor T/A Allied Healthcare,69.30, 27-Jan-2016
1365,Revenue,CAHD,Home Care - Elderly - South,Other Small Contracts,Nestor T/A Allied Healthcare,2234.51, 27-Jan-2016
1366,Revenue,CAHD,Home Care - Elderly - South,Other Small Contracts,Network Health & Social Care,1144.60, 13-Jan-2016
1367,Revenue,CAHD,Home Care - Elderly - South,Other Small Contracts,Network Health & Social Care,1152.36, 20-Jan-2016
1368,Revenue,CAHD,Home Care - Elderly - South,Other Small Contracts,Network Health & Social Care,896.28, 20-Jan-2016
1369,Revenue,CAHD,Home Care - Elderly - South,Other Small Contracts,Network Health & Social Care,830.32, 20-Jan-2016
1370,Revenue,CAHD,Home Care - Elderly - South,Day Care / Social Activities,Nursing Solutions Limited,47.64, 05-Jan-2016
1371,Revenue,CAHD,Home Care - Elderly - South,Other Small Contracts,Nursing Solutions Limited,1429.20, 05-Jan-2016
1372,Revenue,CAHD,Home Care - Elderly - South,Day Care / Social Activities,Nursing Solutions Limited,47.64, 07-Jan-2016
1373,Revenue,CAHD,Home Care - Elderly - South,Other Small Contracts,Nursing Solutions Limited,1040.14, 07-Jan-2016
1374,Revenue,CAHD,Home Care - Elderly - South,Day Care / Social Activities,Nursing Solutions Limited,47.64, 12-Jan-2016
1375,Revenue,CAHD,Home Care - Elderly - South,Other Small Contracts,Nursing Solutions Limited,1024.26, 12-Jan-2016
1376,Revenue,CAHD,Home Care - Elderly - South,Day Care / Social Activities,Nursing Solutions Limited,47.64, 20-Jan-2016
1377,Revenue,CAHD,Home Care - Elderly - South,Other Small Contracts,Nursing Solutions Limited,1230.70, 20-Jan-2016
1378,Revenue,CAHD,Home Care - Elderly - South,Day Care / Social Activities,Nursing Solutions Limited,47.64, 27-Jan-2016
1379,Revenue,CAHD,Home Care - Elderly - South,Other Small Contracts,Nursing Solutions Limited,1187.03, 27-Jan-2016
1380,Revenue,CAHD,Home Care - Elderly - South,Other Small Contracts,Prestige Nursing,487.30, 07-Jan-2016
1381,Revenue,CAHD,Home Care - Elderly - South,Supported Living,Selborrne House,650.33, 19-Jan-2016
1382,Revenue,CAHD,Home Care - Elderly - South,Supported Living,Selborrne House,3491.36, 19-Jan-2016
1383,Revenue,CAHD,Home Care - Elderly - South,Supported Living,Selborrne House,3491.36, 19-Jan-2016
1384,Revenue,CAHD,Home Care - Elderly - South,Supported Living,Selborrne House,1820.92, 19-Jan-2016
1385,Revenue,CAHD,Home Care - Elderly - South,Day Care / Social Activities,Smile Independent Living Support Limited,298.88, 05-Jan-2016
1386,Revenue,CAHD,Home Care - Elderly - South,Other Small Contracts,Smile Independent Living Support Limited,238.17, 05-Jan-2016
1387,Revenue,CAHD,Home Care - Elderly - South,Day Care / Social Activities,Smile Independent Living Support Limited,252.18, 13-Jan-2016
1388,Revenue,CAHD,Home Care - Elderly - South,Other Small Contracts,Smile Independent Living Support Limited,186.80, 13-Jan-2016
1389,Revenue,CAHD,Home Care - Elderly - South,Day Care / Social Activities,Smile Independent Living Support Limited,196.14, 18-Jan-2016
1390,Revenue,CAHD,Home Care - Elderly - South,Other Small Contracts,Smile Independent Living Support Limited,130.76, 18-Jan-2016
1391,Revenue,CAHD,Home Care - Elderly - South,Day Care / Social Activities,Smile Independent Living Support Limited,317.56, 25-Jan-2016
1392,Revenue,CAHD,Home Care - Elderly - South,Other Small Contracts,Smile Independent Living Support Limited,270.86, 25-Jan-2016
1393,Revenue,CAHD,Home Care - Elderly - South,Day Care / Social Activities,St George Nursing Home,606.48, 19-Jan-2016
1394,Revenue,CAHD,Home Care - Elderly - South,Day Care / Social Activities,The Brandon Trust,3909.04, 04-Jan-2016
1395,Revenue,CAHD,Home Care - Elderly - South,Day Care / Social Activities,The Brandon Trust,2381.81, 20-Jan-2016
1396,Revenue,CAHD,Home Care - Elderly - South,Day Care / Social Activities,The Brandon Trust,1251.25, 20-Jan-2016
1397,Revenue,CAHD,Home Care - Elderly - South,Day Care / Social Activities,The Manor House,1487.20, 19-Jan-2016
1398,Revenue,CAHD,Home Care - Elderly - South,Day Care / Social Activities,The Manor House,1426.44, 19-Jan-2016
1399,Revenue,CAHD,Home Care - Elderly - South,Day Care / Social Activities,The Manor House,2359.20, 19-Jan-2016
1400,Revenue,CAHD,Home Care - Elderly - South,Day Care / Social Activities,The Manor House,1396.72, 19-Jan-2016
1401,Revenue,CAHD,Home Care - Elderly - South,Day Care / Social Activities,The Manor House,1396.12, 19-Jan-2016
1402,Revenue,CAHD,Home Care - Elderly - South,Supported Living,The Oaks,3064.56, 19-Jan-2016
1403,Revenue,CAHD,Home Care - Elderly - South,Day Care / Social Activities,The Vassall Centre,5969.70, 19-Jan-2016
1404,Revenue,CAHD,Home Care - Elderly - South,Day Care / Social Activities,The Vassall Centre,2653.20, 19-Jan-2016
1405,Revenue,CAHD,Home Care - Elderly - South,Other Small Contracts,United Response,6139.54, 08-Jan-2016
1406,Revenue,CAHD,Home Care - Elderly - South,Other Small Contracts,United Response,5775.33, 15-Jan-2016
1407,Revenue,CAHD,Home Care - Elderly - South,Other Small Contracts,United Response,6508.16, 22-Jan-2016
1408,Revenue,CAHD,Home Care - Elderly - South,Other Small Contracts,United Response,6650.38, 29-Jan-2016
1409,Revenue,CAHD,Home Care - Elderly - South,Supported Living,Willowbank Care Limited,3108.56, 29-Jan-2016
1410,Revenue,CAHD,Home Care - Elderly - South,Supported Living,Willowbank Care Limited,3108.56, 29-Jan-2016
1411,Revenue,CAHD,Home Care - Elderly - North,Supported Living,3 Trees Community Support Limited,639.80, 19-Jan-2016
1412,Revenue,CAHD,Home Care - Elderly - North,Day Care / Social Activities,3 Trees Community Support Ltd,2644.20, 05-Jan-2016
1413,Revenue,CAHD,Home Care - Elderly - North,Other Small Contracts,3 Trees Community Support Ltd,113.00, 05-Jan-2016
1414,Revenue,CAHD,Home Care - Elderly - North,Supported Living,3 Trees Community Support Ltd,9347.13, 05-Jan-2016
1415,Revenue,CAHD,Home Care - Elderly - North,Day Care / Social Activities,3 Trees Community Support Ltd,1993.32, 08-Jan-2016
1416,Revenue,CAHD,Home Care - Elderly - North,Other Small Contracts,3 Trees Community Support Ltd,108.48, 08-Jan-2016
1417,Revenue,CAHD,Home Care - Elderly - North,Supported Living,3 Trees Community Support Ltd,8331.41, 08-Jan-2016
1418,Revenue,CAHD,Home Care - Elderly - North,Day Care / Social Activities,3 Trees Community Support Ltd,1875.80, 08-Jan-2016
1419,Revenue,CAHD,Home Care - Elderly - North,Other Small Contracts,3 Trees Community Support Ltd,108.48, 08-Jan-2016
1420,Revenue,CAHD,Home Care - Elderly - North,Supported Living,3 Trees Community Support Ltd,7045.52, 08-Jan-2016
1421,Revenue,CAHD,Home Care - Elderly - North,Day Care / Social Activities,3 Trees Community Support Ltd,3322.20, 27-Jan-2016
1422,Revenue,CAHD,Home Care - Elderly - North,Other Small Contracts,3 Trees Community Support Ltd,108.48, 27-Jan-2016
1423,Revenue,CAHD,Home Care - Elderly - North,Supported Living,3 Trees Community Support Ltd,9411.17, 27-Jan-2016
1424,Revenue,CAHD,Home Care - Elderly - North,Day Care / Social Activities,3 Trees Community Support Ltd,3435.20, 27-Jan-2016
1425,Revenue,CAHD,Home Care - Elderly - North,Other Small Contracts,3 Trees Community Support Ltd,108.48, 27-Jan-2016
1426,Revenue,CAHD,Home Care - Elderly - North,Supported Living,3 Trees Community Support Ltd,9344.83, 27-Jan-2016
1427,Revenue,CAHD,Home Care - Elderly - North,Other Small Contracts,Agincare UK Limited,473.55, 08-Jan-2016
1428,Revenue,CAHD,Home Care - Elderly - North,Other Small Contracts,Agincare UK Limited,26.95, 08-Jan-2016
1429,Revenue,CAHD,Home Care - Elderly - North,Other Small Contracts,Agincare UK Limited,30.80, 12-Jan-2016
1430,Revenue,CAHD,Home Care - Elderly - North,Other Small Contracts,Agincare UK Nutfield,1978.90, 20-Jan-2016
1431,Revenue,CAHD,Home Care - Elderly - North,Other Small Contracts,Agincare UK Nutfield,1601.60, 20-Jan-2016
1432,Revenue,CAHD,Home Care - Elderly - North,Other Small Contracts,Agincare UK Nutfield,1516.90, 20-Jan-2016
1433,Revenue,CAHD,Home Care - Elderly - North,Other Small Contracts,Agincare UK Nutfield,1755.60, 20-Jan-2016
1434,Revenue,CAHD,Home Care - Elderly - North,Day Care / Social Activities,Bibby Factors Bristol Limited,134.40, 06-Jan-2016
1435,Revenue,CAHD,Home Care - Elderly - North,Other Small Contracts,Bibby Factors Bristol Limited,8173.20, 06-Jan-2016
1436,Revenue,CAHD,Home Care - Elderly - North,Day Care / Social Activities,Bibby Factors Bristol Limited,130.20, 06-Jan-2016
1437,Revenue,CAHD,Home Care - Elderly - North,Other Small Contracts,Bibby Factors Bristol Limited,8219.40, 06-Jan-2016
1438,Revenue,CAHD,Home Care - Elderly - North,Day Care / Social Activities,Bibby Factors Bristol Limited,130.20, 06-Jan-2016
1439,Revenue,CAHD,Home Care - Elderly - North,Other Small Contracts,Bibby Factors Bristol Limited,8370.60, 06-Jan-2016
1440,Revenue,CAHD,Home Care - Elderly - North,Day Care / Social Activities,Bibby Factors Bristol Limited,134.40, 29-Jan-2016
1441,Revenue,CAHD,Home Care - Elderly - North,Other Small Contracts,Bibby Factors Bristol Limited,7984.20, 29-Jan-2016
1442,Revenue,CAHD,Home Care - Elderly - North,Day Care / Social Activities,Bibby Factors Bristol Limited,134.40, 29-Jan-2016
1443,Revenue,CAHD,Home Care - Elderly - North,Other Small Contracts,Bibby Factors Bristol Limited,7329.00, 29-Jan-2016
1444,Revenue,CAHD,Home Care - Elderly - North,Day Care / Social Activities,Bibby Factors Bristol Limited,134.40, 29-Jan-2016
1445,Revenue,CAHD,Home Care - Elderly - North,Other Small Contracts,Bibby Factors Bristol Limited,6980.40, 29-Jan-2016
1446,Revenue,CAHD,Home Care - Elderly - North,Day Care / Social Activities,Bibby Factors Bristol Limited,134.40, 29-Jan-2016
1447,Revenue,CAHD,Home Care - Elderly - North,Other Small Contracts,Bibby Factors Bristol Limited,6358.80, 29-Jan-2016
1448,Revenue,CAHD,Home Care - Elderly - North,Other Small Contracts,Bluebird Care (South Gloucestershire),2569.86, 05-Jan-2016
1449,Revenue,CAHD,Home Care - Elderly - North,Other Small Contracts,Bluebird Care (South Gloucestershire),2010.19, 27-Jan-2016
1450,Revenue,CAHD,Home Care - Elderly - North,Other Small Contracts,Bluebird Care (South Gloucestershire),2114.63, 27-Jan-2016
1451,Revenue,CAHD,Home Care - Elderly - North,Other Small Contracts,Bradley House Home Care Services,522.72, 20-Jan-2016
1452,Revenue,CAHD,Home Care - Elderly - North,SU Employment Support,Britannia House,693.60, 19-Jan-2016
1453,Revenue,CAHD,Home Care - Elderly - North,Day Care / Social Activities,Britannia House,924.80, 19-Jan-2016
1454,Revenue,CAHD,Home Care - Elderly - North,Day Care / Social Activities,Britannia House,693.60, 19-Jan-2016
1455,Revenue,CAHD,Home Care - Elderly - North,Day Care / Social Activities,Britannia House,693.60, 19-Jan-2016
1456,Revenue,CAHD,Home Care - Elderly - North,Day Care / Social Activities,Britannia House,924.80, 19-Jan-2016
1457,Revenue,CAHD,Home Care - Elderly - North,Private & Voluntary Home Care,Brunelcare,23503.00, 04-Jan-2016
1458,Revenue,CAHD,Home Care - Elderly - North,Private & Voluntary Home Care,Brunelcare,23503.00, 11-Jan-2016
1459,Revenue,CAHD,Home Care - Elderly - North,Private & Voluntary Home Care,Brunelcare,23503.00, 18-Jan-2016
1460,Revenue,CAHD,Home Care - Elderly - North,Private & Voluntary Home Care,Brunelcare,23503.00, 25-Jan-2016
1461,Revenue,CAHD,Home Care - Elderly - North,Other Small Contracts,Brunelcare,2709.28, 27-Jan-2016
1462,Revenue,CAHD,Home Care - Elderly - North,Day Care / Social Activities,Camphill Communities Thornbury Limited,1016.52, 08-Jan-2016
1463,Revenue,CAHD,Home Care - Elderly - North,Supported Living,Camphill Communities Thornbury Limited,1347.48, 08-Jan-2016
1464,Revenue,CAHD,Home Care - Elderly - North,Day Care / Social Activities,Camphill Communities Thornbury Limited,1000.76, 14-Jan-2016
1465,Revenue,CAHD,Home Care - Elderly - North,Supported Living,Camphill Communities Thornbury Limited,1379.00, 14-Jan-2016
1466,Revenue,CAHD,Home Care - Elderly - North,Day Care / Social Activities,Camphill Communities Thornbury Limited,977.12, 21-Jan-2016
1467,Revenue,CAHD,Home Care - Elderly - North,Other Small Contracts,Camphill Communities Thornbury Limited,141.84, 21-Jan-2016
1468,Revenue,CAHD,Home Care - Elderly - North,Supported Living,Camphill Communities Thornbury Limited,906.20, 21-Jan-2016
1469,Revenue,CAHD,Home Care - Elderly - North,One-off Planned Direct Payment,Care 1st Homecare,42.50, 13-Jan-2016
1470,Revenue,CAHD,Home Care - Elderly - North,Other Small Contracts,Care 1st Homecare,5155.15, 13-Jan-2016
1471,Revenue,CAHD,Home Care - Elderly - North,One-off Planned Direct Payment,Care 1st Homecare,55.25, 13-Jan-2016
1472,Revenue,CAHD,Home Care - Elderly - North,Other Small Contracts,Care 1st Homecare,4059.30, 13-Jan-2016
1473,Revenue,CAHD,Home Care - Elderly - North,One-off Planned Direct Payment,Care 1st Homecare,55.25, 13-Jan-2016
1474,Revenue,CAHD,Home Care - Elderly - North,Other Small Contracts,Care 1st Homecare,3587.00, 13-Jan-2016
1475,Revenue,CAHD,Home Care - Elderly - North,One-off Planned Direct Payment,Care 1st Homecare,55.25, 13-Jan-2016
1476,Revenue,CAHD,Home Care - Elderly - North,Other Small Contracts,Care 1st Homecare,3718.75, 13-Jan-2016
1477,Revenue,CAHD,Home Care - Elderly - North,One-off Planned Direct Payment,Care 1st Homecare,46.75, 13-Jan-2016
1478,Revenue,CAHD,Home Care - Elderly - North,Other Small Contracts,Care 1st Homecare,3718.75, 13-Jan-2016
1479,Revenue,CAHD,Home Care - Elderly - North,One-off Planned Direct Payment,Care 1st Homecare,21.25, 13-Jan-2016
1480,Revenue,CAHD,Home Care - Elderly - North,Other Small Contracts,Care 1st Homecare,3446.75, 13-Jan-2016
1481,Revenue,CAHD,Home Care - Elderly - North,Day Care / Social Activities,Care Horizons Limited,157.50, 20-Jan-2016
1482,Revenue,CAHD,Home Care - Elderly - North,Other Small Contracts,Care Horizons Limited,477.00, 20-Jan-2016
1483,Revenue,CAHD,Home Care - Elderly - North,Day Care / Social Activities,Care Horizons Limited,162.00, 20-Jan-2016
1484,Revenue,CAHD,Home Care - Elderly - North,Other Small Contracts,Care Horizons Limited,445.50, 20-Jan-2016
1485,Revenue,CAHD,Home Care - Elderly - North,Day Care / Social Activities,Care Horizons Limited,157.50, 20-Jan-2016
1486,Revenue,CAHD,Home Care - Elderly - North,Other Small Contracts,Care Horizons Limited,459.00, 20-Jan-2016
1487,Revenue,CAHD,Home Care - Elderly - North,Day Care / Social Activities,Care Horizons Limited,162.00, 20-Jan-2016
1488,Revenue,CAHD,Home Care - Elderly - North,Other Small Contracts,Care Horizons Limited,454.50, 20-Jan-2016
1489,Revenue,CAHD,Home Care - Elderly - North,Day Care / Social Activities,Care Horizons Limited,162.00, 20-Jan-2016
1490,Revenue,CAHD,Home Care - Elderly - North,Other Small Contracts,Care Horizons Limited,463.50, 20-Jan-2016
1491,Revenue,CAHD,Home Care - Elderly - North,Other Small Contracts,Care UK,1298.19, 05-Jan-2016
1492,Revenue,CAHD,Home Care - Elderly - North,Other Small Contracts,Cherish Able Care Limited,118.16, 08-Jan-2016
1493,Revenue,CAHD,Home Care - Elderly - North,Other Small Contracts,Cherish Able Care Limited,122.38, 14-Jan-2016
1494,Revenue,CAHD,Home Care - Elderly - North,Other Small Contracts,Cherish Able Care Limited,122.38, 22-Jan-2016
1495,Revenue,CAHD,Home Care - Elderly - North,Other Small Contracts,Cherish Able Care Limited,118.16, 29-Jan-2016
1496,Revenue,CAHD,Home Care - Elderly - North,Other Small Contracts,Dhek Bhal,117.60, 20-Jan-2016
1497,Revenue,CAHD,Home Care - Elderly - North,Other Small Contracts,Dhek Bhal,117.60, 07-Jan-2016
1498,Revenue,CAHD,Home Care - Elderly - North,Other Small Contracts,Dhek Bhal,117.60, 12-Jan-2016
1499,Revenue,CAHD,Home Care - Elderly - North,Other Small Contracts,DoCare Ltd,5110.48, 27-Jan-2016
1500,Revenue,CAHD,Home Care - Elderly - North,Other Small Contracts,DoCare Ltd,5030.00, 27-Jan-2016
1501,Revenue,CAHD,Home Care - Elderly - North,Other Small Contracts,DoCare Ltd,4929.40, 27-Jan-2016
1502,Revenue,CAHD,Home Care - Elderly - North,Other Small Contracts,DoCare Ltd,4904.25, 27-Jan-2016
1503,Revenue,CAHD,Home Care - Elderly - North,Other Small Contracts,DoCare Ltd,5351.92, 27-Jan-2016
1504,Revenue,CAHD,Home Care - Elderly - North,Other Small Contracts,DoCare Ltd,5150.72, 27-Jan-2016
1505,Revenue,CAHD,Home Care - Elderly - North,Day Care / Social Activities,Easton Community Centre,526.08, 19-Jan-2016
1506,Revenue,CAHD,Home Care - Elderly - North,Day Care / Social Activities,Easton Community Centre,526.08, 19-Jan-2016
1507,Revenue,CAHD,Home Care - Elderly - North,Day Care / Social Activities,Eclipse Office Park,990.72, 19-Jan-2016
1508,Revenue,CAHD,Home Care - Elderly - North,Other Small Contracts,Elite Home Care Ltd,291.72, 12-Jan-2016
1509,Revenue,CAHD,Home Care - Elderly - North,Other Small Contracts,Elite Home Care Ltd,335.92, 12-Jan-2016
1510,Revenue,CAHD,Home Care - Elderly - North,Other Small Contracts,Elite Home Care Ltd,340.34, 20-Jan-2016
1511,Revenue,CAHD,Home Care - Elderly - North,Other Small Contracts,Elite Home Care Ltd,335.92, 27-Jan-2016
1512,Revenue,CAHD,Home Care - Elderly - North,Day Care / Social Activities,Everycare (Bristol) Ltd,124.70, 18-Jan-2016
1513,Revenue,CAHD,Home Care - Elderly - North,Other Small Contracts,Everycare (Bristol) Ltd,1119.06, 18-Jan-2016
1514,Revenue,CAHD,Home Care - Elderly - North,Day Care / Social Activities,Everycare (Bristol) Ltd,120.40, 20-Jan-2016
1515,Revenue,CAHD,Home Care - Elderly - North,Other Small Contracts,Everycare (Bristol) Ltd,683.70, 20-Jan-2016
1516,Revenue,CAHD,Home Care - Elderly - North,Day Care / Social Activities,Everycare (Bristol) Ltd,116.10, 25-Jan-2016
1517,Revenue,CAHD,Home Care - Elderly - North,Other Small Contracts,Everycare (Bristol) Ltd,576.20, 25-Jan-2016
1518,Revenue,CAHD,Home Care - Elderly - North,Day Care / Social Activities,Everycare (Bristol) Ltd,120.40, 25-Jan-2016
1519,Revenue,CAHD,Home Care - Elderly - North,Other Small Contracts,Everycare (Bristol) Ltd,881.50, 25-Jan-2016
1520,Revenue,CAHD,Home Care - Elderly - North,Day Care / Social Activities,Firstpoint Homecare Ltd,46.68, 27-Jan-2016
1521,Revenue,CAHD,Home Care - Elderly - North,Other Small Contracts,Firstpoint Homecare Ltd,544.60, 27-Jan-2016
1522,Revenue,CAHD,Home Care - Elderly - North,Day Care / Social Activities,Firstpoint Homecare Ltd,46.68, 27-Jan-2016
1523,Revenue,CAHD,Home Care - Elderly - North,Other Small Contracts,Firstpoint Homecare Ltd,536.82, 27-Jan-2016
1524,Revenue,CAHD,Home Care - Elderly - North,Other Small Contracts,Fourways Care Limited,342.00, 08-Jan-2016
1525,Revenue,CAHD,Home Care - Elderly - North,Other Small Contracts,Fourways Care Limited,361.00, 12-Jan-2016
1526,Revenue,CAHD,Home Care - Elderly - North,Other Small Contracts,Fourways Care Limited,541.50, 20-Jan-2016
1527,Revenue,CAHD,Home Care - Elderly - North,Other Small Contracts,Fourways Care Limited,508.25, 25-Jan-2016
1528,Revenue,CAHD,Home Care - Elderly - North,Day Care / Social Activities,Headway Bristol,573.34, 13-Jan-2016
1529,Revenue,CAHD,Home Care - Elderly - North,Day Care / Social Activities,Headway Bristol,568.08, 04-Jan-2016
1530,Revenue,CAHD,Home Care - Elderly - North,Day Care / Social Activities,Headway Bristol,462.88, 11-Jan-2016
1531,Revenue,CAHD,Home Care - Elderly - North,Day Care / Social Activities,Headway Bristol,526.00, 19-Jan-2016
1532,Revenue,CAHD,Home Care - Elderly - North,Other Small Contracts,Homecare 4U,669.67, 07-Jan-2016
1533,Revenue,CAHD,Home Care - Elderly - North,Other Small Contracts,Homecare 4U,769.92, 20-Jan-2016
1534,Revenue,CAHD,Home Care - Elderly - North,Other Small Contracts,Homecare 4U,926.31, 20-Jan-2016
1535,Revenue,CAHD,Home Care - Elderly - North,Other Small Contracts,Homecare 4U,846.11, 27-Jan-2016
1536,Revenue,CAHD,Home Care - Elderly - North,Private & Voluntary Home Care,Housing 21,38183.98, 08-Jan-2016
1537,Revenue,CAHD,Home Care - Elderly - North,Supported Living,Julia Simone- Supp. Ind.,1212.32, 19-Jan-2016
1538,Revenue,CAHD,Home Care - Elderly - North,Other Small Contracts,Kensington Community Care,3573.78, 07-Jan-2016
1539,Revenue,CAHD,Home Care - Elderly - North,Other Small Contracts,Kensington Community Care,3107.46, 07-Jan-2016
1540,Revenue,CAHD,Home Care - Elderly - North,Other Small Contracts,Kensington Community Care,3593.88, 12-Jan-2016
1541,Revenue,CAHD,Home Care - Elderly - North,Other Small Contracts,Kensington Community Care,3983.82, 20-Jan-2016
1542,Revenue,CAHD,Home Care - Elderly - North,Other Small Contracts,Kumari Care Limited,833.86, 20-Jan-2016
1543,Revenue,CAHD,Home Care - Elderly - North,Other Small Contracts,Kumari Care Limited,338.81, 25-Jan-2016
1544,Revenue,CAHD,Home Care - Elderly - North,Other Small Contracts,Kumari Care Limited,833.86, 18-Jan-2016
1545,Revenue,CAHD,Home Care - Elderly - North,Other Small Contracts,Kumari Care Limited,833.86, 20-Jan-2016
1546,Revenue,CAHD,Home Care - Elderly - North,Other Small Contracts,Kumari Care Limited,833.86, 27-Jan-2016
1547,Revenue,CAHD,Home Care - Elderly - North,Day Care / Social Activities,Lloyds TSB Commercial Finance Limited,89.54, 27-Jan-2016
1548,Revenue,CAHD,Home Care - Elderly - North,Supported Living,Lloyds TSB Commercial Finance Limited,830.28, 27-Jan-2016
1549,Revenue,CAHD,Home Care - Elderly - North,Day Care / Social Activities,Lloyds TSB Commercial Finance Limited,130.24, 27-Jan-2016
1550,Revenue,CAHD,Home Care - Elderly - North,Supported Living,Lloyds TSB Commercial Finance Limited,1009.36, 27-Jan-2016
1551,Revenue,CAHD,Home Care - Elderly - North,Day Care / Social Activities,Lloyds TSB Commercial Finance Limited,325.60, 27-Jan-2016
1552,Revenue,CAHD,Home Care - Elderly - North,Supported Living,Lloyds TSB Commercial Finance Limited,1448.92, 27-Jan-2016
1553,Revenue,CAHD,Home Care - Elderly - North,Day Care / Social Activities,Lower Kilcott,1481.84, 19-Jan-2016
1554,Revenue,CAHD,Home Care - Elderly - North,Day Care / Social Activities,Lower Kilcott,710.16, 19-Jan-2016
1555,Revenue,CAHD,Home Care - Elderly - North,Day Care / Social Activities,Lower Kilcott,566.68, 19-Jan-2016
1556,Revenue,CAHD,Home Care - Elderly - North,Other Small Contracts,Mears Care,3377.40, 07-Jan-2016
1557,Revenue,CAHD,Home Care - Elderly - North,Other Small Contracts,Medacs Home Care,693.84, 07-Jan-2016
1558,Revenue,CAHD,Home Care - Elderly - North,Other Small Contracts,Medacs Home Care,722.16, 07-Jan-2016
1559,Revenue,CAHD,Home Care - Elderly - North,Other Small Contracts,Medacs Home Care,647.82, 07-Jan-2016
1560,Revenue,CAHD,Home Care - Elderly - North,Other Small Contracts,Medacs Home Care,697.38, 07-Jan-2016
1561,Revenue,CAHD,Home Care - Elderly - North,Other Small Contracts,Medacs Home Care,718.62, 07-Jan-2016
1562,Revenue,CAHD,Home Care - Elderly - North,Other Small Contracts,Medacs Home Care,732.78, 07-Jan-2016
1563,Revenue,CAHD,Home Care - Elderly - North,Other Small Contracts,Medacs Home Care,672.60, 12-Jan-2016
1564,Revenue,CAHD,Home Care - Elderly - North,Other Small Contracts,Medacs Home Care,722.16, 20-Jan-2016
1565,Revenue,CAHD,Home Care - Elderly - North,Other Small Contracts,Medacs Home Care,722.16, 27-Jan-2016
1566,Revenue,CAHD,Home Care - Elderly - North,Supported Living,Milestones - Unit 10,4304.16, 19-Jan-2016
1567,Revenue,CAHD,Home Care - Elderly - North,Supported Living,Milestones - Unit 10,4304.16, 19-Jan-2016
1568,Revenue,CAHD,Home Care - Elderly - North,Other Small Contracts,Milestones Homecare & Dementia Service,1766.70, 15-Jan-2016
1569,Revenue,CAHD,Home Care - Elderly - North,Other Small Contracts,Milestones Homecare & Dementia Service,1467.92, 29-Jan-2016
1570,Revenue,CAHD,Home Care - Elderly - North,Day Care / Social Activities,Mrs B Kimber -  CM2000,349.44, 07-Jan-2016
1571,Revenue,CAHD,Home Care - Elderly - North,Other Small Contracts,Mrs B Kimber -  CM2000,5158.40, 07-Jan-2016
1572,Revenue,CAHD,Home Care - Elderly - North,Day Care / Social Activities,Mrs B Kimber -  CM2000,274.56, 20-Jan-2016
1573,Revenue,CAHD,Home Care - Elderly - North,Other Small Contracts,Mrs B Kimber -  CM2000,4521.92, 20-Jan-2016
1574,Revenue,CAHD,Home Care - Elderly - North,Day Care / Social Activities,Mrs B Kimber -  CM2000,449.89, 14-Jan-2016
1575,Revenue,CAHD,Home Care - Elderly - North,Other Small Contracts,Mrs B Kimber -  CM2000,5432.73, 14-Jan-2016
1576,Revenue,CAHD,Home Care - Elderly - North,Day Care / Social Activities,NAS Services Limited,1036.30, 07-Jan-2016
1577,Revenue,CAHD,Home Care - Elderly - North,Supported Living,NAS Services Limited,337.40, 07-Jan-2016
1578,Revenue,CAHD,Home Care - Elderly - North,Day Care / Social Activities,NAS Services Limited,959.18, 07-Jan-2016
1579,Revenue,CAHD,Home Care - Elderly - North,Supported Living,NAS Services Limited,337.40, 07-Jan-2016
1580,Revenue,CAHD,Home Care - Elderly - North,Day Care / Social Activities,NAS Services Limited,1050.76, 07-Jan-2016
1581,Revenue,CAHD,Home Care - Elderly - North,Supported Living,NAS Services Limited,298.84, 07-Jan-2016
1582,Revenue,CAHD,Home Care - Elderly - North,Other Small Contracts,Nestor T/A Allied Healthcare,7315.00, 12-Jan-2016
1583,Revenue,CAHD,Home Care - Elderly - North,Other Small Contracts,Nestor T/A Allied Healthcare,7511.35, 14-Jan-2016
1584,Revenue,CAHD,Home Care - Elderly - North,Other Small Contracts,Nestor T/A Allied Healthcare,6464.15, 21-Jan-2016
1585,Revenue,CAHD,Home Care - Elderly - North,Other Small Contracts,Nestor T/A Allied Healthcare,6918.45, 27-Jan-2016
1586,Revenue,CAHD,Home Care - Elderly - North,Other Small Contracts,Network Health & Social Care,2265.92, 13-Jan-2016
1587,Revenue,CAHD,Home Care - Elderly - North,Other Small Contracts,Network Health & Social Care,2192.20, 20-Jan-2016
1588,Revenue,CAHD,Home Care - Elderly - North,Other Small Contracts,Network Health & Social Care,1769.28, 20-Jan-2016
1589,Revenue,CAHD,Home Care - Elderly - North,Other Small Contracts,Network Health & Social Care,1823.60, 20-Jan-2016
1590,Revenue,CAHD,Home Care - Elderly - North,Day Care / Social Activities,Premier Homecare Limited,78.37, 12-Jan-2016
1591,Revenue,CAHD,Home Care - Elderly - North,Other Small Contracts,Premier Homecare Limited,10515.41, 12-Jan-2016
1592,Revenue,CAHD,Home Care - Elderly - North,Day Care / Social Activities,Premier Homecare Limited,82.98, 12-Jan-2016
1593,Revenue,CAHD,Home Care - Elderly - North,Other Small Contracts,Premier Homecare Limited,11142.37, 12-Jan-2016
1594,Revenue,CAHD,Home Care - Elderly - North,Day Care / Social Activities,Premier Homecare Limited,82.98, 18-Jan-2016
1595,Revenue,CAHD,Home Care - Elderly - North,Other Small Contracts,Premier Homecare Limited,11824.65, 18-Jan-2016
1596,Revenue,CAHD,Home Care - Elderly - North,Day Care / Social Activities,Premier Homecare Limited,82.98, 25-Jan-2016
1597,Revenue,CAHD,Home Care - Elderly - North,Other Small Contracts,Premier Homecare Limited,11253.01, 25-Jan-2016
1598,Revenue,CAHD,Home Care - Elderly - North,Other Small Contracts,Prestige Nursing,1382.16, 07-Jan-2016
1599,Revenue,CAHD,Home Care - Elderly - North,Supported Living,Smile Ind Living Support Limited,3060.80, 19-Jan-2016
1600,Revenue,CAHD,Home Care - Elderly - North,Supported Living,Smile Ind Living Support Limited,3060.80, 19-Jan-2016
1601,Revenue,CAHD,Home Care - Elderly - North,Supported Living,Smile Ind Living Support Limited,3060.80, 19-Jan-2016
1602,Revenue,CAHD,Home Care - Elderly - North,Day Care / Social Activities,Smile Independent Living Support Limited,667.81, 05-Jan-2016
1603,Revenue,CAHD,Home Care - Elderly - North,Supported Living,Smile Independent Living Support Limited,205.48, 05-Jan-2016
1604,Revenue,CAHD,Home Care - Elderly - North,Day Care / Social Activities,Smile Independent Living Support Limited,551.06, 13-Jan-2016
1605,Revenue,CAHD,Home Care - Elderly - North,Supported Living,Smile Independent Living Support Limited,126.09, 13-Jan-2016
1606,Revenue,CAHD,Home Care - Elderly - North,Day Care / Social Activities,Smile Independent Living Support Limited,359.59, 18-Jan-2016
1607,Revenue,CAHD,Home Care - Elderly - North,Supported Living,Smile Independent Living Support Limited,126.09, 18-Jan-2016
1608,Revenue,CAHD,Home Care - Elderly - North,Day Care / Social Activities,Smile Independent Living Support Limited,663.14, 25-Jan-2016
1609,Revenue,CAHD,Home Care - Elderly - North,Supported Living,Smile Independent Living Support Limited,205.48, 25-Jan-2016
1610,Revenue,CAHD,Home Care - Elderly - North,Day Care / Social Activities,The Ann Coleman Centre,2301.60, 19-Jan-2016
1611,Revenue,CAHD,Home Care - Elderly - North,Day Care / Social Activities,The Ann Coleman Centre,3378.20, 19-Jan-2016
1612,Revenue,CAHD,Home Care - Elderly - North,Day Care / Social Activities,The Brandon Trust,693.62, 04-Jan-2016
1613,Revenue,CAHD,Home Care - Elderly - North,Other Small Contracts,The Brandon Trust,140.48, 04-Jan-2016
1614,Revenue,CAHD,Home Care - Elderly - North,Supported Living,The Brandon Trust,1826.72, 04-Jan-2016
1615,Revenue,CAHD,Home Care - Elderly - North,Day Care / Social Activities,The Brandon Trust,539.97, 20-Jan-2016
1616,Revenue,CAHD,Home Care - Elderly - North,Other Small Contracts,The Brandon Trust,140.48, 20-Jan-2016
1617,Revenue,CAHD,Home Care - Elderly - North,Supported Living,The Brandon Trust,1826.72, 20-Jan-2016
1618,Revenue,CAHD,Home Care - Elderly - North,Day Care / Social Activities,The Brandon Trust,118.53, 20-Jan-2016
1619,Revenue,CAHD,Home Care - Elderly - North,Other Small Contracts,The Brandon Trust,140.48, 20-Jan-2016
1620,Revenue,CAHD,Home Care - Elderly - North,Supported Living,The Brandon Trust,1826.72, 20-Jan-2016
1621,Revenue,CAHD,Home Care - Elderly - North,Day Care / Social Activities,The Cottage,660.72, 19-Jan-2016
1622,Revenue,CAHD,Home Care - Elderly - North,Day Care / Social Activities,The Cottage,540.72, 19-Jan-2016
1623,Revenue,CAHD,Home Care - Elderly - North,Supported Living,The Hatch Camphill Community,2038.56, 19-Jan-2016
1624,Revenue,CAHD,Home Care - Elderly - North,Supported Living,The Hatch Camphill Community,2162.60, 19-Jan-2016
1625,Revenue,CAHD,Home Care - Elderly - North,Supported Living,The Hatch Camphill Community,2322.40, 19-Jan-2016
1626,Revenue,CAHD,Home Care - Elderly - North,Supported Living,The Hatch Camphill Community,2309.76, 19-Jan-2016
1627,Revenue,CAHD,Home Care - Elderly - North,Supported Living,The Hatch Camphill Community,2283.28, 19-Jan-2016
1628,Revenue,CAHD,Home Care - Elderly - North,Supported Living,The Hatch Camphill Community,1815.28, 19-Jan-2016
1629,Revenue,CAHD,Home Care - Elderly - North,Supported Living,The Hatch Camphill Community,2078.52, 19-Jan-2016
1630,Revenue,CAHD,Home Care - Elderly - North,Supported Living,The Hatch Camphill Community,1893.52, 19-Jan-2016
1631,Revenue,CAHD,Home Care - Elderly - North,Supported Living,The Hatch Camphill Community,1716.88, 19-Jan-2016
1632,Revenue,CAHD,Home Care - Elderly - North,Supported Living,The Hatch Camphill Community,2080.60, 19-Jan-2016
1633,Revenue,CAHD,Home Care - Elderly - North,Supported Living,The Hatch Camphill Community,1272.88, 19-Jan-2016
1634,Revenue,CAHD,Home Care - Elderly - North,Supported Living,The Hatch Camphill Community,1859.84, 19-Jan-2016
1635,Revenue,CAHD,Home Care - Elderly - North,Supported Living,The Hatch Camphill Community,1583.16, 19-Jan-2016
1636,Revenue,CAHD,Home Care - Elderly - North,Supported Living,The Hatch Camphill Community,2147.32, 19-Jan-2016
1637,Revenue,CAHD,Home Care - Elderly - North,Supported Living,The Hatch Camphill Community,1957.16, 19-Jan-2016
1638,Revenue,CAHD,Home Care - Elderly - North,Supported Living,The Hatch Camphill Community,1666.44, 19-Jan-2016
1639,Revenue,CAHD,Home Care - Elderly - North,Supported Living,The Hatch Camphill Community,1288.00, 19-Jan-2016
1640,Revenue,CAHD,Home Care - Elderly - North,Supported Living,The Hatch Camphill Community,2078.52, 19-Jan-2016
1641,Revenue,CAHD,Home Care - Elderly - North,Supported Living,The Hatch Camphill Community,2044.88, 19-Jan-2016
1642,Revenue,CAHD,Home Care - Elderly - North,Day Care / Social Activities,The Manor House,2096.32, 19-Jan-2016
1643,Revenue,CAHD,Home Care - Elderly - North,Day Care / Social Activities,The Manor House,1396.12, 19-Jan-2016
1644,Revenue,CAHD,Home Care - Elderly - North,Day Care / Social Activities,The Old School House,574.40, 19-Jan-2016
1645,Revenue,CAHD,Home Care - Elderly - North,Day Care / Social Activities,The Old School House,861.60, 19-Jan-2016
1646,Revenue,CAHD,Home Care - Elderly - North,Day Care / Social Activities,The Old School House,574.40, 19-Jan-2016
1647,Revenue,CAHD,Home Care - Elderly - North,Day Care / Social Activities,The Vassall Centre,1061.28, 19-Jan-2016
1648,Revenue,CAHD,Home Care - Elderly - North,Day Care / Social Activities,The Vassall Centre,2072.16, 19-Jan-2016
1649,Revenue,CAHD,Home Care - Elderly - North,Day Care / Social Activities,The Vassall Centre,1591.92, 19-Jan-2016
1650,Revenue,CAHD,Home Care - Elderly - North,Day Care / Social Activities,The Vassall Centre,2939.60, 19-Jan-2016
1651,Revenue,CAHD,Home Care - Elderly - North,Other Small Contracts,Unit 1  Sheldon Business Park,6743.28, 19-Jan-2016
1652,Revenue,CAHD,Home Care - Elderly - North,Day Care / Social Activities,United Response,1592.20, 08-Jan-2016
1653,Revenue,CAHD,Home Care - Elderly - North,Other Small Contracts,United Response,1772.37, 08-Jan-2016
1654,Revenue,CAHD,Home Care - Elderly - North,Supported Living,United Response,1784.94, 08-Jan-2016
1655,Revenue,CAHD,Home Care - Elderly - North,Day Care / Social Activities,United Response,1481.82, 15-Jan-2016
1656,Revenue,CAHD,Home Care - Elderly - North,Other Small Contracts,United Response,1780.75, 15-Jan-2016
1657,Revenue,CAHD,Home Care - Elderly - North,Supported Living,United Response,1772.37, 15-Jan-2016
1658,Revenue,CAHD,Home Care - Elderly - North,Day Care / Social Activities,United Response,1470.69, 22-Jan-2016
1659,Revenue,CAHD,Home Care - Elderly - North,Other Small Contracts,United Response,1772.37, 22-Jan-2016
1660,Revenue,CAHD,Home Care - Elderly - North,Supported Living,United Response,1738.85, 22-Jan-2016
1661,Revenue,CAHD,Home Care - Elderly - North,Day Care / Social Activities,United Response,1487.45, 29-Jan-2016
1662,Revenue,CAHD,Home Care - Elderly - North,Other Small Contracts,United Response,1797.51, 29-Jan-2016
1663,Revenue,CAHD,Home Care - Elderly - North,Supported Living,United Response,1621.53, 29-Jan-2016
1664,Revenue,CAHD,Home Care - Elderly - North,Supported Living,Willowbank,955.48, 19-Jan-2016
1665,Revenue,CAHD,Home Care - Elderly - North,Supported Living,Willowbank,1577.80, 19-Jan-2016
1666,Revenue,CAHD,Home Care - Elderly - North,Supported Living,Willowbank,1304.80, 19-Jan-2016
1667,Revenue,CAHD,Home Care - Elderly - North,Supported Living,Willowbank,1433.20, 19-Jan-2016
1668,Revenue,CAHD,Home Care - Elderly - North,Supported Living,Willowbank,851.56, 19-Jan-2016
1669,Revenue,CAHD,Home Care - Elderly - North,Supported Living,Willowbank,3821.92, 19-Jan-2016
1670,Revenue,CAHD,Home Care - Elderly - North,Supported Living,Willowbank,2736.88, 19-Jan-2016
1671,Revenue,CAHD,Home Care Monitoring (CM2000),Other Supplies & Services,Care Monitoring 2000 Limited,9672.70, 20-Jan-2016
1672,Revenue,CAHD,Day Care - South,Day Care / Social Activities,About Me Care and Support Limited,1520.71, 08-Jan-2016
1673,Revenue,CAHD,Day Care - South,Day Care / Social Activities,About Me Care and Support Limited,1078.91, 29-Jan-2016
1674,Revenue,CAHD,Day Care - South,Day Care / Social Activities,About Me Care and Support Limited,785.08, 29-Jan-2016
1675,Revenue,CAHD,Day Care - South,Day Care / Social Activities,Action on Hearing Loss,763.80, 08-Jan-2016
1676,Revenue,CAHD,Day Care - South,Day Care / Social Activities,Action on Hearing Loss,656.60, 29-Jan-2016
1677,Revenue,CAHD,Day Care - South,Day Care / Social Activities,Brunelcare,28.91, 27-Jan-2016
1678,Revenue,CAHD,Day Care - South,Day Care / Social Activities,Kenver House,812.00, 08-Jan-2016
1679,Revenue,CAHD,Day Care - South,Day Care / Social Activities,Prestige Nursing,124.04, 07-Jan-2016
1680,Revenue,CAHD,Day Care - North,Day Care / Social Activities,About Me Care and Support Limited,540.80, 05-Jan-2016
1681,Revenue,CAHD,Day Care - North,Day Care / Social Activities,About Me Care and Support Limited,657.92, 05-Jan-2016
1682,Revenue,CAHD,Day Care - North,Day Care / Social Activities,Nestor T/A Allied Healthcare,69.30, 12-Jan-2016
1683,Revenue,CAHD,Day Care - North,Day Care / Social Activities,Nestor T/A Allied Healthcare,69.30, 14-Jan-2016
1684,Revenue,CAHD,Day Care - North,Day Care / Social Activities,Nestor T/A Allied Healthcare,38.50, 27-Jan-2016
1685,Revenue,CAHD,Day Care - North,Day Care / Social Activities,Silva Care Limited,887.26, 28-Jan-2016
1686,Revenue,CAHD,Day Care - North,Day Care / Social Activities,Supported Independence Ltd,566.72, 14-Jan-2016
1687,Revenue,CAHD,Bed purchasing - Phys Dis - South,Respite Emergency - Residential,Leonard Cheshire  National Account Centr,12845.08, 19-Jan-2016
1688,Revenue,CAHD,Direct Payments - Phys Dis - North,Grants to Voluntary Bodies,Aquarium Card Management Solutions Ltd,2082.00, 29-Jan-2016
1689,Revenue,CAHD,Bed purchasing - Elderly S117 - South,Permanent Residential,Ash View House,6246.76, 19-Jan-2016
1690,Revenue,CAHD,Bed purchasing - Elderly S117 - South,Permanent Residential,Beaufort House,2400.00, 19-Jan-2016
1691,Revenue,CAHD,Bed purchasing - Elderly S117 - South,Permanent Residential,Beaufort House,1114.29, 19-Jan-2016
1692,Revenue,CAHD,Bed purchasing - Elderly S117 - South,Permanent Nursing,Blossom Field,4400.00, 19-Jan-2016
1693,Revenue,CAHD,Bed purchasing - Elderly S117 - South,Permanent Nursing,Blossom Field,4352.00, 19-Jan-2016
1694,Revenue,CAHD,Bed purchasing - Elderly S117 - South,Permanent Nursing,Brunelcare,3135.43, 25-Jan-2016
1695,Revenue,CAHD,Bed purchasing - Elderly S117 - South,Permanent Nursing,Fairview Court,2012.00, 19-Jan-2016
1696,Revenue,CAHD,Bed purchasing - Elderly S117 - South,Permanent Residential,Fairview House,1937.56, 19-Jan-2016
1697,Revenue,CAHD,Bed purchasing - Elderly S117 - South,Permanent Nursing,Fshc  1St Floor,1904.00, 19-Jan-2016
1698,Revenue,CAHD,Bed purchasing - Elderly S117 - South,Permanent Nursing,Gracefields Nursing Home,2381.88, 19-Jan-2016
1699,Revenue,CAHD,Bed purchasing - Elderly S117 - South,Permanent Nursing,Lavender Lodge Limited,12606.78, 19-Jan-2016
1700,Revenue,CAHD,Bed purchasing - Elderly S117 - South,Permanent Nursing,Meadow Care Home,2420.00, 19-Jan-2016
1701,Revenue,CAHD,Bed purchasing - Elderly S117 - South,Permanent Nursing,Milestones - Unit 10,7711.36, 19-Jan-2016
1702,Revenue,CAHD,Bed purchasing - Elderly S117 - South,Permanent Residential,Osprey Court,11450.92, 19-Jan-2016
1703,Revenue,CAHD,Bed purchasing - Elderly S117 - South,Permanent Nursing,Saffron Gardens Nursing Home,2832.00, 19-Jan-2016
1704,Revenue,CAHD,Bed purchasing - Elderly S117 - South,Permanent Residential,The Gables Residential Home,2271.16, 19-Jan-2016
1705,Revenue,CAHD,Bed purchasing - Elderly S117 - South,Permanent Residential,The Grove,2381.88, 19-Jan-2016
1706,Revenue,CAHD,Bed purchasing - Elderly S117 - South,Permanent Residential,The Grove,2830.24, 19-Jan-2016
1707,Revenue,CAHD,Bed purchasing - Elderly S117 - South,Permanent Residential,The Old Vicarage Residential Home,2100.00, 19-Jan-2016
1708,Revenue,CAHD,Bed purchasing - Elderly S117 - South,Permanent Residential,Wayside Residential Care Home,2122.68, 19-Jan-2016
1709,Revenue,CAHD,MH Purchasing - Younger,Permanent Residential,Brightbow,1503.92, 19-Jan-2016
1710,Revenue,CAHD,MH Purchasing - Younger,Permanent Residential,Dunraven House,1875.40, 19-Jan-2016
1711,Revenue,CAHD,MH Purchasing - Younger,Permanent Residential,Kenver House Residential Home,1721.08, 19-Jan-2016
1712,Revenue,CAHD,MH Purchasing - Younger,Permanent Residential,Milestones - Unit 10,866.80, 19-Jan-2016
1713,Revenue,CAHD,MH Purchasing - Younger,Permanent Residential,Milestones - Unit 10,1050.20, 19-Jan-2016
1714,Revenue,CAHD,MH Purchasing - Younger,Permanent Nursing,Milestones - Unit 10,950.96, 19-Jan-2016
1715,Revenue,CAHD,MH Purchasing - Younger,Permanent Nursing,Milestones - Unit 10,958.80, 19-Jan-2016
1716,Revenue,CAHD,MH Purchasing - Younger,Permanent Residential,Notaro Homes Ltd  Queensmead Court,3032.40, 19-Jan-2016
1717,Revenue,CAHD,MH Purchasing - Younger,Permanent Nursing,Stanley House,4422.40, 19-Jan-2016
1718,Revenue,CAHD,MH Purchasing - Younger,Permanent Residential,Ventura Residential Care Home,1400.32, 19-Jan-2016
1719,Revenue,CAHD,Bed Purchasing - Elderly S117- North,Permanent Nursing,Beaufort Grange Care Home,4352.00, 19-Jan-2016
1720,Revenue,CAHD,Bed Purchasing - Elderly S117- North,Permanent Nursing,Beaufort Grange Care Home,9754.29, 19-Jan-2016
1721,Revenue,CAHD,Bed Purchasing - Elderly S117- North,Permanent Nursing,Blossom Field,2012.00, 19-Jan-2016
1722,Revenue,CAHD,Bed Purchasing - Elderly S117- North,Permanent Nursing,Blossom Field,3108.57, 19-Jan-2016
1723,Revenue,CAHD,Bed Purchasing - Elderly S117- North,Permanent Nursing,Brunelcare,2530.57, 25-Jan-2016
1724,Revenue,CAHD,Bed Purchasing - Elderly S117- North,Permanent Nursing,Brunelcare,3135.43, 25-Jan-2016
1725,Revenue,CAHD,Bed Purchasing - Elderly S117- North,Permanent Nursing,Brunelcare,2832.00, 25-Jan-2016
1726,Revenue,CAHD,Bed Purchasing - Elderly S117- North,Permanent Nursing,Brunelcare,3135.43, 25-Jan-2016
1727,Revenue,CAHD,Bed Purchasing - Elderly S117- North,Permanent Residential,Canjayor,2359.24, 19-Jan-2016
1728,Revenue,CAHD,Bed Purchasing - Elderly S117- North,Permanent Residential,Citibase Watford,9028.60, 19-Jan-2016
1729,Revenue,CAHD,Bed Purchasing - Elderly S117- North,Permanent Nursing,Danshell Healthcare Group,11653.52, 19-Jan-2016
1730,Revenue,CAHD,Bed Purchasing - Elderly S117- North,Permanent Nursing,Fshc  1St Floor,2012.00, 19-Jan-2016
1731,Revenue,CAHD,Bed Purchasing - Elderly S117- North,Permanent Nursing,Meadow Care Home,3800.00, 19-Jan-2016
1732,Revenue,CAHD,Bed Purchasing - Elderly S117- North,Permanent Residential,Osbourne Court,1948.00, 19-Jan-2016
1733,Revenue,CAHD,Bed Purchasing - Elderly S117- North,Permanent Residential,Real Life Options,6704.28, 19-Jan-2016
1734,Revenue,CAHD,Bed Purchasing - Elderly S117- North,Permanent Nursing,Redholme Memory Care Limited,2013.36, 19-Jan-2016
1735,Revenue,CAHD,Bed Purchasing - Elderly S117- North,Permanent Nursing,Shaw Healthcare Ltd,2872.00, 19-Jan-2016
1736,Revenue,CAHD,Bed Purchasing - Elderly S117- North,Permanent Residential,Templemore Care Home,2256.68, 19-Jan-2016
1737,Revenue,CAHD,Bed Purchasing - Elderly S117- North,Permanent Residential,The Grove,2148.16, 19-Jan-2016
1738,Revenue,CAHD,Bed Purchasing - Elderly S117- North,Permanent Residential,The Grove,2800.00, 19-Jan-2016
1739,Revenue,CAHD,Bed Purchasing - Elderly S117- North,Permanent Residential,The Old Vicarage Residential Home,1948.00, 19-Jan-2016
1740,Revenue,CAHD,Bed Purchasing - Elderly S117- North,Permanent Residential,Windmill House,1776.00, 19-Jan-2016
1741,Revenue,CAHD,Bed Purchasing - Elderly S117- North,Permanent Nursing,Woodspring Stadium,2922.24, 19-Jan-2016
1742,Revenue,CAHD,Section 117 Placements MH Younger,Permanent Residential,Ash View House,6565.76, 19-Jan-2016
1743,Revenue,CAHD,Section 117 Placements MH Younger,Permanent Residential,Bedrock Lodge,1885.04, 19-Jan-2016
1744,Revenue,CAHD,Section 117 Placements MH Younger,Permanent Residential,Church House,7649.04, 19-Jan-2016
1745,Revenue,CAHD,Section 117 Placements MH Younger,Permanent Residential,Gladstone House,2792.00, 19-Jan-2016
1746,Revenue,CAHD,Section 117 Placements MH Younger,Permanent Residential,Milestones - Unit 10,1372.00, 19-Jan-2016
1747,Revenue,CAHD,Section 117 Placements MH Younger,Permanent Residential,Milestones - Unit 10,1372.00, 19-Jan-2016
1748,Revenue,CAHD,Section 117 Placements MH Younger,Permanent Nursing,Oaklands,6154.56, 19-Jan-2016
1749,Revenue,CAHD,Section 117 Placements MH Younger,Day Care / Social Activities,Supported Independence Ltd,1750.76, 08-Jan-2016
1750,Revenue,CAHD,Independent Special Placements - Pre 16,Other Private Contractors,Belgrave School,4750.00, 18-Jan-2016
1751,Revenue,CAHD,Independent Special Placements - Pre 16,Other Private Contractors,Belgrave School,5446.66, 14-Jan-2016
1752,Revenue,CAHD,Independent Special Placements - Pre 16,Other Private Contractors,Belgrave School,4835.33, 14-Jan-2016
1753,Revenue,CAHD,Independent Special Placements - Pre 16,Other Private Contractors,Options College Stoke,19197.86, 26-Jan-2016
1754,Revenue,CAHD,Independent Special Placements - Pre 16,Other Private Contractors,Options College Stoke,9289.30, 29-Jan-2016
1755,Revenue,CAHD,Independent Special Placements - Pre 16,Other Private Contractors,Shapwick  School,6033.00, 13-Jan-2016
1756,Revenue,CAHD,Independent Special Placements - Pre 16,Other Private Contractors,Silverhill School,2700.00, 07-Jan-2016
1757,Revenue,CAHD,Independent Special Placements - Pre 16,Other Private Contractors,Silverhill School,550.00, 07-Jan-2016
1758,Revenue,CAHD,Independent Special Placements - Pre 16,Other Private Contractors,Silverhill School,1368.36, 26-Jan-2016
1759,Revenue,CAHD,Independent Special Placements - Pre 16,Other Private Contractors,Silverhill School,1197.31, 26-Jan-2016
1760,Revenue,CAHD,Independent Special Placements - Pre 16,Other Private Contractors,Silverhill School,592.95, 26-Jan-2016
1761,Revenue,CAHD,Independent Special Placements - Pre 16,Other Private Contractors,The Sheiling School Thornbury General Account,22450.33, 12-Jan-2016
1762,Revenue,CAHD,Independent Special Placements - Pre 16,Other Private Contractors,Tockington Manor School Limted,1418.50, 14-Jan-2016
1763,Revenue,CAHD,Independent Special Placements - Pre 16,Other Private Contractors,Trauma Recovery Centre,2100.00, 04-Jan-2016
1764,Revenue,CAHD,Independent Special Placements - Post 16,Other Private Contractors,Belgrave School,8692.00, 14-Jan-2016
1765,Revenue,CAHD,Independent Special Placements - Post 16,Other Private Contractors,Include Limited,5166.67, 06-Jan-2016
1766,Revenue,CAHD,Independent Special Placements - Travel,Client Transport,Hayley Thompson,892.80, 11-Jan-2016
1767,Revenue,CAHD,Mental Capacity Act - Advocacy,Other Supplies & Services,Armadillo Youth Venue & Cafe,640.00, 07-Jan-2016
1768,Revenue,CAHD,Mental Capacity Act - Advocacy,Other Supplies & Services,Sirona Care & Health CIC,8250.00, 20-Jan-2016
1769,Revenue,CAHD,Under 65s -MH  Home Care Purch,Other Small Contracts,Mrs B Kimber -  CM2000,66.56, 07-Jan-2016
1770,Revenue,CAHD,Under 65s -MH  Home Care Purch,Other Small Contracts,Mrs B Kimber -  CM2000,33.28, 20-Jan-2016
1771,Revenue,CAHD,Younger MH non-res purchasing,Supported Living,Julia Simone- Supp. Ind.,1178.36, 19-Jan-2016
1772,Revenue,CAHD,Younger MH non-res purchasing,Supported Living,Julia Simone- Supp. Ind.,1178.36, 19-Jan-2016
1773,Revenue,CAHD,Younger MH non-res purchasing,Supported Living,Julia Simone- Supp. Ind.,1178.20, 19-Jan-2016
1774,Revenue,CAHD,Younger MH non-res purchasing,Other Small Contracts,Lloyds TSB Commercial Finance Limited,10641.56, 27-Jan-2016
1775,Revenue,CAHD,Younger MH non-res purchasing,Other Small Contracts,Lloyds TSB Commercial Finance Limited,10646.82, 27-Jan-2016
1776,Revenue,CAHD,Younger MH non-res purchasing,Other Small Contracts,Lloyds TSB Commercial Finance Limited,10657.34, 27-Jan-2016
1777,Revenue,CAHD,Younger MH non-res purchasing,Supported Living,Lloyds TSB Commercial Finance Limited,105.20, 27-Jan-2016
1778,Revenue,CAHD,Younger MH non-res purchasing,Supported Living,Maples Community Care Limited,1400.00, 19-Jan-2016
1779,Revenue,CAHD,Younger MH non-res purchasing,Supported Living,Maples Community Care Limited,1400.00, 19-Jan-2016
1780,Revenue,CAHD,Younger MH non-res purchasing,Supported Living,Maples Community Care Limited,1400.00, 19-Jan-2016
1781,Revenue,CAHD,Younger MH non-res purchasing,Supported Living,Maples Community Care Limited,1400.00, 19-Jan-2016
1782,Revenue,CAHD,Younger MH non-res purchasing,Supported Living,Moving On,1388.52, 07-Jan-2016
1783,Revenue,CAHD,Younger MH non-res purchasing,Supported Living,Moving On,1388.52, 08-Jan-2016
1784,Revenue,CAHD,Younger MH non-res purchasing,Supported Living,Moving On,1388.52, 15-Jan-2016
1785,Revenue,CAHD,Younger MH non-res purchasing,Other Small Contracts,Mrs B Kimber -  CM2000,67.91, 14-Jan-2016
1786,Revenue,CAHD,Younger MH non-res purchasing,Adults - Family Support,Mrs S L Prangley-Griffiths,862.40, 11-Jan-2016
1787,Revenue,CAHD,Younger MH non-res purchasing,Day Care / Social Activities,NAS Services Limited,193.83, 07-Jan-2016
1788,Revenue,CAHD,Younger MH non-res purchasing,Day Care / Social Activities,NAS Services Limited,192.80, 07-Jan-2016
1789,Revenue,CAHD,Younger MH non-res purchasing,Day Care / Social Activities,NAS Services Limited,192.80, 07-Jan-2016
1790,Revenue,CAHD,Younger MH non-res purchasing,Day Care / Social Activities,Voyage Limited,5765.76, 15-Jan-2016
1791,Revenue,CAHD,Home care - Elderly MH - North,Other Small Contracts,Milestones Homecare & Dementia Service,55.02, 15-Jan-2016
1792,Revenue,CAHD,Home care - Elderly MH - North,Other Small Contracts,Milestones Homecare & Dementia Service,31.44, 29-Jan-2016
1793,Revenue,CAHD,Home care - Elderly MH - North,Other Small Contracts,Nestor T/A Allied Healthcare,46.20, 12-Jan-2016
1794,Revenue,CAHD,Home care - Elderly MH - North,Other Small Contracts,Nestor T/A Allied Healthcare,50.04, 14-Jan-2016
1795,Revenue,CAHD,Home care - Elderly MH - North,Other Small Contracts,Nestor T/A Allied Healthcare,46.20, 21-Jan-2016
1796,Revenue,CAHD,Home care - Elderly MH - North,Other Small Contracts,Nestor T/A Allied Healthcare,53.90, 27-Jan-2016
1797,Revenue,CAHD,Home care - Elderly MH - North,Other Small Contracts,Premier Homecare Limited,129.08, 12-Jan-2016
1798,Revenue,CAHD,Home care - Elderly MH - North,Other Small Contracts,Premier Homecare Limited,129.08, 12-Jan-2016
1799,Revenue,CAHD,Home care - Elderly MH - North,Other Small Contracts,Premier Homecare Limited,129.08, 18-Jan-2016
1800,Revenue,CAHD,Home care - Elderly MH - North,Other Small Contracts,Premier Homecare Limited,129.08, 25-Jan-2016
1801,Revenue,CAHD,Elderly MH Day Care North,Day Care / Social Activities,Agincare UK Limited,50.05, 08-Jan-2016
1802,Revenue,CAHD,Elderly MH Day Care North,Day Care / Social Activities,Premier Homecare Limited,73.76, 12-Jan-2016
1803,Revenue,CAHD,Elderly MH Day Care North,Day Care / Social Activities,Premier Homecare Limited,73.76, 12-Jan-2016
1804,Revenue,CAHD,Elderly MH Day Care North,Day Care / Social Activities,Premier Homecare Limited,73.76, 18-Jan-2016
1805,Revenue,CAHD,Elderly MH Day Care North,Day Care / Social Activities,Premier Homecare Limited,73.76, 25-Jan-2016
1806,Revenue,CAHD,SLA Grants - Support Serv,Grants to Voluntary Bodies,Delia Robins,500.00, 04-Jan-2016
1807,Revenue,CAHD,SLA Grants - Support Serv,Grants to Voluntary Bodies,South Gloucestershire Carers` Choir,500.00, 04-Jan-2016
1808,Revenue,CAHD,Brokerage and Information Service,Grants to Voluntary Bodies,Sirona Care & Health CIC,20000.00, 12-Jan-2016
1809,Revenue,CAHD,Planning and Partnerships Procurement,Other Supplies & Services,Eldercare,1512.23, 29-Jan-2016
1810,Revenue,CAHD,Planning and Partnerships Procurement,Other Supplies & Services,Tynetec Limited,2035.77, 07-Jan-2016
1811,Revenue,CAHD,Planning and Partnerships Procurement,Other Supplies & Services,Tynetec Limited,2117.76, 29-Jan-2016
1812,Revenue,CAHD,Public Health Project Funding,Consultants Fees,D Harvey Consulting Limited,2672.35, 27-Jan-2016
1813,Revenue,CAHD,Leadership and Business Support,Other Small Contracts,NHS South Gloucestershire CCG,78400.92, 08-Jan-2016
1814,Revenue,CAHD,Leadership and Business Support,Software Purchase,Timberlake Consultants Limited,1845.00, 18-Jan-2016
